Body Name,Body,Service Label    ,Service Code,Service Division Label,Service Division Code,Organisational Unit,Expenditure Category,Expenditure Code,CIPFA Detailed Expenditure Type,CIPFA Detailed Expenditure Code,Date,Transaction Number,     Net Amount     ,Supplier Name,     Payment_Amount     
Broxtowe Borough Council,http://statistics.data.gov.uk/id/local-authority/37UD,General,GEN,General,GEN,Chief Executive  / Enviromental Health,DFG client cont`n,9378,Miscellaneous,Msc,02/04/2020,V744672,2745.86,REDACTED,2745.86
Broxtowe Borough Council,http://statistics.data.gov.uk/id/local-authority/37UD,Works Directorate,DIRWORKS,Works Directorate,DIRWORKS,Strategic Director / Enviromental Services,Materials  - Direct,3202,Equipment,Equip,09/04/2020,V744834,571.2, Agrovista UK Ltd T/A Sherriff Amenity,1370.88
Broxtowe Borough Council,http://statistics.data.gov.uk/id/local-authority/37UD,Works,WORKS,Repairs & Maintenance,REPMAIN,Strategic Director / Enviromental Services,Materials  - Direct,3202,Equipment,Equip,09/04/2020,V744834,571.2, Agrovista UK Ltd T/A Sherriff Amenity,1370.88
Broxtowe Borough Council,http://statistics.data.gov.uk/id/local-authority/37UD,Works,WORKS,Repairs & Maintenance,REPMAIN,Strategic Director / Enviromental Services,Sub Contractors [day to day repairs],3107,Other Supplies & Services,OtherSS,09/04/2020,V744817,1824,A J Steeples,4531.2
Broxtowe Borough Council,http://statistics.data.gov.uk/id/local-authority/37UD,Works,WORKS,Other Works,WKSOTHER,Strategic Director / Enviromental Services,Grounds Maintenance - External,1205,Other Prem,OthPrem,09/04/2020,V744817,1368,A J Steeples,4531.2
Broxtowe Borough Council,http://statistics.data.gov.uk/id/local-authority/37UD,Bramcote Crematorium,BCREM,Bramcote Crematorium,BCREM,Strategic Director / Enviromental Services,Repairs & Maintenance,1000,Central Pot,Central,09/04/2020,V744817,456,A J Steeples,4531.2
Broxtowe Borough Council,http://statistics.data.gov.uk/id/local-authority/37UD,Works,WORKS,Repairs & Maintenance,REPMAIN,Strategic Director / Enviromental Services,Sub Contractors [day to day repairs],3107,Other Supplies & Services,OtherSS,09/04/2020,V744817,128,A J Steeples,4531.2
Broxtowe Borough Council,http://statistics.data.gov.uk/id/local-authority/37UD,Resources,RES,Resources,RES,Strategic Director / IT Services,Equipment,9004,Capital Expenditure,CapExp,09/04/2020,V744976,685.33,ACS Business Supplies,822.4
Broxtowe Borough Council,http://statistics.data.gov.uk/id/local-authority/37UD,General,GEN,General,GEN,Strategic Director / Enviromental Services,Stores Purchased - March,9371,Stores,Stores,09/04/2020,V744978,810,Arden Winch & Company Limited,1117.58
Broxtowe Borough Council,http://statistics.data.gov.uk/id/local-authority/37UD,General,GEN,General,GEN,Strategic Director / Enviromental Services,Stores Purchased - April,9360,Stores,Stores,09/04/2020,V744977,121.32,Arden Winch & Company Limited,1117.58
Broxtowe Borough Council,http://statistics.data.gov.uk/id/local-authority/37UD,Chief Executive,CE,ICT & Customer Services,ICT,Strategic Director / IT Services,Hardware Maintenance,3434,Other Supplies & Services,OtherSS,09/04/2020,V745175,0.45,Asset Management Ireland Ltd,1749.24
Broxtowe Borough Council,http://statistics.data.gov.uk/id/local-authority/37UD,Chief Executive,CE,ICT & Customer Services,ICT,Strategic Director / IT Services,Hardware Maintenance,3434,Other Supplies & Services,OtherSS,09/04/2020,V745175,156.4,Asset Management Ireland Ltd,1749.24
Broxtowe Borough Council,http://statistics.data.gov.uk/id/local-authority/37UD,Chief Executive,CE,ICT & Customer Services,ICT,Strategic Director / IT Services,Hardware Maintenance,3434,Other Supplies & Services,OtherSS,09/04/2020,V745175,11.2,Asset Management Ireland Ltd,1749.24
Broxtowe Borough Council,http://statistics.data.gov.uk/id/local-authority/37UD,Chief Executive,CE,ICT & Customer Services,ICT,Strategic Director / IT Services,Hardware Maintenance,3434,Other Supplies & Services,OtherSS,09/04/2020,V745175,63.2,Asset Management Ireland Ltd,1749.24
Broxtowe Borough Council,http://statistics.data.gov.uk/id/local-authority/37UD,Chief Executive,CE,ICT & Customer Services,ICT,Strategic Director / IT Services,Hardware Maintenance,3434,Other Supplies & Services,OtherSS,09/04/2020,V745175,1226.45,Asset Management Ireland Ltd,1749.24
Broxtowe Borough Council,http://statistics.data.gov.uk/id/local-authority/37UD,GF Housing,GFHSG,GF Housing,GFHSG,Chief Executive  / Public Protection,Grants,9006,Capital Expenditure,CapExp,09/04/2020,V744708,1093.76,B.R. Rackstraw Limited,1093.76
Broxtowe Borough Council,http://statistics.data.gov.uk/id/local-authority/37UD,GF Housing,GFHSG,GF Housing,GFHSG,Chief Executive  / Public Protection,Grants,9006,Capital Expenditure,CapExp,09/04/2020,V744726,1686.6,Brian Cooper Architect Ltd,1686.6
Broxtowe Borough Council,http://statistics.data.gov.uk/id/local-authority/37UD,Finance,FINANCE,Finance Services,FINANCE,Deputy Chief Executive / Finance Services,Grants,3700,Other Supplies & Services,OtherSS,09/04/2020,V744999,2000,Brinsley Parish Council,67173
Broxtowe Borough Council,http://statistics.data.gov.uk/id/local-authority/37UD,Finance,FINANCE,Regulatory Services,REG,Deputy Chief Executive / Finance Services,Court Costs,3608,Other Supplies & Services,OtherSS,09/04/2020,V744835,151.88,Bristow & Sutor,732.76
Broxtowe Borough Council,http://statistics.data.gov.uk/id/local-authority/37UD,Finance,FINANCE,Regulatory Services,REG,Deputy Chief Executive / Finance Services,Court Costs,3608,Other Supplies & Services,OtherSS,09/04/2020,V744835,-2752.52,Bristow & Sutor,732.76
Broxtowe Borough Council,http://statistics.data.gov.uk/id/local-authority/37UD,Finance,FINANCE,Regulatory Services,REG,Deputy Chief Executive / Finance Services,Court Costs,3608,Other Supplies & Services,OtherSS,09/04/2020,V744835,2752.52,Bristow & Sutor,732.76
Broxtowe Borough Council,http://statistics.data.gov.uk/id/local-authority/37UD,Works,WORKS,Repairs & Maintenance,REPMAIN,Strategic Director / Enviromental Services,Materials  - Direct,3202,Equipment,Equip,09/04/2020,V745106,384.3,British Sugar Topsoil,1423.29
Broxtowe Borough Council,http://statistics.data.gov.uk/id/local-authority/37UD,Works,WORKS,Repairs & Maintenance,REPMAIN,Strategic Director / Enviromental Services,Materials  - Direct,3202,Equipment,Equip,09/04/2020,V744814,801.78,British Sugar Topsoil,1423.29
Broxtowe Borough Council,http://statistics.data.gov.uk/id/local-authority/37UD,Finance,FINANCE,Finance Services,FINANCE,Deputy Chief Executive / Finance Services,Consultancy Fees,3603,Other Supplies & Services,OtherSS,09/04/2020,V745006,1536,Browne Jacobson LLP,1843.2
Broxtowe Borough Council,http://statistics.data.gov.uk/id/local-authority/37UD,Housing Revenue Account,HRA,Housing Revenue Account,HRA,Deputy Chief Executive / Property Services,Other Capital Expenditure,9007,Capital Expenditure,CapExp,09/04/2020,V744845,2950,BSP Consulting,3540
Broxtowe Borough Council,http://statistics.data.gov.uk/id/local-authority/37UD,Chief Executive,CE,ICT & Customer Services,ICT,Strategic Director / IT Services,Computer Equipment Supplies,3438,Equipment,Equip,09/04/2020,V745022,35.4,CCS Media Ltd,2618.74
Broxtowe Borough Council,http://statistics.data.gov.uk/id/local-authority/37UD,Chief Executive,CE,ICT & Customer Services,ICT,Strategic Director / IT Services,Computer Equipment Supplies,3438,Equipment,Equip,09/04/2020,V745021,1364,CCS Media Ltd,2618.74
Broxtowe Borough Council,http://statistics.data.gov.uk/id/local-authority/37UD,Chief Executive,CE,ICT & Customer Services,ICT,Strategic Director / IT Services,Hardware Maintenance,3434,Other Supplies & Services,OtherSS,09/04/2020,V745185,782.88,CCS Media Ltd,2618.74
Broxtowe Borough Council,http://statistics.data.gov.uk/id/local-authority/37UD,Community Development,COMDEV,Other Community Development,COMOTHER,Deputy Chief Executive / CCTV and Car Parks,Attenborough Nature Reserve,4333,Other Third Party Payments,OtherTP,09/04/2020,V744926,36,Central Security Systems Ltd,2641.2
Broxtowe Borough Council,http://statistics.data.gov.uk/id/local-authority/37UD,Housing,HOUSING,Warden Schemes,WARD,Deputy Chief Executive / CCTV and Car Parks,Sheltered Scheme Safety,1821,Other Prem,OthPrem,09/04/2020,V745184,250,Central Security Systems Ltd,2641.2
Broxtowe Borough Council,http://statistics.data.gov.uk/id/local-authority/37UD,Bramcote Crematorium,BCREM,Bramcote Crematorium,BCREM,Deputy Chief Executive / CCTV and Car Parks,Closed Circuit Television System,3650,Other Supplies & Services,OtherSS,09/04/2020,V745184,125,Central Security Systems Ltd,2641.2
Broxtowe Borough Council,http://statistics.data.gov.uk/id/local-authority/37UD,Community Development,COMDEV,Community Facilities,COMFAC,Deputy Chief Executive / CCTV and Car Parks,CCTV - Maintenance,3872,Other Supplies & Services,OtherSS,09/04/2020,V745184,125,Central Security Systems Ltd,2641.2
Broxtowe Borough Council,http://statistics.data.gov.uk/id/local-authority/37UD,Housing,HOUSING,Tenancy Services,TENSER,Deputy Chief Executive / CCTV and Car Parks,Estate Management - North,1254,Other Prem,OthPrem,09/04/2020,V745184,125,Central Security Systems Ltd,2641.2
Broxtowe Borough Council,http://statistics.data.gov.uk/id/local-authority/37UD,Community Development,COMDEV,Other Community Development,COMOTHER,Deputy Chief Executive / CCTV and Car Parks,CCTV - Maintenance,3872,Other Supplies & Services,OtherSS,09/04/2020,V744926,36,Central Security Systems Ltd,2641.2
Broxtowe Borough Council,http://statistics.data.gov.uk/id/local-authority/37UD,Works,WORKS,Other Works,WKSOTHER,Deputy Chief Executive / CCTV and Car Parks,CCTV - Maintenance,3872,Other Supplies & Services,OtherSS,09/04/2020,V744926,288,Central Security Systems Ltd,2641.2
Broxtowe Borough Council,http://statistics.data.gov.uk/id/local-authority/37UD,Technical,TECHNICA,Parks & Recreation Grounds,RECGRD,Deputy Chief Executive / CCTV and Car Parks,Grounds Maintenance - External,1205,Other Prem,OthPrem,09/04/2020,V744926,36,Central Security Systems Ltd,2641.2
Broxtowe Borough Council,http://statistics.data.gov.uk/id/local-authority/37UD,Technical,TECHNICA,Parks & Recreation Grounds,RECGRD,Deputy Chief Executive / CCTV and Car Parks,Premises Costs,1017,Other Maintenance,Maint,09/04/2020,V745184,125,Central Security Systems Ltd,2641.2
Broxtowe Borough Council,http://statistics.data.gov.uk/id/local-authority/37UD,Technical,TECHNICA,Parks & Recreation Grounds,RECGRD,Deputy Chief Executive / CCTV and Car Parks,Premises Costs,1017,Other Maintenance,Maint,09/04/2020,V744926,72,Central Security Systems Ltd,2641.2
Broxtowe Borough Council,http://statistics.data.gov.uk/id/local-authority/37UD,Technical,TECHNICA,Parks & Recreation Grounds,RECGRD,Deputy Chief Executive / CCTV and Car Parks,Premises Costs,1017,Other Maintenance,Maint,09/04/2020,V745184,125,Central Security Systems Ltd,2641.2
Broxtowe Borough Council,http://statistics.data.gov.uk/id/local-authority/37UD,Works,WORKS,Other Works,WKSOTHER,Deputy Chief Executive / CCTV and Car Parks,Premises Costs,1017,Other Maintenance,Maint,09/04/2020,V745184,125,Central Security Systems Ltd,2641.2
Broxtowe Borough Council,http://statistics.data.gov.uk/id/local-authority/37UD,Community Development,COMDEV,Other Community Development,COMOTHER,Deputy Chief Executive / CCTV and Car Parks,CCTV - Maintenance,3872,Other Supplies & Services,OtherSS,09/04/2020,V745184,500,Central Security Systems Ltd,2641.2
Broxtowe Borough Council,http://statistics.data.gov.uk/id/local-authority/37UD,Works,WORKS,Other Works,WKSOTHER,Deputy Chief Executive / CCTV and Car Parks,CCTV - Maintenance,3872,Other Supplies & Services,OtherSS,09/04/2020,V745184,125,Central Security Systems Ltd,2641.2
Broxtowe Borough Council,http://statistics.data.gov.uk/id/local-authority/37UD,Technical,TECHNICA,Parks & Recreation Grounds,RECGRD,Deputy Chief Executive / CCTV and Car Parks,Grounds Maintenance - External,1205,Other Prem,OthPrem,09/04/2020,V744926,36,Central Security Systems Ltd,2641.2
Broxtowe Borough Council,http://statistics.data.gov.uk/id/local-authority/37UD,Technical,TECHNICA,Parks & Recreation Grounds,RECGRD,Deputy Chief Executive / CCTV and Car Parks,Premises Costs,1017,Other Maintenance,Maint,09/04/2020,V744926,72,Central Security Systems Ltd,2641.2
Broxtowe Borough Council,http://statistics.data.gov.uk/id/local-authority/37UD,General,GEN,General,GEN,Strategic Director / Enviromental Services,Stores Purchased - March,9371,Stores,Stores,09/04/2020,V745179,15123.35,Certas Energy,21085.82
Broxtowe Borough Council,http://statistics.data.gov.uk/id/local-authority/37UD,General,GEN,General,GEN,Strategic Director / Enviromental Services,Stores Purchased - March,9371,Stores,Stores,09/04/2020,V745178,841,Certas Energy,21085.82
Broxtowe Borough Council,http://statistics.data.gov.uk/id/local-authority/37UD,General,GEN,General,GEN,Strategic Director / Enviromental Services,Stores Purchased - March,9371,Stores,Stores,09/04/2020,V745180,1712.29,Certas Energy,21085.82
Broxtowe Borough Council,http://statistics.data.gov.uk/id/local-authority/37UD,Housing,HOUSING,Housing Directorate,DIRHSG,Chief Executive  / Housing Services,Books and Publications,3357,Books,Books,09/04/2020,V744939,475,Certsure LLP (NICEIC),570
Broxtowe Borough Council,http://statistics.data.gov.uk/id/local-authority/37UD,Chief Executive,CE,ICT & Customer Services,ICT,Strategic Director / IT Services,Software Maintenance,3436,Other Supplies & Services,OtherSS,09/04/2020,V744680,1644,Chevin Fleet Solutions,1972.8
Broxtowe Borough Council,http://statistics.data.gov.uk/id/local-authority/37UD,Resources,RES,Resources,RES,Strategic Director / IT Services,Intangible Fixed Assets,9005,Capital Expenditure,CapExp,09/04/2020,V744964,511,Civica UK Limited,613.2
Broxtowe Borough Council,http://statistics.data.gov.uk/id/local-authority/37UD,Finance,FINANCE,Regulatory Services,REG,Deputy Chief Executive / Revenues and Benefits,Miscellaneous Expenses,3800,Miscellaneous,Msc,09/04/2020,V745023,7500,Civica UK Ltd,9000
Broxtowe Borough Council,http://statistics.data.gov.uk/id/local-authority/37UD,GF Housing,GFHSG,GF Housing,GFHSG,Chief Executive  / Public Protection,Grants,9006,Capital Expenditure,CapExp,09/04/2020,V744707,2297.15,Combellack Building Service Contractors,3256.22
Broxtowe Borough Council,http://statistics.data.gov.uk/id/local-authority/37UD,General,GEN,General,GEN,Chief Executive  / Public Protection,DFG client cont`n,9378,Miscellaneous,Msc,09/04/2020,V744707,959.07,Combellack Building Service Contractors,3256.22
Broxtowe Borough Council,http://statistics.data.gov.uk/id/local-authority/37UD,Housing,HOUSING,Repairs,REPS,Chief Executive  / Housing repairs,Sub Contractors [day to day repairs],3107,Other Supplies & Services,OtherSS,09/04/2020,V745007,1800,Come and Plumb It LTD,4060
Broxtowe Borough Council,http://statistics.data.gov.uk/id/local-authority/37UD,Housing,HOUSING,Repairs,REPS,Chief Executive  / Housing repairs,Sub Contractors [day to day repairs],3107,Other Supplies & Services,OtherSS,09/04/2020,V745005,1175,Come and Plumb It LTD,4060
Broxtowe Borough Council,http://statistics.data.gov.uk/id/local-authority/37UD,Housing,HOUSING,Repairs,REPS,Chief Executive  / Housing repairs,Sub Contractors [day to day repairs],3107,Other Supplies & Services,OtherSS,09/04/2020,V745008,1085,Come and Plumb It LTD,4060
Broxtowe Borough Council,http://statistics.data.gov.uk/id/local-authority/37UD,Chief Executive,CE,Chief Exec & Corporate Comms,CE,Strategic Director / Corporate Comms,Chauffeur Services,2040,Transport,Transp,09/04/2020,V745177,585.65,Countess Executive Chauffeuring Services,585.65
Broxtowe Borough Council,http://statistics.data.gov.uk/id/local-authority/37UD,Finance,FINANCE,Admin Buildings,ADBLDG,Strategic Director / Administrative Services,Lift Maintenance,1013,Other Maintenance,Maint,09/04/2020,V744851,2394,Deltron Lifts Limited,2872.8
Broxtowe Borough Council,http://statistics.data.gov.uk/id/local-authority/37UD,Works,WORKS,Waste Management,WASTMAN,Strategic Director / Enviromental Services,Repairs / Servicing  - Materials,5520,Transport Account,TRANACC,09/04/2020,V744838,125.21,Dennis Eagle,433.91
Broxtowe Borough Council,http://statistics.data.gov.uk/id/local-authority/37UD,Works,WORKS,Waste Management,WASTMAN,Strategic Director / Enviromental Services,Repairs / Servicing  - Materials,5520,Transport Account,TRANACC,09/04/2020,V744856,66.79,Dennis Eagle,433.91
Broxtowe Borough Council,http://statistics.data.gov.uk/id/local-authority/37UD,Works,WORKS,Waste Management,WASTMAN,Strategic Director / Enviromental Services,Repairs / Servicing  - Materials,5520,Transport Account,TRANACC,09/04/2020,V744838,32.35,Dennis Eagle,433.91
Broxtowe Borough Council,http://statistics.data.gov.uk/id/local-authority/37UD,Works,WORKS,Waste Management,WASTMAN,Strategic Director / Enviromental Services,Repairs / Servicing  - Materials,5520,Transport Account,TRANACC,09/04/2020,V744856,137.24,Dennis Eagle,433.91
Broxtowe Borough Council,http://statistics.data.gov.uk/id/local-authority/37UD,Technical,TECHNICA,Highways,HIGHWYS,Deputy Chief Executive / Property Services,Energy Efficiency,3848,Other Supplies & Services,OtherSS,09/04/2020,V744959,1500,Derbyshire County Council,3000
Broxtowe Borough Council,http://statistics.data.gov.uk/id/local-authority/37UD,Technical,TECHNICA,Highways,HIGHWYS,Deputy Chief Executive / Property Services,Energy Efficiency,3848,Other Supplies & Services,OtherSS,09/04/2020,V744959,1500,Derbyshire County Council,3000
Broxtowe Borough Council,http://statistics.data.gov.uk/id/local-authority/37UD,Finance,FINANCE,Regulatory Services,REG,Chief Executive  / Human Res,Criminal Records Bureau,8349,Other Income,OtherInc,09/04/2020,V745001,320,Disclosure & Barring Service Credit Control,600
Broxtowe Borough Council,http://statistics.data.gov.uk/id/local-authority/37UD,Chief Executive,CE,Human Resources,HR,Chief Executive  / Human Res,Criminal Records Bureau,3629,Other Supplies & Services,OtherSS,09/04/2020,V745001,280,Disclosure & Barring Service Credit Control,600
Broxtowe Borough Council,http://statistics.data.gov.uk/id/local-authority/37UD,Housing,HOUSING,Repairs,REPS,Chief Executive  / Housing repairs,Sub Contractors [day to day repairs],3107,Other Supplies & Services,OtherSS,09/04/2020,V745100,15,DRK Drain Solutions Nottingham,420
Broxtowe Borough Council,http://statistics.data.gov.uk/id/local-authority/37UD,Housing,HOUSING,Repairs,REPS,Chief Executive  / Housing repairs,Sub Contractors [day to day repairs],3107,Other Supplies & Services,OtherSS,09/04/2020,V745100,25,DRK Drain Solutions Nottingham,420
Broxtowe Borough Council,http://statistics.data.gov.uk/id/local-authority/37UD,Housing,HOUSING,Repairs,REPS,Chief Executive  / Housing repairs,Sub Contractors [day to day repairs],3107,Other Supplies & Services,OtherSS,09/04/2020,V745100,60,DRK Drain Solutions Nottingham,420
Broxtowe Borough Council,http://statistics.data.gov.uk/id/local-authority/37UD,Housing,HOUSING,Repairs,REPS,Chief Executive  / Housing repairs,Sub Contractors [day to day repairs],3107,Other Supplies & Services,OtherSS,09/04/2020,V745100,15,DRK Drain Solutions Nottingham,420
Broxtowe Borough Council,http://statistics.data.gov.uk/id/local-authority/37UD,Community Development,COMDEV,Other Community Development,COMOTHER,Strategic Director / Enviromental Services,Drainage/Dykes & Ditches,1243,Other Prem,OthPrem,09/04/2020,V745176,215,DRK Drain Solutions Nottingham,420
Broxtowe Borough Council,http://statistics.data.gov.uk/id/local-authority/37UD,Housing,HOUSING,Repairs,REPS,Chief Executive  / Housing repairs,Sub Contractors [day to day repairs],3107,Other Supplies & Services,OtherSS,09/04/2020,V745100,45,DRK Drain Solutions Nottingham,420
Broxtowe Borough Council,http://statistics.data.gov.uk/id/local-authority/37UD,Works,WORKS,Other Works,WKSOTHER,Strategic Director / Enviromental Operations,Repairs & Maintenance,1000,Central Pot,Central,09/04/2020,V744878,45,DRK Drain Solutions Nottingham,420
Broxtowe Borough Council,http://statistics.data.gov.uk/id/local-authority/37UD,Finance,FINANCE,Finance Services,FINANCE,Deputy Chief Executive / Finance Services,Grants,3700,Other Supplies & Services,OtherSS,09/04/2020,V745099,2000,East Midlands Freewheelers Ltd,2000
Broxtowe Borough Council,http://statistics.data.gov.uk/id/local-authority/37UD,Housing,HOUSING,Warden Schemes,WARD,Chief Executive  / Income Management,Window Cleaning,4380,Other Third Party Payments,OtherTP,09/04/2020,V745102,1050,Ellis Cleaning Services,1050
Broxtowe Borough Council,http://statistics.data.gov.uk/id/local-authority/37UD,Housing,HOUSING,Repairs,REPS,Strategic Director / Enviromental Services,Waste Disposal,3208,Equipment,Equip,09/04/2020,V745195,12.35,ENVA,1666.22
Broxtowe Borough Council,http://statistics.data.gov.uk/id/local-authority/37UD,Housing,HOUSING,Tenancy Services,TENSER,Strategic Director / Enviromental Services,Estate Management - North,1254,Other Prem,OthPrem,09/04/2020,V745195,605.05,ENVA,1666.22
Broxtowe Borough Council,http://statistics.data.gov.uk/id/local-authority/37UD,Housing,HOUSING,Tenancy Services,TENSER,Strategic Director / Enviromental Services,Estate Management - North,1254,Other Prem,OthPrem,09/04/2020,V744881,385.56,ENVA,1666.22
Broxtowe Borough Council,http://statistics.data.gov.uk/id/local-authority/37UD,Works,WORKS,Repairs & Maintenance,REPMAIN,Strategic Director / Enviromental Services,Waste Disposal,3208,Equipment,Equip,09/04/2020,V744881,223.62,ENVA,1666.22
Broxtowe Borough Council,http://statistics.data.gov.uk/id/local-authority/37UD,Housing,HOUSING,Repairs,REPS,Strategic Director / Enviromental Services,Waste Disposal,3208,Equipment,Equip,09/04/2020,V744881,161.94,ENVA,1666.22
Broxtowe Borough Council,http://statistics.data.gov.uk/id/local-authority/37UD,Chief Executive,CE,ICT & Customer Services,ICT,Deputy Chief Executive / IT,Software Maintenance,3436,Other Supplies & Services,OtherSS,09/04/2020,V744649,342,Ferret Information Systems,410.4
Broxtowe Borough Council,http://statistics.data.gov.uk/id/local-authority/37UD,Technical,TECHNICA,Parks & Recreation Grounds,RECGRD,Strategic Director / Enviromental Operations,Fees and Charges,8300,Fees & Charges,Fees,09/04/2020,V745201,9593.97,Forest Cream,11512.76
Broxtowe Borough Council,http://statistics.data.gov.uk/id/local-authority/37UD,Community Development,COMDEV,Industrial Development,INDDEV,Deputy Chief Executive / Industrial rents,Electrical Testing,1043,Central Pot,Central,09/04/2020,V744867,645.62,Frederick Lamb Limited,1896.64
Broxtowe Borough Council,http://statistics.data.gov.uk/id/local-authority/37UD,Technical,TECHNICA,Parks & Recreation Grounds,RECGRD,Strategic Director / Bowls Grounds Hire,Repairs & Maintenance,1000,Central Pot,Central,09/04/2020,V744865,393.6,Frederick Lamb Limited,1896.64
Broxtowe Borough Council,http://statistics.data.gov.uk/id/local-authority/37UD,Technical,TECHNICA,Parks & Recreation Grounds,RECGRD,Strategic Director / Enviromental Business and Project,Repairs & Maintenance,1000,Central Pot,Central,09/04/2020,V744866,541.32,Frederick Lamb Limited,1896.64
Broxtowe Borough Council,http://statistics.data.gov.uk/id/local-authority/37UD,Chief Executive,CE,ICT & Customer Services,ICT,Strategic Director / IT Services,Telephones,3400,Telephones,Tele,09/04/2020,V742213,1227.54,Freedom Communictions Ltd,2159.45
Broxtowe Borough Council,http://statistics.data.gov.uk/id/local-authority/37UD,Chief Executive,CE,ICT & Customer Services,ICT,Strategic Director / IT Services,Telephones,3400,Telephones,Tele,09/04/2020,V742212,572,Freedom Communictions Ltd,2159.45
Broxtowe Borough Council,http://statistics.data.gov.uk/id/local-authority/37UD,Resources,RES,Resources,RES,Deputy Chief Executive / Property Services,Other Capital Expenditure,9007,Capital Expenditure,CapExp,09/04/2020,V744837,717.5,Freeths LLP,861
Broxtowe Borough Council,http://statistics.data.gov.uk/id/local-authority/37UD,Works,WORKS,Waste Management,WASTMAN,Strategic Director / Enviromental Services,Repairs / Servicing  - Materials,5520,Transport Account,TRANACC,09/04/2020,V744953,319.82,Freight Transport Association,383.78
Broxtowe Borough Council,http://statistics.data.gov.uk/id/local-authority/37UD,GF Housing,GFHSG,GF Housing,GFHSG,Chief Executive  / Public Protection,Grants,9006,Capital Expenditure,CapExp,09/04/2020,V744729,2310.4,Gee Tee Building Ltd,14345.72
Broxtowe Borough Council,http://statistics.data.gov.uk/id/local-authority/37UD,General,GEN,General,GEN,Chief Executive  / Public Protection,DFG client cont`n,9378,Miscellaneous,Msc,09/04/2020,V744729,12035.32,Gee Tee Building Ltd,14345.72
Broxtowe Borough Council,http://statistics.data.gov.uk/id/local-authority/37UD,Works,WORKS,Repairs & Maintenance,REPMAIN,Strategic Director / Enviromental Services,Premises Costs,1017,Other Maintenance,Maint,09/04/2020,V744818,70.22,Giltbrook Cleaners,257.98
Broxtowe Borough Council,http://statistics.data.gov.uk/id/local-authority/37UD,Works,WORKS,Repairs & Maintenance,REPMAIN,Strategic Director / Enviromental Services,Premises Costs,1017,Other Maintenance,Maint,09/04/2020,V744819,144.77,Giltbrook Cleaners,257.98
Broxtowe Borough Council,http://statistics.data.gov.uk/id/local-authority/37UD,Housing,HOUSING,Warden Schemes,WARD,Chief Executive  / Income Management,Equipment,3015,Other Supplies & Services,OtherSS,09/04/2020,V744963,243.18,Goodman Sparks Limited,291.82
Broxtowe Borough Council,http://statistics.data.gov.uk/id/local-authority/37UD,Housing,HOUSING,Repairs,REPS,Chief Executive  / Housing repairs,Materials  - Direct,3202,Equipment,Equip,09/04/2020,V744832,1165.96,Grafton Merchanting GB Ltd,1399.15
Broxtowe Borough Council,http://statistics.data.gov.uk/id/local-authority/37UD,General,GEN,General,GEN,Strategic Director / Enviromental Services,Stores Purchased - March,9371,Stores,Stores,09/04/2020,V744983,90,GROUNDSMAN TOOLS & SUPPLIES,683.75
Broxtowe Borough Council,http://statistics.data.gov.uk/id/local-authority/37UD,General,GEN,General,GEN,Strategic Director / Enviromental Services,Stores Purchased - March,9371,Stores,Stores,09/04/2020,V744983,39,GROUNDSMAN TOOLS & SUPPLIES,683.75
Broxtowe Borough Council,http://statistics.data.gov.uk/id/local-authority/37UD,General,GEN,General,GEN,Strategic Director / Enviromental Services,Stores Purchased - April,9360,Stores,Stores,09/04/2020,V744984,50,GROUNDSMAN TOOLS & SUPPLIES,683.75
Broxtowe Borough Council,http://statistics.data.gov.uk/id/local-authority/37UD,General,GEN,General,GEN,Strategic Director / Enviromental Services,Stores Purchased - April,9360,Stores,Stores,09/04/2020,V744984,35,GROUNDSMAN TOOLS & SUPPLIES,683.75
Broxtowe Borough Council,http://statistics.data.gov.uk/id/local-authority/37UD,General,GEN,General,GEN,Strategic Director / Enviromental Services,Stores Purchased - April,9360,Stores,Stores,09/04/2020,V745187,193.29,GROUNDSMAN TOOLS & SUPPLIES,683.75
Broxtowe Borough Council,http://statistics.data.gov.uk/id/local-authority/37UD,General,GEN,General,GEN,Strategic Director / Enviromental Services,Stores Purchased - March,9371,Stores,Stores,09/04/2020,V745192,162.5,GROUNDSMAN TOOLS & SUPPLIES,683.75
Broxtowe Borough Council,http://statistics.data.gov.uk/id/local-authority/37UD,Works,WORKS,Waste Management,WASTMAN,Strategic Director / Enviromental Services,Sub Contractors [day to day repairs],3107,Other Supplies & Services,OtherSS,09/04/2020,V745196,36.98,H W Martin (Traffic Management) Ltd,601.2
Broxtowe Borough Council,http://statistics.data.gov.uk/id/local-authority/37UD,Works,WORKS,Waste Management,WASTMAN,Strategic Director / Enviromental Services,Sub Contractors [day to day repairs],3107,Other Supplies & Services,OtherSS,09/04/2020,V745196,4.15,H W Martin (Traffic Management) Ltd,601.2
Broxtowe Borough Council,http://statistics.data.gov.uk/id/local-authority/37UD,Technical,TECHNICA,Highways,HIGHWYS,Strategic Director / Enviromental Services,Waste Disposal,3208,Equipment,Equip,09/04/2020,V745196,410.85,H W Martin (Traffic Management) Ltd,601.2
Broxtowe Borough Council,http://statistics.data.gov.uk/id/local-authority/37UD,Housing,HOUSING,Tenancy Services,TENSER,Strategic Director / Enviromental Services,Estate Management - North,1254,Other Prem,OthPrem,09/04/2020,V745196,28.38,H W Martin (Traffic Management) Ltd,601.2
Broxtowe Borough Council,http://statistics.data.gov.uk/id/local-authority/37UD,Technical,TECHNICA,Highways,HIGHWYS,Strategic Director / Enviromental Services,Waste Disposal,3208,Equipment,Equip,09/04/2020,V745196,20.64,H W Martin (Traffic Management) Ltd,601.2
Broxtowe Borough Council,http://statistics.data.gov.uk/id/local-authority/37UD,Resources,RES,Resources,RES,Deputy Chief Executive / Property Services,Capital Salaries,9010,Capital Expenditure,CapExp,09/04/2020,V744957,614.13,Hays Specialist Recruitment Ltd,2210.87
Broxtowe Borough Council,http://statistics.data.gov.uk/id/local-authority/37UD,Resources,RES,Resources,RES,Deputy Chief Executive / Property Services,Capital Salaries,9010,Capital Expenditure,CapExp,09/04/2020,V744936,1228.26,Hays Specialist Recruitment Ltd,2210.87
Broxtowe Borough Council,http://statistics.data.gov.uk/id/local-authority/37UD,Housing,HOUSING,Repairs,REPS,Chief Executive  / Housing repairs,Sub Contractors [day to day repairs],3107,Other Supplies & Services,OtherSS,09/04/2020,V744844,721,Impart Links Ltd,865.2
Broxtowe Borough Council,http://statistics.data.gov.uk/id/local-authority/37UD,Works,WORKS,Other Works,WKSOTHER,Strategic Director / Enviromental Services,Basic Pay,10,Employee Direct Costs,Direct,09/04/2020,V744952,518,Inplace Personnel Services Ltd,621.6
Broxtowe Borough Council,http://statistics.data.gov.uk/id/local-authority/37UD,Resources,RES,Resources,RES,Strategic Director / IT Services,Equipment,9004,Capital Expenditure,CapExp,09/04/2020,V745020,1158.06,Integrity360,18056.2
Broxtowe Borough Council,http://statistics.data.gov.uk/id/local-authority/37UD,Resources,RES,Resources,RES,Strategic Director / IT Services,Equipment,9004,Capital Expenditure,CapExp,09/04/2020,V745020,1447.57,Integrity360,18056.2
Broxtowe Borough Council,http://statistics.data.gov.uk/id/local-authority/37UD,Resources,RES,Resources,RES,Strategic Director / IT Services,Equipment,9004,Capital Expenditure,CapExp,09/04/2020,V745020,5391.04,Integrity360,18056.2
Broxtowe Borough Council,http://statistics.data.gov.uk/id/local-authority/37UD,Resources,RES,Resources,RES,Strategic Director / IT Services,Equipment,9004,Capital Expenditure,CapExp,09/04/2020,V745020,7050.17,Integrity360,18056.2
Broxtowe Borough Council,http://statistics.data.gov.uk/id/local-authority/37UD,Housing,HOUS,Homelessness,HOME,Chief Executive  / Housing repairs,Miscellaneous Expenses,3800,Miscellaneous,Msc,09/04/2020,V744895,550,K W T Glass & Glazing Ltd,660
Broxtowe Borough Council,http://statistics.data.gov.uk/id/local-authority/37UD,Works,WORKS,Other Works,WKSOTHER,Deputy Chief Executive / CCTV and Car Parks,Security - Cash Collection,3609,Security Costs,Secure,09/04/2020,V744806,57.36,Kings Armoured Security Services Limited,1197.43
Broxtowe Borough Council,http://statistics.data.gov.uk/id/local-authority/37UD,Works,WORKS,Other Works,WKSOTHER,Deputy Chief Executive / CCTV and Car Parks,Security - Cash Collection,3609,Security Costs,Secure,09/04/2020,V744805,940.5,Kings Armoured Security Services Limited,1197.43
Broxtowe Borough Council,http://statistics.data.gov.uk/id/local-authority/37UD,Works,WORKS,Waste Management,WASTMAN,Strategic Director / Enviromental Services,Publicity,3814,Other Supplies & Services,OtherSS,09/04/2020,V745198,750,KPR Midlink Limited,5209.14
Broxtowe Borough Council,http://statistics.data.gov.uk/id/local-authority/37UD,Chief Executive,CE,ICT & Customer Services,ICT,Strategic Director / IT Services,Hardware Maintenance,3434,Other Supplies & Services,OtherSS,09/04/2020,V745193,1950,KPR Midlink Limited,5209.14
Broxtowe Borough Council,http://statistics.data.gov.uk/id/local-authority/37UD,Chief Executive,CE,ICT & Customer Services,ICT,Strategic Director / IT Services,Hardware Maintenance,3434,Other Supplies & Services,OtherSS,09/04/2020,V745194,1640.95,KPR Midlink Limited,5209.14
Broxtowe Borough Council,http://statistics.data.gov.uk/id/local-authority/37UD,Housing,HOUS,Hostels,HOSTL,Chief Executive  / Housing Operations,Equipment Tools and Materials,3006,Equipment,Equip,09/04/2020,V744930,108.34,Long Eaton Discount Furniture,394.96
Broxtowe Borough Council,http://statistics.data.gov.uk/id/local-authority/37UD,Housing,HOUS,Hostels,HOSTL,Chief Executive  / Housing Operations,Equipment Tools and Materials,3006,Equipment,Equip,09/04/2020,V744930,41.66,Long Eaton Discount Furniture,394.96
Broxtowe Borough Council,http://statistics.data.gov.uk/id/local-authority/37UD,Housing,HOUS,Hostels,HOSTL,Chief Executive  / Housing Operations,Equipment Tools and Materials,3006,Equipment,Equip,09/04/2020,V744930,99.99,Long Eaton Discount Furniture,394.96
Broxtowe Borough Council,http://statistics.data.gov.uk/id/local-authority/37UD,Housing,HOUS,Hostels,HOSTL,Chief Executive  / Housing Operations,Equipment Tools and Materials,3006,Equipment,Equip,09/04/2020,V744930,24.99,Long Eaton Discount Furniture,394.96
Broxtowe Borough Council,http://statistics.data.gov.uk/id/local-authority/37UD,Housing,HOUS,Hostels,HOSTL,Chief Executive  / Housing Operations,Equipment Tools and Materials,3006,Equipment,Equip,09/04/2020,V744930,15,Long Eaton Discount Furniture,394.96
Broxtowe Borough Council,http://statistics.data.gov.uk/id/local-authority/37UD,Housing,HOUS,Hostels,HOSTL,Chief Executive  / Housing Operations,Equipment Tools and Materials,3006,Equipment,Equip,09/04/2020,V744930,41.66,Long Eaton Discount Furniture,394.96
Broxtowe Borough Council,http://statistics.data.gov.uk/id/local-authority/37UD,Works,WORKS,Other Works,WKSOTHER,Strategic Director / Enviromental Services,Premises Costs,1017,Other Maintenance,Maint,09/04/2020,V744821,510,Manor Environmental Service,510
Broxtowe Borough Council,http://statistics.data.gov.uk/id/local-authority/37UD,Works,WORKS,Repairs & Maintenance,REPMAIN,Chief Executive  / Human Res,Agency Staff,500,Employee Direct Costs,Direct,09/04/2020,V744928,3262.51,Matrix,27806.16
Broxtowe Borough Council,http://statistics.data.gov.uk/id/local-authority/37UD,Finance,FINANCE,Legal Services,LEGAL,Chief Executive  / Human Res,Agency Staff,500,Employee Direct Costs,Direct,09/04/2020,V744928,1768,Matrix,27806.16
Broxtowe Borough Council,http://statistics.data.gov.uk/id/local-authority/37UD,Finance,FINANCE,Finance Services,FINANCE,Chief Executive  / Human Res,Agency Staff,500,Employee Direct Costs,Direct,09/04/2020,V744928,1546.76,Matrix,27806.16
Broxtowe Borough Council,http://statistics.data.gov.uk/id/local-authority/37UD,Housing,HOUS,Homelessness,HOME,Chief Executive  / Human Res,Agency Staff,500,Employee Direct Costs,Direct,09/04/2020,V744928,3749.64,Matrix,27806.16
Broxtowe Borough Council,http://statistics.data.gov.uk/id/local-authority/37UD,Housing Revenue Account,HRA,Housing Revenue Account,HRA,Chief Executive  / Human Res,Capital Salaries,9010,Capital Expenditure,CapExp,09/04/2020,V744928,1788.9,Matrix,27806.16
Broxtowe Borough Council,http://statistics.data.gov.uk/id/local-authority/37UD,Works Directorate,DIRWORKS,Works Directorate,DIRWORKS,Chief Executive  / Human Res,Agency Staff,500,Employee Direct Costs,Direct,09/04/2020,V744928,458.1,Matrix,27806.16
Broxtowe Borough Council,http://statistics.data.gov.uk/id/local-authority/37UD,Housing,HOUSING,Repairs,REPS,Chief Executive  / Human Res,Agency Staff,500,Employee Direct Costs,Direct,09/04/2020,V744928,1043.05,Matrix,27806.16
Broxtowe Borough Council,http://statistics.data.gov.uk/id/local-authority/37UD,Works,WORKS,Waste Management,WASTMAN,Chief Executive  / Human Res,Agency Staff,500,Employee Direct Costs,Direct,09/04/2020,V744928,9554.84,Matrix,27806.16
Broxtowe Borough Council,http://statistics.data.gov.uk/id/local-authority/37UD,Technical,TECHNICA,Parks & Recreation Grounds,RECGRD,Strategic Director / Enviromental Services,Premises Costs,1017,Other Maintenance,Maint,09/04/2020,V744961,50,Merrin Builders & Landscaping,595
Broxtowe Borough Council,http://statistics.data.gov.uk/id/local-authority/37UD,Technical,TECHNICA,Allotments,ALLOT,Strategic Director / Enviromental Services,Improvements,1037,Other Prem,OthPrem,09/04/2020,V744955,130,Merrin Builders & Landscaping,595
Broxtowe Borough Council,http://statistics.data.gov.uk/id/local-authority/37UD,Technical,TECHNICA,Parks & Recreation Grounds,RECGRD,Strategic Director / Enviromental Services,Premises Costs,1017,Other Maintenance,Maint,09/04/2020,V744960,415,Merrin Builders & Landscaping,595
Broxtowe Borough Council,http://statistics.data.gov.uk/id/local-authority/37UD,General,GEN,General,GEN,Strategic Director / Enviromental Services,Stores Purchased - April,9360,Stores,Stores,09/04/2020,V744985,50.99,MF Safety & Workwear,1497.93
Broxtowe Borough Council,http://statistics.data.gov.uk/id/local-authority/37UD,General,GEN,General,GEN,Strategic Director / Enviromental Services,Stores Purchased - April,9360,Stores,Stores,09/04/2020,V744985,227.25,MF Safety & Workwear,1497.93
Broxtowe Borough Council,http://statistics.data.gov.uk/id/local-authority/37UD,General,GEN,General,GEN,Strategic Director / Enviromental Services,Stores Purchased - April,9360,Stores,Stores,09/04/2020,V744985,15.15,MF Safety & Workwear,1497.93
Broxtowe Borough Council,http://statistics.data.gov.uk/id/local-authority/37UD,General,GEN,General,GEN,Strategic Director / Enviromental Services,Stores Purchased - April,9360,Stores,Stores,09/04/2020,V744985,28.5,MF Safety & Workwear,1497.93
Broxtowe Borough Council,http://statistics.data.gov.uk/id/local-authority/37UD,General,GEN,General,GEN,Strategic Director / Enviromental Services,Stores Purchased - April,9360,Stores,Stores,09/04/2020,V744985,57,MF Safety & Workwear,1497.93
Broxtowe Borough Council,http://statistics.data.gov.uk/id/local-authority/37UD,General,GEN,General,GEN,Strategic Director / Enviromental Services,Stores Purchased - April,9360,Stores,Stores,09/04/2020,V744985,100,MF Safety & Workwear,1497.93
Broxtowe Borough Council,http://statistics.data.gov.uk/id/local-authority/37UD,General,GEN,General,GEN,Strategic Director / Enviromental Services,Stores Purchased - April,9360,Stores,Stores,09/04/2020,V744986,287.6,MF Safety & Workwear,1497.93
Broxtowe Borough Council,http://statistics.data.gov.uk/id/local-authority/37UD,General,GEN,General,GEN,Strategic Director / Enviromental Services,Stores Purchased - April,9360,Stores,Stores,09/04/2020,V744985,9.6,MF Safety & Workwear,1497.93
Broxtowe Borough Council,http://statistics.data.gov.uk/id/local-authority/37UD,General,GEN,General,GEN,Strategic Director / Enviromental Services,Stores Purchased - April,9360,Stores,Stores,09/04/2020,V745182,31.98,MF Safety & Workwear,1497.93
Broxtowe Borough Council,http://statistics.data.gov.uk/id/local-authority/37UD,General,GEN,General,GEN,Strategic Director / Enviromental Services,Stores Purchased - April,9360,Stores,Stores,09/04/2020,V744985,269.9,MF Safety & Workwear,1497.93
Broxtowe Borough Council,http://statistics.data.gov.uk/id/local-authority/37UD,General,GEN,General,GEN,Strategic Director / Enviromental Services,Stores Purchased - April,9360,Stores,Stores,09/04/2020,V744985,10.4,MF Safety & Workwear,1497.93
Broxtowe Borough Council,http://statistics.data.gov.uk/id/local-authority/37UD,General,GEN,General,GEN,Strategic Director / Enviromental Services,Stores Purchased - April,9360,Stores,Stores,09/04/2020,V744987,127.92,MF Safety & Workwear,1497.93
Broxtowe Borough Council,http://statistics.data.gov.uk/id/local-authority/37UD,General,GEN,General,GEN,Strategic Director / Enviromental Services,Stores Purchased - March,9371,Stores,Stores,09/04/2020,V745186,31.98,MF Safety & Workwear,1497.93
Broxtowe Borough Council,http://statistics.data.gov.uk/id/local-authority/37UD,Housing Revenue Account,HRA,Housing Revenue Account,HRA,Deputy Chief Executive / Property Services,Intangible Fixed Assets,9005,Capital Expenditure,CapExp,09/04/2020,V745204,5090.26,Michael Dyson Associates Limited,6108.31
Broxtowe Borough Council,http://statistics.data.gov.uk/id/local-authority/37UD,Housing Revenue Account,HRA,Housing Revenue Account,HRA,Deputy Chief Executive / Capital Works,New construction,9002,Capital Expenditure,CapExp,09/04/2020,V744804,1938.6,Nationwide Windows and Doors,2326.32
Broxtowe Borough Council,http://statistics.data.gov.uk/id/local-authority/37UD,Works,WORKS,Repairs & Maintenance,REPMAIN,Strategic Director / Enviromental Services,Security - Public Buildings,3626,Security Costs,Secure,09/04/2020,V744877,320,Night Guard Security,422.4
Broxtowe Borough Council,http://statistics.data.gov.uk/id/local-authority/37UD,Works,WORKS,Repairs & Maintenance,REPMAIN,Strategic Director / Enviromental Services,Security - Public Buildings,3626,Security Costs,Secure,09/04/2020,V744877,32,Night Guard Security,422.4
Broxtowe Borough Council,http://statistics.data.gov.uk/id/local-authority/37UD,Technical,TECHNICA,Parks & Recreation Grounds,RECGRD,Strategic Director / Enviromental Services,Grounds Maintenance - External,1205,Other Prem,OthPrem,09/04/2020,V744971,700,Nottinghamshire Wildlife Trust 2,2856
Broxtowe Borough Council,http://statistics.data.gov.uk/id/local-authority/37UD,Technical,TECHNICA,Parks & Recreation Grounds,RECGRD,Strategic Director / Enviromental Services,Grounds Maintenance - External,1205,Other Prem,OthPrem,09/04/2020,V744971,980,Nottinghamshire Wildlife Trust 2,2856
Broxtowe Borough Council,http://statistics.data.gov.uk/id/local-authority/37UD,Technical,TECHNICA,Parks & Recreation Grounds,RECGRD,Strategic Director / Enviromental Services,Grounds Maintenance - External,1205,Other Prem,OthPrem,09/04/2020,V744971,700,Nottinghamshire Wildlife Trust 2,2856
Broxtowe Borough Council,http://statistics.data.gov.uk/id/local-authority/37UD,Housing Revenue Account,HRA,Housing Revenue Account,HRA,Deputy Chief Executive / Capital Works,New construction,9002,Capital Expenditure,CapExp,09/04/2020,V744658,34653.88,Novus Property Solutions Limited,65075.55
Broxtowe Borough Council,http://statistics.data.gov.uk/id/local-authority/37UD,Housing Revenue Account,HRA,Housing Revenue Account,HRA,Deputy Chief Executive / Capital Works,New construction,9002,Capital Expenditure,CapExp,09/04/2020,V744965,19575.74,Novus Property Solutions Limited,65075.55
Broxtowe Borough Council,http://statistics.data.gov.uk/id/local-authority/37UD,Finance,FINANCE,Finance Services,FINANCE,Deputy Chief Executive / Finance Services,Grants,3700,Other Supplies & Services,OtherSS,09/04/2020,V745000,2000,Nuthall Parish Council,122789
Broxtowe Borough Council,http://statistics.data.gov.uk/id/local-authority/37UD,Chief Executive,CE,ICT & Customer Services,ICT,Strategic Director / IT Services,Telephone System Rental/Maint,3405,Other Supplies & Services,OtherSS,09/04/2020,V742665,1429.83,O2 Telefonica UK Limited,1715.8
Broxtowe Borough Council,http://statistics.data.gov.uk/id/local-authority/37UD,Works,WORKS,Repairs & Maintenance,REPMAIN,Strategic Director / Enviromental Services,Sub Contractors [day to day repairs],3107,Other Supplies & Services,OtherSS,09/04/2020,V744823,255.42,P S Marsden (Lawnmower Services) Limited,306.51
Broxtowe Borough Council,http://statistics.data.gov.uk/id/local-authority/37UD,Housing,HOUS,Homelessness,HOME,Chief Executive  / Housing Operations,B&B Invoices,3818,Other Supplies & Services,OtherSS,09/04/2020,V744852,262.5,P&J Hotel + Serviced Apartments,315
Broxtowe Borough Council,http://statistics.data.gov.uk/id/local-authority/37UD,Works,WORKS,Waste Management,WASTMAN,Strategic Director / Enviromental Services,Repairs / Servicing  - Materials,5520,Transport Account,TRANACC,09/04/2020,V745205,290,Partic Motor Spares Ltd,348
Broxtowe Borough Council,http://statistics.data.gov.uk/id/local-authority/37UD,Housing,HOUSING,Repairs,REPS,Chief Executive  / Housing repairs,Sub Contractors [day to day repairs],3107,Other Supplies & Services,OtherSS,09/04/2020,V744890,3340,Pete Burton Building Contractors Ltd,8579.71
Broxtowe Borough Council,http://statistics.data.gov.uk/id/local-authority/37UD,Housing Revenue Account,HRA,Housing Revenue Account,HRA,Deputy Chief Executive / Capital Works,New construction,9002,Capital Expenditure,CapExp,09/04/2020,V744998,210,Pete Burton Building Contractors Ltd,8579.71
Broxtowe Borough Council,http://statistics.data.gov.uk/id/local-authority/37UD,Housing Revenue Account,HRA,Housing Revenue Account,HRA,Deputy Chief Executive / Capital Works,New construction,9002,Capital Expenditure,CapExp,09/04/2020,V744998,165,Pete Burton Building Contractors Ltd,8579.71
Broxtowe Borough Council,http://statistics.data.gov.uk/id/local-authority/37UD,Housing Revenue Account,HRA,Housing Revenue Account,HRA,Deputy Chief Executive / Capital Works,New construction,9002,Capital Expenditure,CapExp,09/04/2020,V744998,60,Pete Burton Building Contractors Ltd,8579.71
Broxtowe Borough Council,http://statistics.data.gov.uk/id/local-authority/37UD,Housing Revenue Account,HRA,Housing Revenue Account,HRA,Deputy Chief Executive / Capital Works,New construction,9002,Capital Expenditure,CapExp,09/04/2020,V744998,60,Pete Burton Building Contractors Ltd,8579.71
Broxtowe Borough Council,http://statistics.data.gov.uk/id/local-authority/37UD,Housing,HOUSING,Repairs,REPS,Chief Executive  / Housing repairs,Sub Contractors [day to day repairs],3107,Other Supplies & Services,OtherSS,09/04/2020,V744824,970,Pete Burton Building Contractors Ltd,8579.71
Broxtowe Borough Council,http://statistics.data.gov.uk/id/local-authority/37UD,Housing,HOUSING,Repairs,REPS,Chief Executive  / Housing repairs,Sub Contractors [day to day repairs],3107,Other Supplies & Services,OtherSS,09/04/2020,V744886,840,Pete Burton Building Contractors Ltd,8579.71
Broxtowe Borough Council,http://statistics.data.gov.uk/id/local-authority/37UD,Housing Revenue Account,HRA,Housing Revenue Account,HRA,Deputy Chief Executive / Capital Works,New construction,9002,Capital Expenditure,CapExp,09/04/2020,V744998,226.8,Pete Burton Building Contractors Ltd,8579.71
Broxtowe Borough Council,http://statistics.data.gov.uk/id/local-authority/37UD,Housing Revenue Account,HRA,Housing Revenue Account,HRA,Deputy Chief Executive / Capital Works,New construction,9002,Capital Expenditure,CapExp,09/04/2020,V744998,66,Pete Burton Building Contractors Ltd,8579.71
Broxtowe Borough Council,http://statistics.data.gov.uk/id/local-authority/37UD,Housing Revenue Account,HRA,Housing Revenue Account,HRA,Deputy Chief Executive / Capital Works,New construction,9002,Capital Expenditure,CapExp,09/04/2020,V744998,172,Pete Burton Building Contractors Ltd,8579.71
Broxtowe Borough Council,http://statistics.data.gov.uk/id/local-authority/37UD,Housing Revenue Account,HRA,Housing Revenue Account,HRA,Deputy Chief Executive / Capital Works,New construction,9002,Capital Expenditure,CapExp,09/04/2020,V744998,165,Pete Burton Building Contractors Ltd,8579.71
Broxtowe Borough Council,http://statistics.data.gov.uk/id/local-authority/37UD,Housing,HOUSING,Repairs,REPS,Chief Executive  / Housing repairs,Sub Contractors [day to day repairs],3107,Other Supplies & Services,OtherSS,09/04/2020,V744704,40,Pete Burton Building Contractors Ltd,8579.71
Broxtowe Borough Council,http://statistics.data.gov.uk/id/local-authority/37UD,Housing Revenue Account,HRA,Housing Revenue Account,HRA,Deputy Chief Executive / Capital Works,New construction,9002,Capital Expenditure,CapExp,09/04/2020,V744998,375,Pete Burton Building Contractors Ltd,8579.71
Broxtowe Borough Council,http://statistics.data.gov.uk/id/local-authority/37UD,Housing Revenue Account,HRA,Housing Revenue Account,HRA,Deputy Chief Executive / Capital Works,New construction,9002,Capital Expenditure,CapExp,09/04/2020,V744998,28.96,Pete Burton Building Contractors Ltd,8579.71
Broxtowe Borough Council,http://statistics.data.gov.uk/id/local-authority/37UD,Housing Revenue Account,HRA,Housing Revenue Account,HRA,Deputy Chief Executive / Capital Works,New construction,9002,Capital Expenditure,CapExp,09/04/2020,V744998,175,Pete Burton Building Contractors Ltd,8579.71
Broxtowe Borough Council,http://statistics.data.gov.uk/id/local-authority/37UD,Housing Revenue Account,HRA,Housing Revenue Account,HRA,Deputy Chief Executive / Capital Works,New construction,9002,Capital Expenditure,CapExp,09/04/2020,V744998,80,Pete Burton Building Contractors Ltd,8579.71
Broxtowe Borough Council,http://statistics.data.gov.uk/id/local-authority/37UD,Housing Revenue Account,HRA,Housing Revenue Account,HRA,Deputy Chief Executive / Capital Works,New construction,9002,Capital Expenditure,CapExp,09/04/2020,V744998,66,Pete Burton Building Contractors Ltd,8579.71
Broxtowe Borough Council,http://statistics.data.gov.uk/id/local-authority/37UD,Housing Revenue Account,HRA,Housing Revenue Account,HRA,Deputy Chief Executive / Capital Works,New construction,9002,Capital Expenditure,CapExp,09/04/2020,V744998,110,Pete Burton Building Contractors Ltd,8579.71
Broxtowe Borough Council,http://statistics.data.gov.uk/id/local-authority/37UD,Finance,FINANCE,Regulatory Services,REG,Chief Executive  / Enviromental Health,Work in Default,3523,Other Supplies & Services,OtherSS,09/04/2020,V744956,2494.8,Premier Pets Hotel,3470.04
Broxtowe Borough Council,http://statistics.data.gov.uk/id/local-authority/37UD,Finance,FINANCE,Regulatory Services,REG,Chief Executive  / Enviromental Health,Work in Default,3523,Other Supplies & Services,OtherSS,09/04/2020,V744956,396.9,Premier Pets Hotel,3470.04
Broxtowe Borough Council,http://statistics.data.gov.uk/id/local-authority/37UD,Finance,FINANCE,Admin Services,ADMIN,Strategic Director / Administrative Services,Printing (External),3302,Printing,Print,09/04/2020,V744820,880,Print Image Network Limited (PRINT),1056
Broxtowe Borough Council,http://statistics.data.gov.uk/id/local-authority/37UD,Community Development,COMDEV,Other Community Development,COMOTHER,Deputy Chief Executive / CCTV and Car Parks,CCTV Monitoring Contract,4060,Other Third Party Payments,OtherTP,09/04/2020,V745030,14378.57,Profile Security Services Ltd,17254.28
Broxtowe Borough Council,http://statistics.data.gov.uk/id/local-authority/37UD,Finance,FINANCE,Finance Services,FINANCE,Deputy Chief Executive / Finance Services,Grants,3700,Other Supplies & Services,OtherSS,09/04/2020,V745019,2000,Pulp Friction Smoothie Bar Project,2000
Broxtowe Borough Council,http://statistics.data.gov.uk/id/local-authority/37UD,Works Directorate,DIRWORKS,Works Directorate,DIRWORKS,Strategic Director / Administrative Services,Course & Examination Fees,720,Indirect Employee Exp Oncosts,Oncosts,09/04/2020,V744802,58.08,Reliance High Tech Limited,336.86
Broxtowe Borough Council,http://statistics.data.gov.uk/id/local-authority/37UD,Works,WORKS,Other Works,WKSOTHER,Strategic Director / Administrative Services,Printing & Stationery,3300,Printing,Print,09/04/2020,V744802,38.72,Reliance High Tech Limited,336.86
Broxtowe Borough Council,http://statistics.data.gov.uk/id/local-authority/37UD,Housing,HOUSING,Housing Directorate,DIRHSG,Strategic Director / Administrative Services,Course & Examination Fees,720,Indirect Employee Exp Oncosts,Oncosts,09/04/2020,V744802,38.72,Reliance High Tech Limited,336.86
Broxtowe Borough Council,http://statistics.data.gov.uk/id/local-authority/37UD,Technical,TECHNICA,Highways,HIGHWYS,Strategic Director / Administrative Services,Equipment,3058,Equipment,Equip,09/04/2020,V744802,9.68,Reliance High Tech Limited,336.86
Broxtowe Borough Council,http://statistics.data.gov.uk/id/local-authority/37UD,Chief Executive,CE,Human Resources,HR,Strategic Director / Administrative Services,Miscellaneous Expenses,3800,Miscellaneous,Msc,09/04/2020,V744802,9.68,Reliance High Tech Limited,336.86
Broxtowe Borough Council,http://statistics.data.gov.uk/id/local-authority/37UD,Finance,FINANCE,Regulatory Services,REG,Strategic Director / Administrative Services,Miscellaneous Expenses,3800,Miscellaneous,Msc,09/04/2020,V744802,9.68,Reliance High Tech Limited,336.86
Broxtowe Borough Council,http://statistics.data.gov.uk/id/local-authority/37UD,Finance,FINANCE,Regulatory Services,REG,Strategic Director / Administrative Services,Course & Examination Fees,720,Indirect Employee Exp Oncosts,Oncosts,09/04/2020,V744802,29.04,Reliance High Tech Limited,336.86
Broxtowe Borough Council,http://statistics.data.gov.uk/id/local-authority/37UD,Finance,FINANCE,Regulatory Services,REG,Strategic Director / Administrative Services,Course & Examination Fees,720,Indirect Employee Exp Oncosts,Oncosts,09/04/2020,V744802,48.4,Reliance High Tech Limited,336.86
Broxtowe Borough Council,http://statistics.data.gov.uk/id/local-authority/37UD,Bramcote Crematorium,BCREM,Bramcote Crematorium,BCREM,Strategic Director / Administrative Services,Training Travel & Subsistence,770,Indirect Employee Exp Oncosts,Oncosts,09/04/2020,V744802,9.68,Reliance High Tech Limited,336.86
Broxtowe Borough Council,http://statistics.data.gov.uk/id/local-authority/37UD,Community Development,COMDEV,Other Community Development,COMOTHER,Strategic Director / Administrative Services,Crime,3941,Other Supplies & Services,OtherSS,09/04/2020,V744802,29.04,Reliance High Tech Limited,336.86
Broxtowe Borough Council,http://statistics.data.gov.uk/id/local-authority/37UD,General,GEN,General,GEN,Strategic Director / Enviromental Services,Stores Purchased - March,9371,Stores,Stores,09/04/2020,V744990,535.59,Robert Pochin Limited,642.71
Broxtowe Borough Council,http://statistics.data.gov.uk/id/local-authority/37UD,Finance,FINANCE,Finance Services,FINANCE,Deputy Chief Executive / Finance Services,Repairs & Maintenance,1000,Central Pot,Central,09/04/2020,V744873,230,Samson Technical Services,2088.47
Broxtowe Borough Council,http://statistics.data.gov.uk/id/local-authority/37UD,Bramcote Crematorium,BCREM,Bramcote Crematorium,BCREM,Deputy Chief Executive / Bramcote Crematorium,Repairs & Maintenance,1000,Central Pot,Central,09/04/2020,V744872,211.6,Samson Technical Services,2088.47
Broxtowe Borough Council,http://statistics.data.gov.uk/id/local-authority/37UD,Bramcote Crematorium,BCREM,Bramcote Crematorium,BCREM,Deputy Chief Executive / Bramcote Crematorium,Repairs & Maintenance,1000,Central Pot,Central,09/04/2020,V744869,163,Samson Technical Services,2088.47
Broxtowe Borough Council,http://statistics.data.gov.uk/id/local-authority/37UD,Works,WORKS,Other Works,WKSOTHER,Strategic Director / Enviromental Services,Premises Costs,1017,Other Maintenance,Maint,09/04/2020,V744876,590.79,Samson Technical Services,2088.47
Broxtowe Borough Council,http://statistics.data.gov.uk/id/local-authority/37UD,Works,WORKS,Other Works,WKSOTHER,Strategic Director / Enviromental Services,Premises Costs,1017,Other Maintenance,Maint,09/04/2020,V744874,545,Samson Technical Services,2088.47
Broxtowe Borough Council,http://statistics.data.gov.uk/id/local-authority/37UD,Works,WORKS,Other Works,WKSOTHER,Strategic Director / Enviromental Business and Project,Electrical Testing,1043,Central Pot,Central,09/04/2020,V744864,8,Slater Electrical Serv Limited,776.16
Broxtowe Borough Council,http://statistics.data.gov.uk/id/local-authority/37UD,Technical,TECHNICA,Highways,HIGHWYS,Deputy Chief Executive / Property Services,Street Lighting Requirements,1201,Other Prem,OthPrem,09/04/2020,V744868,138.8,Slater Electrical Serv Limited,776.16
Broxtowe Borough Council,http://statistics.data.gov.uk/id/local-authority/37UD,Technical,TECHNICA,Parks & Recreation Grounds,RECGRD,Strategic Director / Enviromental Business and Project,Repairs & Maintenance,1000,Central Pot,Central,09/04/2020,V744864,9,Slater Electrical Serv Limited,776.16
Broxtowe Borough Council,http://statistics.data.gov.uk/id/local-authority/37UD,Technical,TECHNICA,Parks & Recreation Grounds,RECGRD,Strategic Director / Enviromental Business and Project,Repairs & Maintenance,1000,Central Pot,Central,09/04/2020,V744864,4,Slater Electrical Serv Limited,776.16
Broxtowe Borough Council,http://statistics.data.gov.uk/id/local-authority/37UD,Technical,TECHNICA,Parks & Recreation Grounds,RECGRD,Strategic Director / Enviromental Business and Project,Repairs & Maintenance,1000,Central Pot,Central,09/04/2020,V744864,7,Slater Electrical Serv Limited,776.16
Broxtowe Borough Council,http://statistics.data.gov.uk/id/local-authority/37UD,Technical,TECHNICA,Parks & Recreation Grounds,RECGRD,Strategic Director / Enviromental Business and Project,Repairs & Maintenance,1000,Central Pot,Central,09/04/2020,V744864,8,Slater Electrical Serv Limited,776.16
Broxtowe Borough Council,http://statistics.data.gov.uk/id/local-authority/37UD,Works,WORKS,Repairs & Maintenance,REPMAIN,Strategic Director / Enviromental Business and Project,Premises Costs,1017,Other Maintenance,Maint,09/04/2020,V744864,469,Slater Electrical Serv Limited,776.16
Broxtowe Borough Council,http://statistics.data.gov.uk/id/local-authority/37UD,Technical,TECHNICA,Parks & Recreation Grounds,RECGRD,Strategic Director / Enviromental Business and Project,Repairs & Maintenance,1000,Central Pot,Central,09/04/2020,V744864,3,Slater Electrical Serv Limited,776.16
Broxtowe Borough Council,http://statistics.data.gov.uk/id/local-authority/37UD,Control Accounts,CONTROL,Payroll,PAY,Chief Executive  / Human Res,Childcare Vouchers,9181,Control,Crtl,09/04/2020,V745003,2163,Sodexo Motivation Solutions (Child Care Vouchers),2240.87
Broxtowe Borough Council,http://statistics.data.gov.uk/id/local-authority/37UD,Control Accounts,CONTROL,Payroll,PAY,Chief Executive  / Human Res,Childcare Vouchers,9181,Control,Crtl,09/04/2020,V745003,64.89,Sodexo Motivation Solutions (Child Care Vouchers),2240.87
Broxtowe Borough Council,http://statistics.data.gov.uk/id/local-authority/37UD,Housing Revenue Account,HRA,Housing Revenue Account,HRA,Deputy Chief Executive / Property Services,Other Capital Expenditure,9007,Capital Expenditure,CapExp,09/04/2020,V744849,1595,Soul Architects Ltd,1914
Broxtowe Borough Council,http://statistics.data.gov.uk/id/local-authority/37UD,General,GEN,General,GEN,Strategic Director / Enviromental Services,Stores Purchased - April,9360,Stores,Stores,09/04/2020,V745197,3660,SSI Schaefer,16398
Broxtowe Borough Council,http://statistics.data.gov.uk/id/local-authority/37UD,General,GEN,General,GEN,Strategic Director / Enviromental Services,Stores Purchased - April,9360,Stores,Stores,09/04/2020,V745197,3600,SSI Schaefer,16398
Broxtowe Borough Council,http://statistics.data.gov.uk/id/local-authority/37UD,General,GEN,General,GEN,Strategic Director / Enviromental Services,Stores Purchased - April,9360,Stores,Stores,09/04/2020,V745197,1830,SSI Schaefer,16398
Broxtowe Borough Council,http://statistics.data.gov.uk/id/local-authority/37UD,General,GEN,General,GEN,Strategic Director / Enviromental Services,Stores Purchased - April,9360,Stores,Stores,09/04/2020,V745197,4575,SSI Schaefer,16398
Broxtowe Borough Council,http://statistics.data.gov.uk/id/local-authority/37UD,Housing Revenue Account,HRA,Housing Revenue Account,HRA,Deputy Chief Executive / Capital Works,New construction,9002,Capital Expenditure,CapExp,09/04/2020,V744951,6151.34,Sustainable Building Services UK Ltd,29910.68
Broxtowe Borough Council,http://statistics.data.gov.uk/id/local-authority/37UD,Housing Revenue Account,HRA,Housing Revenue Account,HRA,Deputy Chief Executive / Capital Works,New construction,9002,Capital Expenditure,CapExp,09/04/2020,V744951,21456.26,Sustainable Building Services UK Ltd,29910.68
Broxtowe Borough Council,http://statistics.data.gov.uk/id/local-authority/37UD,Works Directorate,DIRWORKS,Works Directorate,DIRWORKS,Strategic Director / Enviromental Services,Printing & Stationery,3300,Printing,Print,09/04/2020,V744815,528,Targettip T/A Phase,1434
Broxtowe Borough Council,http://statistics.data.gov.uk/id/local-authority/37UD,Works,WORKS,Waste Management,WASTMAN,Strategic Director / Enviromental Services,Publicity,3814,Other Supplies & Services,OtherSS,09/04/2020,V744816,667,Targettip T/A Phase,1434
Broxtowe Borough Council,http://statistics.data.gov.uk/id/local-authority/37UD,General,GEN,General,GEN,Strategic Director / Enviromental Services,Stores Purchased - March,9371,Stores,Stores,09/04/2020,V744791,15.86,The Beck Company,2372.24
Broxtowe Borough Council,http://statistics.data.gov.uk/id/local-authority/37UD,General,GEN,General,GEN,Strategic Director / Enviromental Services,Stores Purchased - March,9371,Stores,Stores,09/04/2020,V744791,126.1,The Beck Company,2372.24
Broxtowe Borough Council,http://statistics.data.gov.uk/id/local-authority/37UD,General,GEN,General,GEN,Strategic Director / Enviromental Services,Stores Purchased - April,9360,Stores,Stores,09/04/2020,V744979,310,The Beck Company,2372.24
Broxtowe Borough Council,http://statistics.data.gov.uk/id/local-authority/37UD,General,GEN,General,GEN,Strategic Director / Enviromental Services,Stores Purchased - March,9371,Stores,Stores,09/04/2020,V744791,20.56,The Beck Company,2372.24
Broxtowe Borough Council,http://statistics.data.gov.uk/id/local-authority/37UD,General,GEN,General,GEN,Strategic Director / Enviromental Services,Stores Purchased - March,9371,Stores,Stores,09/04/2020,V744980,349.2,The Beck Company,2372.24
Broxtowe Borough Council,http://statistics.data.gov.uk/id/local-authority/37UD,General,GEN,General,GEN,Strategic Director / Enviromental Services,Stores Purchased - March,9371,Stores,Stores,09/04/2020,V744791,44.1,The Beck Company,2372.24
Broxtowe Borough Council,http://statistics.data.gov.uk/id/local-authority/37UD,General,GEN,General,GEN,Strategic Director / Enviromental Services,Stores Purchased - March,9371,Stores,Stores,09/04/2020,V744791,237.55,The Beck Company,2372.24
Broxtowe Borough Council,http://statistics.data.gov.uk/id/local-authority/37UD,General,GEN,General,GEN,Strategic Director / Enviromental Services,Stores Purchased - March,9371,Stores,Stores,09/04/2020,V744791,315.25,The Beck Company,2372.24
Broxtowe Borough Council,http://statistics.data.gov.uk/id/local-authority/37UD,General,GEN,General,GEN,Strategic Director / Enviromental Services,Stores Purchased - March,9371,Stores,Stores,09/04/2020,V744791,155,The Beck Company,2372.24
Broxtowe Borough Council,http://statistics.data.gov.uk/id/local-authority/37UD,General,GEN,General,GEN,Strategic Director / Enviromental Services,Stores Purchased - March,9371,Stores,Stores,09/04/2020,V744791,52.7,The Beck Company,2372.24
Broxtowe Borough Council,http://statistics.data.gov.uk/id/local-authority/37UD,General,GEN,General,GEN,Strategic Director / Enviromental Services,Stores Purchased - April,9360,Stores,Stores,09/04/2020,V744979,113,The Beck Company,2372.24
Broxtowe Borough Council,http://statistics.data.gov.uk/id/local-authority/37UD,General,GEN,General,GEN,Strategic Director / Enviromental Services,Stores Purchased - March,9371,Stores,Stores,09/04/2020,V744791,237.55,The Beck Company,2372.24
Broxtowe Borough Council,http://statistics.data.gov.uk/id/local-authority/37UD,Finance,FINANCE,Legal Services,LEGAL,Chief Executive  / Legal Services,Books and Publications,3357,Books,Books,09/04/2020,V745199,8641.76,Thomson Reuters,18508.42
Broxtowe Borough Council,http://statistics.data.gov.uk/id/local-authority/37UD,Finance,FINANCE,Admin Services,ADMIN,Strategic Director / Administrative Services,Books and Publications,3357,Books,Books,09/04/2020,V744966,132.5,Thomson Reuters,18508.42
Broxtowe Borough Council,http://statistics.data.gov.uk/id/local-authority/37UD,Finance,FINANCE,Legal Services,LEGAL,Chief Executive  / Legal Services,Books and Publications,3357,Books,Books,09/04/2020,V745200,2783.87,Thomson Reuters,18508.42
Broxtowe Borough Council,http://statistics.data.gov.uk/id/local-authority/37UD,Finance,FINANCE,Legal Services,LEGAL,Chief Executive  / Legal Services,Books and Publications,3357,Books,Books,09/04/2020,V745200,3755.14,Thomson Reuters,18508.42
Broxtowe Borough Council,http://statistics.data.gov.uk/id/local-authority/37UD,Finance,FINANCE,Admin Services,ADMIN,Strategic Director / Administrative Services,Books and Publications,3357,Books,Books,09/04/2020,V744966,132.5,Thomson Reuters,18508.42
Broxtowe Borough Council,http://statistics.data.gov.uk/id/local-authority/37UD,Community Development,COMDEV,Industrial Development,INDDEV,Deputy Chief Executive / Property Services,Electricity,1310,Utilities,Utility,09/04/2020,V744944,289.77,Total Gas & Power Ltd,21132.99
Broxtowe Borough Council,http://statistics.data.gov.uk/id/local-authority/37UD,Housing,HOUSING,Warden Schemes,WARD,Chief Executive  / Income Management,Electricity,1310,Utilities,Utility,09/04/2020,V744887,1901.76,Total Gas & Power Ltd,21132.99
Broxtowe Borough Council,http://statistics.data.gov.uk/id/local-authority/37UD,Housing,HOUSING,Warden Schemes,WARD,Chief Executive  / Income Management,Electricity,1310,Utilities,Utility,09/04/2020,V744907,212.88,Total Gas & Power Ltd,21132.99
Broxtowe Borough Council,http://statistics.data.gov.uk/id/local-authority/37UD,Housing,HOUSING,Warden Schemes,WARD,Chief Executive  / Income Management,Electricity,1310,Utilities,Utility,09/04/2020,V744920,75.56,Total Gas & Power Ltd,21132.99
Broxtowe Borough Council,http://statistics.data.gov.uk/id/local-authority/37UD,Housing,HOUSING,Warden Schemes,WARD,Chief Executive  / Income Management,Electricity,1310,Utilities,Utility,09/04/2020,V744905,12.81,Total Gas & Power Ltd,21132.99
Broxtowe Borough Council,http://statistics.data.gov.uk/id/local-authority/37UD,Housing,HOUSING,Warden Schemes,WARD,Chief Executive  / Income Management,Electricity,1310,Utilities,Utility,09/04/2020,V744900,296.32,Total Gas & Power Ltd,21132.99
Broxtowe Borough Council,http://statistics.data.gov.uk/id/local-authority/37UD,Housing,HOUSING,Warden Schemes,WARD,Chief Executive  / Income Management,Electricity,1310,Utilities,Utility,09/04/2020,V744921,390.16,Total Gas & Power Ltd,21132.99
Broxtowe Borough Council,http://statistics.data.gov.uk/id/local-authority/37UD,Housing,HOUSING,Warden Schemes,WARD,Chief Executive  / Income Management,Electricity,1310,Utilities,Utility,09/04/2020,V744889,133.32,Total Gas & Power Ltd,21132.99
Broxtowe Borough Council,http://statistics.data.gov.uk/id/local-authority/37UD,Housing,HOUSING,Warden Schemes,WARD,Chief Executive  / Income Management,Electricity,1310,Utilities,Utility,09/04/2020,V744914,160.85,Total Gas & Power Ltd,21132.99
Broxtowe Borough Council,http://statistics.data.gov.uk/id/local-authority/37UD,Housing,HOUSING,Warden Schemes,WARD,Chief Executive  / Income Management,Access Lighting to Flats,1352,Utilities,Utility,09/04/2020,V744941,17.42,Total Gas & Power Ltd,21132.99
Broxtowe Borough Council,http://statistics.data.gov.uk/id/local-authority/37UD,Housing,HOUS,Hostels,HOSTL,Chief Executive  / Housing Operations,Electricity,1310,Utilities,Utility,09/04/2020,V744948,96.92,Total Gas & Power Ltd,21132.99
Broxtowe Borough Council,http://statistics.data.gov.uk/id/local-authority/37UD,Housing,HOUS,Hostels,HOSTL,Chief Executive  / Housing Operations,Electricity,1310,Utilities,Utility,09/04/2020,V744949,40.5,Total Gas & Power Ltd,21132.99
Broxtowe Borough Council,http://statistics.data.gov.uk/id/local-authority/37UD,Housing,HOUS,Hostels,HOSTL,Chief Executive  / Housing Operations,Electricity,1310,Utilities,Utility,09/04/2020,V744945,89.93,Total Gas & Power Ltd,21132.99
Broxtowe Borough Council,http://statistics.data.gov.uk/id/local-authority/37UD,Finance,FINANCE,Finance Services,FINANCE,Deputy Chief Executive / Property Services,Electricity,1310,Utilities,Utility,09/04/2020,V744932,40.7,Total Gas & Power Ltd,21132.99
Broxtowe Borough Council,http://statistics.data.gov.uk/id/local-authority/37UD,Finance,FINANCE,Admin Buildings,ADBLDG,Strategic Director / Administrative Services,Electricity,1310,Utilities,Utility,09/04/2020,V744929,6903.84,Total Gas & Power Ltd,21132.99
Broxtowe Borough Council,http://statistics.data.gov.uk/id/local-authority/37UD,Finance,FINANCE,Admin Buildings,ADBLDG,Strategic Director / Administrative Services,Electricity,1310,Utilities,Utility,09/04/2020,V742696,1592.36,Total Gas & Power Ltd,21132.99
Broxtowe Borough Council,http://statistics.data.gov.uk/id/local-authority/37UD,Finance,FINANCE,Finance Services,FINANCE,Deputy Chief Executive / Property Services,Electricity,1310,Utilities,Utility,09/04/2020,V744933,82,Total Gas & Power Ltd,21132.99
Broxtowe Borough Council,http://statistics.data.gov.uk/id/local-authority/37UD,Housing,HOUSING,Warden Schemes,WARD,Chief Executive  / Income Management,Electricity,1310,Utilities,Utility,09/04/2020,V744910,98.78,Total Gas & Power Ltd,21132.99
Broxtowe Borough Council,http://statistics.data.gov.uk/id/local-authority/37UD,Housing,HOUSING,Warden Schemes,WARD,Chief Executive  / Income Management,Electricity,1310,Utilities,Utility,09/04/2020,V744892,1096.13,Total Gas & Power Ltd,21132.99
Broxtowe Borough Council,http://statistics.data.gov.uk/id/local-authority/37UD,Housing,HOUSING,Warden Schemes,WARD,Chief Executive  / Income Management,Electricity,1310,Utilities,Utility,09/04/2020,V744894,12.8,Total Gas & Power Ltd,21132.99
Broxtowe Borough Council,http://statistics.data.gov.uk/id/local-authority/37UD,Housing,HOUSING,Warden Schemes,WARD,Chief Executive  / Income Management,Electricity,1310,Utilities,Utility,09/04/2020,V744919,198.72,Total Gas & Power Ltd,21132.99
Broxtowe Borough Council,http://statistics.data.gov.uk/id/local-authority/37UD,Housing,HOUSING,Warden Schemes,WARD,Chief Executive  / Income Management,Electricity,1310,Utilities,Utility,09/04/2020,V744912,8.56,Total Gas & Power Ltd,21132.99
Broxtowe Borough Council,http://statistics.data.gov.uk/id/local-authority/37UD,Housing,HOUSING,Warden Schemes,WARD,Chief Executive  / Income Management,Electricity,1310,Utilities,Utility,09/04/2020,V744897,44.12,Total Gas & Power Ltd,21132.99
Broxtowe Borough Council,http://statistics.data.gov.uk/id/local-authority/37UD,Housing,HOUSING,Warden Schemes,WARD,Chief Executive  / Income Management,Electricity,1310,Utilities,Utility,09/04/2020,V744899,20.53,Total Gas & Power Ltd,21132.99
Broxtowe Borough Council,http://statistics.data.gov.uk/id/local-authority/37UD,Housing,HOUSING,Warden Schemes,WARD,Chief Executive  / Income Management,Electricity,1310,Utilities,Utility,09/04/2020,V744917,577.3,Total Gas & Power Ltd,21132.99
Broxtowe Borough Council,http://statistics.data.gov.uk/id/local-authority/37UD,Housing,HOUSING,Warden Schemes,WARD,Chief Executive  / Income Management,Electricity,1310,Utilities,Utility,09/04/2020,V744903,32.14,Total Gas & Power Ltd,21132.99
Broxtowe Borough Council,http://statistics.data.gov.uk/id/local-authority/37UD,Housing,HOUSING,Warden Schemes,WARD,Chief Executive  / Income Management,Electricity,1310,Utilities,Utility,09/04/2020,V744875,312.15,Total Gas & Power Ltd,21132.99
Broxtowe Borough Council,http://statistics.data.gov.uk/id/local-authority/37UD,Housing,HOUSING,Warden Schemes,WARD,Chief Executive  / Income Management,Electricity,1310,Utilities,Utility,09/04/2020,V744922,947.55,Total Gas & Power Ltd,21132.99
Broxtowe Borough Council,http://statistics.data.gov.uk/id/local-authority/37UD,Community Development,COMDEV,Industrial Development,INDDEV,Deputy Chief Executive / Property Services,Electricity,1310,Utilities,Utility,09/04/2020,V744943,16.9,Total Gas & Power Ltd,21132.99
Broxtowe Borough Council,http://statistics.data.gov.uk/id/local-authority/37UD,Housing,HOUSING,Warden Schemes,WARD,Chief Executive  / Income Management,Electricity,1310,Utilities,Utility,09/04/2020,V744915,167.13,Total Gas & Power Ltd,21132.99
Broxtowe Borough Council,http://statistics.data.gov.uk/id/local-authority/37UD,Housing,HOUSING,Warden Schemes,WARD,Chief Executive  / Income Management,Electricity,1310,Utilities,Utility,09/04/2020,V744923,31.6,Total Gas & Power Ltd,21132.99
Broxtowe Borough Council,http://statistics.data.gov.uk/id/local-authority/37UD,Housing,HOUSING,Warden Schemes,WARD,Chief Executive  / Income Management,Electricity,1310,Utilities,Utility,09/04/2020,V744909,193.53,Total Gas & Power Ltd,21132.99
Broxtowe Borough Council,http://statistics.data.gov.uk/id/local-authority/37UD,Housing,HOUSING,Warden Schemes,WARD,Chief Executive  / Income Management,Electricity,1310,Utilities,Utility,09/04/2020,V744904,43.68,Total Gas & Power Ltd,21132.99
Broxtowe Borough Council,http://statistics.data.gov.uk/id/local-authority/37UD,Housing,HOUSING,Warden Schemes,WARD,Chief Executive  / Income Management,Electricity,1310,Utilities,Utility,09/04/2020,V744906,50.79,Total Gas & Power Ltd,21132.99
Broxtowe Borough Council,http://statistics.data.gov.uk/id/local-authority/37UD,Housing,HOUS,Hostels,HOSTL,Chief Executive  / Housing Operations,Electricity,1310,Utilities,Utility,09/04/2020,V744940,38.23,Total Gas & Power Ltd,21132.99
Broxtowe Borough Council,http://statistics.data.gov.uk/id/local-authority/37UD,Housing,HOUS,Hostels,HOSTL,Chief Executive  / Housing Operations,Electricity,1310,Utilities,Utility,09/04/2020,V744947,116.76,Total Gas & Power Ltd,21132.99
Broxtowe Borough Council,http://statistics.data.gov.uk/id/local-authority/37UD,Housing,HOUS,Hostels,HOSTL,Chief Executive  / Housing Operations,Electricity,1310,Utilities,Utility,09/04/2020,V744946,26.03,Total Gas & Power Ltd,21132.99
Broxtowe Borough Council,http://statistics.data.gov.uk/id/local-authority/37UD,Community Development,COMDEV,Industrial Development,INDDEV,Deputy Chief Executive / Industrial rents,Electricity,1310,Utilities,Utility,09/04/2020,V744942,25.3,Total Gas & Power Ltd,21132.99
Broxtowe Borough Council,http://statistics.data.gov.uk/id/local-authority/37UD,Finance,FINANCE,Finance Services,FINANCE,Deputy Chief Executive / Property Services,Electricity,1310,Utilities,Utility,09/04/2020,V744931,55.04,Total Gas & Power Ltd,21132.99
Broxtowe Borough Council,http://statistics.data.gov.uk/id/local-authority/37UD,Housing,HOUSING,Warden Schemes,WARD,Chief Executive  / Income Management,Electricity,1310,Utilities,Utility,09/04/2020,V744918,387.9,Total Gas & Power Ltd,21132.99
Broxtowe Borough Council,http://statistics.data.gov.uk/id/local-authority/37UD,Housing,HOUSING,Warden Schemes,WARD,Chief Executive  / Income Management,Electricity,1310,Utilities,Utility,09/04/2020,V744902,201.08,Total Gas & Power Ltd,21132.99
Broxtowe Borough Council,http://statistics.data.gov.uk/id/local-authority/37UD,Housing,HOUSING,Warden Schemes,WARD,Chief Executive  / Income Management,Electricity,1310,Utilities,Utility,09/04/2020,V744913,28.08,Total Gas & Power Ltd,21132.99
Broxtowe Borough Council,http://statistics.data.gov.uk/id/local-authority/37UD,Housing,HOUSING,Warden Schemes,WARD,Chief Executive  / Income Management,Electricity,1310,Utilities,Utility,09/04/2020,V744898,719.37,Total Gas & Power Ltd,21132.99
Broxtowe Borough Council,http://statistics.data.gov.uk/id/local-authority/37UD,Housing,HOUSING,Warden Schemes,WARD,Chief Executive  / Income Management,Electricity,1310,Utilities,Utility,09/04/2020,V744916,223,Total Gas & Power Ltd,21132.99
Broxtowe Borough Council,http://statistics.data.gov.uk/id/local-authority/37UD,Housing,HOUSING,Warden Schemes,WARD,Chief Executive  / Income Management,Electricity,1310,Utilities,Utility,09/04/2020,V744908,86.24,Total Gas & Power Ltd,21132.99
Broxtowe Borough Council,http://statistics.data.gov.uk/id/local-authority/37UD,Housing,HOUSING,Warden Schemes,WARD,Chief Executive  / Income Management,Electricity,1310,Utilities,Utility,09/04/2020,V744891,34.38,Total Gas & Power Ltd,21132.99
Broxtowe Borough Council,http://statistics.data.gov.uk/id/local-authority/37UD,Housing,HOUSING,Warden Schemes,WARD,Chief Executive  / Income Management,Electricity,1310,Utilities,Utility,09/04/2020,V744896,129.48,Total Gas & Power Ltd,21132.99
Broxtowe Borough Council,http://statistics.data.gov.uk/id/local-authority/37UD,Housing,HOUSING,Warden Schemes,WARD,Chief Executive  / Income Management,Electricity,1310,Utilities,Utility,09/04/2020,V744901,274.47,Total Gas & Power Ltd,21132.99
Broxtowe Borough Council,http://statistics.data.gov.uk/id/local-authority/37UD,Housing,HOUSING,Warden Schemes,WARD,Chief Executive  / Income Management,Electricity,1310,Utilities,Utility,09/04/2020,V744911,67.96,Total Gas & Power Ltd,21132.99
Broxtowe Borough Council,http://statistics.data.gov.uk/id/local-authority/37UD,Housing,HOUSING,Warden Schemes,WARD,Chief Executive  / Income Management,Electricity,1310,Utilities,Utility,09/04/2020,V744882,310.07,Total Gas & Power Ltd,21132.99
Broxtowe Borough Council,http://statistics.data.gov.uk/id/local-authority/37UD,Works,WORKS,Waste Management,WASTMAN,Strategic Director / Enviromental Services,Repairs / Servicing  - Materials,5520,Transport Account,TRANACC,09/04/2020,V744840,500.61,Total Vehicle Solutions,1368.66
Broxtowe Borough Council,http://statistics.data.gov.uk/id/local-authority/37UD,Works,WORKS,Repairs & Maintenance,REPMAIN,Strategic Director / Enviromental Services,Repairs / Servicing  - Materials,5520,Transport Account,TRANACC,09/04/2020,V744860,581.59,Total Vehicle Solutions,1368.66
Broxtowe Borough Council,http://statistics.data.gov.uk/id/local-authority/37UD,Works,WORKS,Waste Management,WASTMAN,Strategic Director / Enviromental Services,Tax / Mot,5570,Transport Account,TRANACC,09/04/2020,V744840,35,Total Vehicle Solutions,1368.66
Broxtowe Borough Council,http://statistics.data.gov.uk/id/local-authority/37UD,Works,WORKS,Repairs & Maintenance,REPMAIN,Strategic Director / Enviromental Services,Tax / Mot,5570,Transport Account,TRANACC,09/04/2020,V744860,35,Total Vehicle Solutions,1368.66
Broxtowe Borough Council,http://statistics.data.gov.uk/id/local-authority/37UD,Finance,FINANCE,Finance Services,FINANCE,Deputy Chief Executive / Finance Services,Repairs & Maintenance,1000,Central Pot,Central,09/04/2020,V744973,240,TSS Security Systems Limited,432
Broxtowe Borough Council,http://statistics.data.gov.uk/id/local-authority/37UD,Community Development,COMDEV,Community Facilities,COMFAC,Deputy Chief Executive / Property Services,Repairs & Maintenance,1000,Central Pot,Central,09/04/2020,V744972,120,TSS Security Systems Limited,432
Broxtowe Borough Council,http://statistics.data.gov.uk/id/local-authority/37UD,Housing,HOUSING,Warden Schemes,WARD,Chief Executive  / Income Management,Repairs & Maintenance,1000,Central Pot,Central,09/04/2020,V744846,334.12,Tunstall Telecom Ltd,1449.52
Broxtowe Borough Council,http://statistics.data.gov.uk/id/local-authority/37UD,Housing,HOUSING,Warden Schemes,WARD,Chief Executive  / Income Management,Repairs & Maintenance,1000,Central Pot,Central,09/04/2020,V744841,873.82,Tunstall Telecom Ltd,1449.52
Broxtowe Borough Council,http://statistics.data.gov.uk/id/local-authority/37UD,Works,WORKS,Repairs & Maintenance,REPMAIN,Strategic Director / Enviromental Services,Sub Contractors [day to day repairs],3107,Other Supplies & Services,OtherSS,09/04/2020,V745190,528,UK Tool Hire Ltd,2692.8
Broxtowe Borough Council,http://statistics.data.gov.uk/id/local-authority/37UD,Works,WORKS,Repairs & Maintenance,REPMAIN,Strategic Director / Enviromental Services,Sub Contractors [day to day repairs],3107,Other Supplies & Services,OtherSS,09/04/2020,V745191,1716,UK Tool Hire Ltd,2692.8
Broxtowe Borough Council,http://statistics.data.gov.uk/id/local-authority/37UD,Housing Revenue Account,HRA,Housing Revenue Account,HRA,Deputy Chief Executive / Capital Works,New construction,9002,Capital Expenditure,CapExp,09/04/2020,V744803,12223.79,United Living (North),118854.61
Broxtowe Borough Council,http://statistics.data.gov.uk/id/local-authority/37UD,Housing Revenue Account,HRA,Housing Revenue Account,HRA,Deputy Chief Executive / Capital Works,New construction,9002,Capital Expenditure,CapExp,09/04/2020,V744803,38247.68,United Living (North),118854.61
Broxtowe Borough Council,http://statistics.data.gov.uk/id/local-authority/37UD,Housing Revenue Account,HRA,Housing Revenue Account,HRA,Deputy Chief Executive / Capital Works,New construction,9002,Capital Expenditure,CapExp,09/04/2020,V744803,24074.01,United Living (North),118854.61
Broxtowe Borough Council,http://statistics.data.gov.uk/id/local-authority/37UD,Housing Revenue Account,HRA,Housing Revenue Account,HRA,Deputy Chief Executive / Capital Works,New construction,9002,Capital Expenditure,CapExp,09/04/2020,V744803,14451,United Living (North),118854.61
Broxtowe Borough Council,http://statistics.data.gov.uk/id/local-authority/37UD,Housing Revenue Account,HRA,Housing Revenue Account,HRA,Deputy Chief Executive / Capital Works,New construction,9002,Capital Expenditure,CapExp,09/04/2020,V744803,10049.03,United Living (North),118854.61
Broxtowe Borough Council,http://statistics.data.gov.uk/id/local-authority/37UD,Chief Executive,CE,ICT & Customer Services,ICT,Strategic Director / IT Services,Telephones,3400,Telephones,Tele,09/04/2020,V742295,954.71,Virgin Media,3553.65
Broxtowe Borough Council,http://statistics.data.gov.uk/id/local-authority/37UD,Chief Executive,CE,ICT & Customer Services,ICT,Strategic Director / IT Services,Telephones,3400,Telephones,Tele,09/04/2020,V745017,952.46,Virgin Media,3553.65
Broxtowe Borough Council,http://statistics.data.gov.uk/id/local-authority/37UD,Chief Executive,CE,ICT & Customer Services,ICT,Strategic Director / IT Services,Telephones,3400,Telephones,Tele,09/04/2020,V742762,1054.2,Virgin Media,3553.65
Broxtowe Borough Council,http://statistics.data.gov.uk/id/local-authority/37UD,Chief Executive,CE,ICT & Customer Services,ICT,Strategic Director / IT Services,Telephone System Rental/Maint,3405,Other Supplies & Services,OtherSS,09/04/2020,V745024,823.47,Virgin Media,1038.56
Broxtowe Borough Council,http://statistics.data.gov.uk/id/local-authority/37UD,Chief Executive,CE,ICT & Customer Services,ICT,Strategic Director / IT Services,Telephone System Rental/Maint,3405,Other Supplies & Services,OtherSS,09/04/2020,V745202,42,Virgin Media,1038.56
Broxtowe Borough Council,http://statistics.data.gov.uk/id/local-authority/37UD,Chief Executive,CE,ICT & Customer Services,ICT,Strategic Director / IT Services,Telephone System Rental/Maint,3405,Other Supplies & Services,OtherSS,09/04/2020,V742472,2119.56,Vodafone Cable & Wireless Uk,10150.87
Broxtowe Borough Council,http://statistics.data.gov.uk/id/local-authority/37UD,Chief Executive,CE,ICT & Customer Services,ICT,Strategic Director / IT Services,Telephone System Rental/Maint,3405,Other Supplies & Services,OtherSS,09/04/2020,V742473,2113.17,Vodafone Cable & Wireless Uk,10150.87
Broxtowe Borough Council,http://statistics.data.gov.uk/id/local-authority/37UD,Chief Executive,CE,ICT & Customer Services,ICT,Strategic Director / IT Services,Telephone System Rental/Maint,3405,Other Supplies & Services,OtherSS,09/04/2020,V742474,2113.17,Vodafone Cable & Wireless Uk,10150.87
Broxtowe Borough Council,http://statistics.data.gov.uk/id/local-authority/37UD,Chief Executive,CE,ICT & Customer Services,ICT,Strategic Director / IT Services,Telephone System Rental/Maint,3405,Other Supplies & Services,OtherSS,09/04/2020,V742475,2113.17,Vodafone Cable & Wireless Uk,10150.87
Broxtowe Borough Council,http://statistics.data.gov.uk/id/local-authority/37UD,Housing,HOUSING,Repairs,REPS,Chief Executive  / Housing repairs,Sub Contractors [day to day repairs],3107,Other Supplies & Services,OtherSS,09/04/2020,V744934,307.52,VPS UK Ltd,369.02
Broxtowe Borough Council,http://statistics.data.gov.uk/id/local-authority/37UD,GF Housing,GFHSG,GF Housing,GFHSG,Chief Executive  / Public Protection,Grants,9006,Capital Expenditure,CapExp,17/04/2020,V744698,726.42,B.R. Rackstraw Limited,726.42
Broxtowe Borough Council,http://statistics.data.gov.uk/id/local-authority/37UD,Resources,RES,Resources,RES,Deputy Chief Executive / Property Services,New construction,9002,Capital Expenditure,CapExp,17/04/2020,V745438,511985.02,Bowmer & Kirkland Limited,614382.02
Broxtowe Borough Council,http://statistics.data.gov.uk/id/local-authority/37UD,Housing,HOUSING,Other HRA,HRAOTHER,Chief Executive  / Income Management,Printing & Stationery,3300,Printing,Print,17/04/2020,V745210,2575,Capita Business Services Ltd,3090
Broxtowe Borough Council,http://statistics.data.gov.uk/id/local-authority/37UD,Works,WORKS,Waste Management,WASTMAN,Strategic Director / Enviromental Services,Repairs / Servicing  - Materials,5520,Transport Account,TRANACC,17/04/2020,V745408,280,Chemodex Ltd,336
Broxtowe Borough Council,http://statistics.data.gov.uk/id/local-authority/37UD,Works,WORKS,Waste Management,WASTMAN,Strategic Director / Enviromental Services,Repairs / Servicing  - Materials,5520,Transport Account,TRANACC,17/04/2020,V745410,125.21,Dennis Eagle,636.91
Broxtowe Borough Council,http://statistics.data.gov.uk/id/local-authority/37UD,Works,WORKS,Waste Management,WASTMAN,Strategic Director / Enviromental Services,Repairs / Servicing  - Materials,5520,Transport Account,TRANACC,17/04/2020,V745410,220.3,Dennis Eagle,636.91
Broxtowe Borough Council,http://statistics.data.gov.uk/id/local-authority/37UD,Works,WORKS,Waste Management,WASTMAN,Strategic Director / Enviromental Services,Repairs / Servicing  - Materials,5520,Transport Account,TRANACC,17/04/2020,V745624,121.21,Dennis Eagle,636.91
Broxtowe Borough Council,http://statistics.data.gov.uk/id/local-authority/37UD,Works,WORKS,Waste Management,WASTMAN,Strategic Director / Enviromental Services,Repairs / Servicing  - Materials,5520,Transport Account,TRANACC,17/04/2020,V745624,64.04,Dennis Eagle,636.91
Broxtowe Borough Council,http://statistics.data.gov.uk/id/local-authority/37UD,Technical Works,TW,Technical Works,TW,Strategic Director / Enviromental Services,New construction,9002,Capital Expenditure,CapExp,17/04/2020,V745910,972,Dewbar Fabrications Ltd,2241.6
Broxtowe Borough Council,http://statistics.data.gov.uk/id/local-authority/37UD,Technical Works,TW,Technical Works,TW,Strategic Director / Enviromental Services,New construction,9002,Capital Expenditure,CapExp,17/04/2020,V745911,896,Dewbar Fabrications Ltd,2241.6
Broxtowe Borough Council,http://statistics.data.gov.uk/id/local-authority/37UD,Housing,HOUSING,Repairs,REPS,Chief Executive  / Housing repairs,Sub Contractors [day to day repairs],3107,Other Supplies & Services,OtherSS,17/04/2020,V744862,416,Elite Scaffolding,1664
Broxtowe Borough Council,http://statistics.data.gov.uk/id/local-authority/37UD,Housing,HOUSING,Repairs,REPS,Chief Executive  / Housing repairs,Sub Contractors [day to day repairs],3107,Other Supplies & Services,OtherSS,17/04/2020,V744862,384,Elite Scaffolding,1664
Broxtowe Borough Council,http://statistics.data.gov.uk/id/local-authority/37UD,Housing,HOUSING,Repairs,REPS,Chief Executive  / Housing repairs,Sub Contractors [day to day repairs],3107,Other Supplies & Services,OtherSS,17/04/2020,V744862,240,Elite Scaffolding,1664
Broxtowe Borough Council,http://statistics.data.gov.uk/id/local-authority/37UD,Housing,HOUSING,Repairs,REPS,Chief Executive  / Housing repairs,Sub Contractors [day to day repairs],3107,Other Supplies & Services,OtherSS,17/04/2020,V744862,240,Elite Scaffolding,1664
Broxtowe Borough Council,http://statistics.data.gov.uk/id/local-authority/37UD,Housing,HOUSING,Repairs,REPS,Chief Executive  / Housing repairs,Sub Contractors [day to day repairs],3107,Other Supplies & Services,OtherSS,17/04/2020,V744862,104,Elite Scaffolding,1664
Broxtowe Borough Council,http://statistics.data.gov.uk/id/local-authority/37UD,Housing,HOUSING,Repairs,REPS,Chief Executive  / Housing repairs,Sub Contractors [day to day repairs],3107,Other Supplies & Services,OtherSS,17/04/2020,V744862,96,Elite Scaffolding,1664
Broxtowe Borough Council,http://statistics.data.gov.uk/id/local-authority/37UD,Housing,HOUSING,Repairs,REPS,Chief Executive  / Housing repairs,Sub Contractors [day to day repairs],3107,Other Supplies & Services,OtherSS,17/04/2020,V744862,60,Elite Scaffolding,1664
Broxtowe Borough Council,http://statistics.data.gov.uk/id/local-authority/37UD,Housing,HOUSING,Repairs,REPS,Chief Executive  / Housing repairs,Sub Contractors [day to day repairs],3107,Other Supplies & Services,OtherSS,17/04/2020,V744862,60,Elite Scaffolding,1664
Broxtowe Borough Council,http://statistics.data.gov.uk/id/local-authority/37UD,Works,WORKS,Repairs & Maintenance,REPMAIN,Strategic Director / Enviromental Services,Sub Contractors [day to day repairs],3107,Other Supplies & Services,OtherSS,17/04/2020,V745929,1440,G H Platts Services,1728
Broxtowe Borough Council,http://statistics.data.gov.uk/id/local-authority/37UD,Housing,HOUSING,Repairs,REPS,Chief Executive  / Housing repairs,Materials  - Direct,3202,Equipment,Equip,17/04/2020,V745641,1398.05,Grafton Merchanting GB Ltd,1677.66
Broxtowe Borough Council,http://statistics.data.gov.uk/id/local-authority/37UD,Housing,HOUSING,Repairs,REPS,Chief Executive  / Housing repairs,Sub Contractors [day to day repairs],3107,Other Supplies & Services,OtherSS,17/04/2020,V745675,137.5,Halls Master Locksmiths Limited,414.25
Broxtowe Borough Council,http://statistics.data.gov.uk/id/local-authority/37UD,Housing,HOUSING,Repairs,REPS,Chief Executive  / Housing repairs,Sub Contractors [day to day repairs],3107,Other Supplies & Services,OtherSS,17/04/2020,V745679,100,Halls Master Locksmiths Limited,414.25
Broxtowe Borough Council,http://statistics.data.gov.uk/id/local-authority/37UD,Housing,HOUSING,Repairs,REPS,Chief Executive  / Housing repairs,Sub Contractors [day to day repairs],3107,Other Supplies & Services,OtherSS,17/04/2020,V745183,107.71,Halls Master Locksmiths Limited,414.25
Broxtowe Borough Council,http://statistics.data.gov.uk/id/local-authority/37UD,Resources,RES,Resources,RES,Deputy Chief Executive / Property Services,Capital Salaries,9010,Capital Expenditure,CapExp,17/04/2020,V745447,1228.26,Hays Specialist Recruitment Ltd,1473.91
Broxtowe Borough Council,http://statistics.data.gov.uk/id/local-authority/37UD,Works,WORKS,Repairs & Maintenance,REPMAIN,Strategic Director / Enviromental Services,Repairs / Servicing  - Materials,5520,Transport Account,TRANACC,17/04/2020,V745406,390.63,Howard Marshall Agricultural Engineering,468.76
Broxtowe Borough Council,http://statistics.data.gov.uk/id/local-authority/37UD,Works,WORKS,Waste Management,WASTMAN,Strategic Director / Enviromental Services,Repairs / Servicing  - Materials,5520,Transport Account,TRANACC,17/04/2020,V745416,235.13,Hydroscand Ltd,647.74
Broxtowe Borough Council,http://statistics.data.gov.uk/id/local-authority/37UD,Works,WORKS,Waste Management,WASTMAN,Strategic Director / Enviromental Services,Repairs / Servicing  - Materials,5520,Transport Account,TRANACC,17/04/2020,V745418,304.65,Hydroscand Ltd,647.74
Broxtowe Borough Council,http://statistics.data.gov.uk/id/local-authority/37UD,Housing,HOUSING,Repairs,REPS,Chief Executive  / Housing repairs,Sub Contractors [day to day repairs],3107,Other Supplies & Services,OtherSS,17/04/2020,V744842,1242.99,Impart Links Ltd,1491.59
Broxtowe Borough Council,http://statistics.data.gov.uk/id/local-authority/37UD,Finance,FINANCE,Admin Buildings,ADBLDG,Strategic Director / Administrative Services,Electricity,1310,Utilities,Utility,17/04/2020,V745428,219.38,IMServ Europe Limited,263.25
Broxtowe Borough Council,http://statistics.data.gov.uk/id/local-authority/37UD,Works,WORKS,Repairs & Maintenance,REPMAIN,Strategic Director / Enviromental Services,Sub Contractors [day to day repairs],3107,Other Supplies & Services,OtherSS,17/04/2020,V745992,518,Inplace Personnel Services Ltd,1243.2
Broxtowe Borough Council,http://statistics.data.gov.uk/id/local-authority/37UD,Works,WORKS,Repairs & Maintenance,REPMAIN,Strategic Director / Enviromental Services,Sub Contractors [day to day repairs],3107,Other Supplies & Services,OtherSS,17/04/2020,V745620,518,Inplace Personnel Services Ltd,1243.2
Broxtowe Borough Council,http://statistics.data.gov.uk/id/local-authority/37UD,Housing,HOUSING,Repairs,REPS,Chief Executive  / Housing repairs,Sub Contractors [day to day repairs],3107,Other Supplies & Services,OtherSS,17/04/2020,V743575,250,K W T Glass & Glazing Ltd,4839
Broxtowe Borough Council,http://statistics.data.gov.uk/id/local-authority/37UD,Housing,HOUSING,Repairs,REPS,Chief Executive  / Housing repairs,Sub Contractors [day to day repairs],3107,Other Supplies & Services,OtherSS,17/04/2020,V743575,1345,K W T Glass & Glazing Ltd,4839
Broxtowe Borough Council,http://statistics.data.gov.uk/id/local-authority/37UD,Housing,HOUSING,Repairs,REPS,Chief Executive  / Housing repairs,Sub Contractors [day to day repairs],3107,Other Supplies & Services,OtherSS,17/04/2020,V743699,2000,K W T Glass & Glazing Ltd,4839
Broxtowe Borough Council,http://statistics.data.gov.uk/id/local-authority/37UD,Housing,HOUSING,Repairs,REPS,Chief Executive  / Housing repairs,Sub Contractors [day to day repairs],3107,Other Supplies & Services,OtherSS,17/04/2020,V744927,350,K W T Glass & Glazing Ltd,4839
Broxtowe Borough Council,http://statistics.data.gov.uk/id/local-authority/37UD,Housing,HOUSING,Repairs,REPS,Chief Executive  / Housing repairs,Sub Contractors [day to day repairs],3107,Other Supplies & Services,OtherSS,17/04/2020,V743575,225,K W T Glass & Glazing Ltd,4839
Broxtowe Borough Council,http://statistics.data.gov.uk/id/local-authority/37UD,Housing,HOUSING,Repairs,REPS,Chief Executive  / Housing repairs,Sub Contractors [day to day repairs],3107,Other Supplies & Services,OtherSS,17/04/2020,V743699,192.5,K W T Glass & Glazing Ltd,4839
Broxtowe Borough Council,http://statistics.data.gov.uk/id/local-authority/37UD,Housing,HOUSING,Repairs,REPS,Chief Executive  / Housing repairs,Sub Contractors [day to day repairs],3107,Other Supplies & Services,OtherSS,17/04/2020,V744927,90,K W T Glass & Glazing Ltd,4839
Broxtowe Borough Council,http://statistics.data.gov.uk/id/local-authority/37UD,Housing,HOUSING,Repairs,REPS,Chief Executive  / Housing repairs,Materials  - Direct,3202,Equipment,Equip,17/04/2020,V743699,285,K W T Glass & Glazing Ltd,4839
Broxtowe Borough Council,http://statistics.data.gov.uk/id/local-authority/37UD,Finance,FINANCE,Finance Services,FINANCE,Deputy Chief Executive / Finance Services,Grants,3700,Other Supplies & Services,OtherSS,17/04/2020,V746185,2000,Kimberley and District Mutual Aid Group (72044),2000
Broxtowe Borough Council,http://statistics.data.gov.uk/id/local-authority/37UD,Finance,FINANCE,Regulatory Services,REG,Strategic Director / Administrative Services,Security - Cash Collection,3609,Security Costs,Secure,17/04/2020,V745873,260.9,Kings Armoured Security Services Limited,313.08
Broxtowe Borough Council,http://statistics.data.gov.uk/id/local-authority/37UD,General,GEN,General,GEN,Strategic Director / Enviromental Services,Stores Purchased - April,9360,Stores,Stores,17/04/2020,V745424,408,Knighton Janitorial,892.8
Broxtowe Borough Council,http://statistics.data.gov.uk/id/local-authority/37UD,General,GEN,General,GEN,Strategic Director / Enviromental Services,Stores Purchased - April,9360,Stores,Stores,17/04/2020,V745423,135,Knighton Janitorial,892.8
Broxtowe Borough Council,http://statistics.data.gov.uk/id/local-authority/37UD,General,GEN,General,GEN,Strategic Director / Enviromental Services,Stores Purchased - April,9360,Stores,Stores,17/04/2020,V745424,103.6,Knighton Janitorial,892.8
Broxtowe Borough Council,http://statistics.data.gov.uk/id/local-authority/37UD,General,GEN,General,GEN,Strategic Director / Enviromental Services,Stores Purchased - April,9360,Stores,Stores,17/04/2020,V745424,27.9,Knighton Janitorial,892.8
Broxtowe Borough Council,http://statistics.data.gov.uk/id/local-authority/37UD,General,GEN,General,GEN,Strategic Director / Enviromental Services,Stores Purchased - April,9360,Stores,Stores,17/04/2020,V745424,69.5,Knighton Janitorial,892.8
Broxtowe Borough Council,http://statistics.data.gov.uk/id/local-authority/37UD,Works,WORKS,Waste Management,WASTMAN,Strategic Director / Enviromental Services,Repairs / Servicing  - Materials,5520,Transport Account,TRANACC,17/04/2020,V745995,15,Lodge Tyre,549.6
Broxtowe Borough Council,http://statistics.data.gov.uk/id/local-authority/37UD,Works,WORKS,Waste Management,WASTMAN,Strategic Director / Enviromental Services,Repairs / Servicing  - Materials,5520,Transport Account,TRANACC,17/04/2020,V745995,53,Lodge Tyre,549.6
Broxtowe Borough Council,http://statistics.data.gov.uk/id/local-authority/37UD,Works,WORKS,Waste Management,WASTMAN,Strategic Director / Enviromental Services,Repairs / Servicing  - Materials,5520,Transport Account,TRANACC,17/04/2020,V745995,390,Lodge Tyre,549.6
Broxtowe Borough Council,http://statistics.data.gov.uk/id/local-authority/37UD,Technical,TECHNICA,Highways,HIGHWYS,Strategic Director / Enviromental Services,Sub Contractors [day to day repairs],3107,Other Supplies & Services,OtherSS,17/04/2020,V745639,640,M Flinders Wrought Iron and Steel Fabrications,640
Broxtowe Borough Council,http://statistics.data.gov.uk/id/local-authority/37UD,Finance,FINANCE,Finance Services,FINANCE,Deputy Chief Executive / Finance Services,Agency Staff,500,Employee Direct Costs,Direct,17/04/2020,V745585,1618.75,Macildowie Associates,3851.7
Broxtowe Borough Council,http://statistics.data.gov.uk/id/local-authority/37UD,Finance,FINANCE,Finance Services,FINANCE,Deputy Chief Executive / Finance Services,Agency Staff,500,Employee Direct Costs,Direct,17/04/2020,V745586,1591,Macildowie Associates,3851.7
Broxtowe Borough Council,http://statistics.data.gov.uk/id/local-authority/37UD,Works,WORKS,Waste Management,WASTMAN,Chief Executive  / Human Res,Agency Staff,500,Employee Direct Costs,Direct,17/04/2020,V745439,14110.56,Matrix,32112.28
Broxtowe Borough Council,http://statistics.data.gov.uk/id/local-authority/37UD,Works,WORKS,Repairs & Maintenance,REPMAIN,Chief Executive  / Human Res,Agency Staff,500,Employee Direct Costs,Direct,17/04/2020,V745439,1431.16,Matrix,32112.28
Broxtowe Borough Council,http://statistics.data.gov.uk/id/local-authority/37UD,Finance,FINANCE,Legal Services,LEGAL,Chief Executive  / Human Res,Agency Staff,500,Employee Direct Costs,Direct,17/04/2020,V745439,2018.18,Matrix,32112.28
Broxtowe Borough Council,http://statistics.data.gov.uk/id/local-authority/37UD,Finance,FINANCE,Finance Services,FINANCE,Chief Executive  / Human Res,Agency Staff,500,Employee Direct Costs,Direct,17/04/2020,V745439,1933.45,Matrix,32112.28
Broxtowe Borough Council,http://statistics.data.gov.uk/id/local-authority/37UD,Housing,HOUSING,Repairs,REPS,Chief Executive  / Human Res,Agency Staff,500,Employee Direct Costs,Direct,17/04/2020,V745439,1043.05,Matrix,32112.28
Broxtowe Borough Council,http://statistics.data.gov.uk/id/local-authority/37UD,Housing,HOUS,Homelessness,HOME,Chief Executive  / Human Res,Agency Staff,500,Employee Direct Costs,Direct,17/04/2020,V745439,4434.93,Matrix,32112.28
Broxtowe Borough Council,http://statistics.data.gov.uk/id/local-authority/37UD,Housing Revenue Account,HRA,Housing Revenue Account,HRA,Chief Executive  / Human Res,Capital Salaries,9010,Capital Expenditure,CapExp,17/04/2020,V745439,1788.9,Matrix,32112.28
Broxtowe Borough Council,http://statistics.data.gov.uk/id/local-authority/37UD,Housing,HOUSING,Warden Schemes,WARD,Strategic Director / Enviromental Services,Grounds Maintenance - External,1205,Other Prem,OthPrem,17/04/2020,V745904,290,Merrin Builders & Landscaping,290
Broxtowe Borough Council,http://statistics.data.gov.uk/id/local-authority/37UD,Housing,HOUSING,Warden Schemes,WARD,Chief Executive  / Income Management,Uniforms,3221,Other Supplies & Services,OtherSS,17/04/2020,V745582,17.99,MF Safety & Workwear,642.35
Broxtowe Borough Council,http://statistics.data.gov.uk/id/local-authority/37UD,Housing,HOUSING,Warden Schemes,WARD,Chief Executive  / Income Management,Uniforms,3221,Other Supplies & Services,OtherSS,17/04/2020,V745582,22,MF Safety & Workwear,642.35
Broxtowe Borough Council,http://statistics.data.gov.uk/id/local-authority/37UD,Housing,HOUSING,Warden Schemes,WARD,Chief Executive  / Income Management,Uniforms,3221,Other Supplies & Services,OtherSS,17/04/2020,V745582,55,MF Safety & Workwear,642.35
Broxtowe Borough Council,http://statistics.data.gov.uk/id/local-authority/37UD,Housing,HOUSING,Warden Schemes,WARD,Chief Executive  / Income Management,Uniforms,3221,Other Supplies & Services,OtherSS,17/04/2020,V745582,22,MF Safety & Workwear,642.35
Broxtowe Borough Council,http://statistics.data.gov.uk/id/local-authority/37UD,Housing,HOUSING,Warden Schemes,WARD,Chief Executive  / Income Management,Uniforms,3221,Other Supplies & Services,OtherSS,17/04/2020,V745582,11,MF Safety & Workwear,642.35
Broxtowe Borough Council,http://statistics.data.gov.uk/id/local-authority/37UD,Housing,HOUSING,Warden Schemes,WARD,Chief Executive  / Income Management,Uniforms,3221,Other Supplies & Services,OtherSS,17/04/2020,V745582,11,MF Safety & Workwear,642.35
Broxtowe Borough Council,http://statistics.data.gov.uk/id/local-authority/37UD,Housing,HOUSING,Warden Schemes,WARD,Chief Executive  / Income Management,Uniforms,3221,Other Supplies & Services,OtherSS,17/04/2020,V745582,11,MF Safety & Workwear,642.35
Broxtowe Borough Council,http://statistics.data.gov.uk/id/local-authority/37UD,Housing,HOUSING,Warden Schemes,WARD,Chief Executive  / Income Management,Uniforms,3221,Other Supplies & Services,OtherSS,17/04/2020,V745582,34.65,MF Safety & Workwear,642.35
Broxtowe Borough Council,http://statistics.data.gov.uk/id/local-authority/37UD,Housing,HOUSING,Warden Schemes,WARD,Chief Executive  / Income Management,Uniforms,3221,Other Supplies & Services,OtherSS,17/04/2020,V745582,54.2,MF Safety & Workwear,642.35
Broxtowe Borough Council,http://statistics.data.gov.uk/id/local-authority/37UD,Housing,HOUSING,Warden Schemes,WARD,Chief Executive  / Income Management,Uniforms,3221,Other Supplies & Services,OtherSS,17/04/2020,V745582,33,MF Safety & Workwear,642.35
Broxtowe Borough Council,http://statistics.data.gov.uk/id/local-authority/37UD,Housing,HOUSING,Warden Schemes,WARD,Chief Executive  / Income Management,Uniforms,3221,Other Supplies & Services,OtherSS,17/04/2020,V745582,11,MF Safety & Workwear,642.35
Broxtowe Borough Council,http://statistics.data.gov.uk/id/local-authority/37UD,Housing,HOUSING,Warden Schemes,WARD,Chief Executive  / Income Management,Uniforms,3221,Other Supplies & Services,OtherSS,17/04/2020,V745582,11,MF Safety & Workwear,642.35
Broxtowe Borough Council,http://statistics.data.gov.uk/id/local-authority/37UD,Housing,HOUSING,Warden Schemes,WARD,Chief Executive  / Income Management,Uniforms,3221,Other Supplies & Services,OtherSS,17/04/2020,V745582,8.25,MF Safety & Workwear,642.35
Broxtowe Borough Council,http://statistics.data.gov.uk/id/local-authority/37UD,Housing,HOUSING,Warden Schemes,WARD,Chief Executive  / Income Management,Uniforms,3221,Other Supplies & Services,OtherSS,17/04/2020,V745582,16.5,MF Safety & Workwear,642.35
Broxtowe Borough Council,http://statistics.data.gov.uk/id/local-authority/37UD,Housing,HOUSING,Warden Schemes,WARD,Chief Executive  / Income Management,Uniforms,3221,Other Supplies & Services,OtherSS,17/04/2020,V745582,8.25,MF Safety & Workwear,642.35
Broxtowe Borough Council,http://statistics.data.gov.uk/id/local-authority/37UD,General,GEN,General,GEN,Strategic Director / Enviromental Services,Stores Purchased - April,9360,Stores,Stores,17/04/2020,V745425,26.4,MF Safety & Workwear,642.35
Broxtowe Borough Council,http://statistics.data.gov.uk/id/local-authority/37UD,General,GEN,General,GEN,Strategic Director / Enviromental Services,Stores Purchased - April,9360,Stores,Stores,17/04/2020,V745425,15.15,MF Safety & Workwear,642.35
Broxtowe Borough Council,http://statistics.data.gov.uk/id/local-authority/37UD,General,GEN,General,GEN,Strategic Director / Enviromental Services,Stores Purchased - April,9360,Stores,Stores,17/04/2020,V745425,19.5,MF Safety & Workwear,642.35
Broxtowe Borough Council,http://statistics.data.gov.uk/id/local-authority/37UD,General,GEN,General,GEN,Strategic Director / Enviromental Services,Stores Purchased - April,9360,Stores,Stores,17/04/2020,V745425,99.9,MF Safety & Workwear,642.35
Broxtowe Borough Council,http://statistics.data.gov.uk/id/local-authority/37UD,General,GEN,General,GEN,Strategic Director / Enviromental Services,Stores Purchased - April,9360,Stores,Stores,17/04/2020,V745425,28,MF Safety & Workwear,642.35
Broxtowe Borough Council,http://statistics.data.gov.uk/id/local-authority/37UD,General,GEN,General,GEN,Strategic Director / Enviromental Services,Stores Purchased - February,9370,Stores,Stores,17/04/2020,V745993,19.5,MF Safety & Workwear,642.35
Broxtowe Borough Council,http://statistics.data.gov.uk/id/local-authority/37UD,Works,WORKS,Repairs & Maintenance,REPMAIN,Strategic Director / Enviromental Services,Sub Contractors [day to day repairs],3107,Other Supplies & Services,OtherSS,17/04/2020,V745997,800,Michael McDaid Gardening Services,3200
Broxtowe Borough Council,http://statistics.data.gov.uk/id/local-authority/37UD,Housing,HOUSING,Repairs,REPS,Strategic Director / Enviromental Services,Sub Contractors [day to day repairs],3107,Other Supplies & Services,OtherSS,17/04/2020,V745996,2400,Michael McDaid Gardening Services,3200
Broxtowe Borough Council,http://statistics.data.gov.uk/id/local-authority/37UD,Chief Executive,CE,ICT & Customer Services,ICT,Strategic Director / IT Services,Software Maintenance,3436,Other Supplies & Services,OtherSS,17/04/2020,V745449,46652.93,Mobysoft Limited,55983.52
Broxtowe Borough Council,http://statistics.data.gov.uk/id/local-authority/37UD,Housing,HOUSING,Repairs,REPS,Chief Executive  / Housing repairs,Sub Contractors [day to day repairs],3107,Other Supplies & Services,OtherSS,17/04/2020,V744962,1150,Neil Shacklocks,1380
Broxtowe Borough Council,http://statistics.data.gov.uk/id/local-authority/37UD,Housing,HOUSING,Repairs,REPS,Chief Executive  / Housing repairs,Sub Contractors [day to day repairs],3107,Other Supplies & Services,OtherSS,17/04/2020,V745437,49.5,Nottingham Energy Assessors,1584
Broxtowe Borough Council,http://statistics.data.gov.uk/id/local-authority/37UD,Housing,HOUSING,Repairs,REPS,Chief Executive  / Housing repairs,Sub Contractors [day to day repairs],3107,Other Supplies & Services,OtherSS,17/04/2020,V745437,49.5,Nottingham Energy Assessors,1584
Broxtowe Borough Council,http://statistics.data.gov.uk/id/local-authority/37UD,Housing,HOUSING,Repairs,REPS,Chief Executive  / Housing repairs,Sub Contractors [day to day repairs],3107,Other Supplies & Services,OtherSS,17/04/2020,V745437,49.5,Nottingham Energy Assessors,1584
Broxtowe Borough Council,http://statistics.data.gov.uk/id/local-authority/37UD,Housing,HOUSING,Repairs,REPS,Chief Executive  / Housing repairs,Sub Contractors [day to day repairs],3107,Other Supplies & Services,OtherSS,17/04/2020,V745437,49.5,Nottingham Energy Assessors,1584
Broxtowe Borough Council,http://statistics.data.gov.uk/id/local-authority/37UD,Housing,HOUSING,Repairs,REPS,Chief Executive  / Housing repairs,Sub Contractors [day to day repairs],3107,Other Supplies & Services,OtherSS,17/04/2020,V745437,49.5,Nottingham Energy Assessors,1584
Broxtowe Borough Council,http://statistics.data.gov.uk/id/local-authority/37UD,Housing,HOUSING,Repairs,REPS,Chief Executive  / Housing repairs,Sub Contractors [day to day repairs],3107,Other Supplies & Services,OtherSS,17/04/2020,V745437,49.5,Nottingham Energy Assessors,1584
Broxtowe Borough Council,http://statistics.data.gov.uk/id/local-authority/37UD,Housing,HOUSING,Repairs,REPS,Chief Executive  / Housing repairs,Sub Contractors [day to day repairs],3107,Other Supplies & Services,OtherSS,17/04/2020,V745437,49.5,Nottingham Energy Assessors,1584
Broxtowe Borough Council,http://statistics.data.gov.uk/id/local-authority/37UD,Housing,HOUSING,Repairs,REPS,Chief Executive  / Housing repairs,Sub Contractors [day to day repairs],3107,Other Supplies & Services,OtherSS,17/04/2020,V745437,49.5,Nottingham Energy Assessors,1584
Broxtowe Borough Council,http://statistics.data.gov.uk/id/local-authority/37UD,Housing,HOUSING,Repairs,REPS,Chief Executive  / Housing repairs,Sub Contractors [day to day repairs],3107,Other Supplies & Services,OtherSS,17/04/2020,V745437,49.5,Nottingham Energy Assessors,1584
Broxtowe Borough Council,http://statistics.data.gov.uk/id/local-authority/37UD,Housing,HOUSING,Repairs,REPS,Chief Executive  / Housing repairs,Sub Contractors [day to day repairs],3107,Other Supplies & Services,OtherSS,17/04/2020,V745437,49.5,Nottingham Energy Assessors,1584
Broxtowe Borough Council,http://statistics.data.gov.uk/id/local-authority/37UD,Housing,HOUSING,Repairs,REPS,Chief Executive  / Housing repairs,Sub Contractors [day to day repairs],3107,Other Supplies & Services,OtherSS,17/04/2020,V745437,49.5,Nottingham Energy Assessors,1584
Broxtowe Borough Council,http://statistics.data.gov.uk/id/local-authority/37UD,Housing,HOUSING,Repairs,REPS,Chief Executive  / Housing repairs,Sub Contractors [day to day repairs],3107,Other Supplies & Services,OtherSS,17/04/2020,V745437,49.5,Nottingham Energy Assessors,1584
Broxtowe Borough Council,http://statistics.data.gov.uk/id/local-authority/37UD,Housing,HOUSING,Repairs,REPS,Chief Executive  / Housing repairs,Sub Contractors [day to day repairs],3107,Other Supplies & Services,OtherSS,17/04/2020,V745437,49.5,Nottingham Energy Assessors,1584
Broxtowe Borough Council,http://statistics.data.gov.uk/id/local-authority/37UD,Housing,HOUSING,Repairs,REPS,Chief Executive  / Housing repairs,Sub Contractors [day to day repairs],3107,Other Supplies & Services,OtherSS,17/04/2020,V745437,49.5,Nottingham Energy Assessors,1584
Broxtowe Borough Council,http://statistics.data.gov.uk/id/local-authority/37UD,Housing,HOUSING,Repairs,REPS,Chief Executive  / Housing repairs,Sub Contractors [day to day repairs],3107,Other Supplies & Services,OtherSS,17/04/2020,V745437,49.5,Nottingham Energy Assessors,1584
Broxtowe Borough Council,http://statistics.data.gov.uk/id/local-authority/37UD,Housing,HOUSING,Repairs,REPS,Chief Executive  / Housing repairs,Sub Contractors [day to day repairs],3107,Other Supplies & Services,OtherSS,17/04/2020,V745437,49.5,Nottingham Energy Assessors,1584
Broxtowe Borough Council,http://statistics.data.gov.uk/id/local-authority/37UD,Housing,HOUSING,Repairs,REPS,Chief Executive  / Housing repairs,Sub Contractors [day to day repairs],3107,Other Supplies & Services,OtherSS,17/04/2020,V745437,49.5,Nottingham Energy Assessors,1584
Broxtowe Borough Council,http://statistics.data.gov.uk/id/local-authority/37UD,Housing,HOUSING,Repairs,REPS,Chief Executive  / Housing repairs,Sub Contractors [day to day repairs],3107,Other Supplies & Services,OtherSS,17/04/2020,V745437,49.5,Nottingham Energy Assessors,1584
Broxtowe Borough Council,http://statistics.data.gov.uk/id/local-authority/37UD,Housing,HOUSING,Repairs,REPS,Chief Executive  / Housing repairs,Sub Contractors [day to day repairs],3107,Other Supplies & Services,OtherSS,17/04/2020,V745437,49.5,Nottingham Energy Assessors,1584
Broxtowe Borough Council,http://statistics.data.gov.uk/id/local-authority/37UD,Housing,HOUSING,Repairs,REPS,Chief Executive  / Housing repairs,Sub Contractors [day to day repairs],3107,Other Supplies & Services,OtherSS,17/04/2020,V745437,49.5,Nottingham Energy Assessors,1584
Broxtowe Borough Council,http://statistics.data.gov.uk/id/local-authority/37UD,Housing,HOUSING,Repairs,REPS,Chief Executive  / Housing repairs,Sub Contractors [day to day repairs],3107,Other Supplies & Services,OtherSS,17/04/2020,V745437,49.5,Nottingham Energy Assessors,1584
Broxtowe Borough Council,http://statistics.data.gov.uk/id/local-authority/37UD,Housing,HOUSING,Repairs,REPS,Chief Executive  / Housing repairs,Sub Contractors [day to day repairs],3107,Other Supplies & Services,OtherSS,17/04/2020,V745437,49.5,Nottingham Energy Assessors,1584
Broxtowe Borough Council,http://statistics.data.gov.uk/id/local-authority/37UD,Housing,HOUSING,Repairs,REPS,Chief Executive  / Housing repairs,Sub Contractors [day to day repairs],3107,Other Supplies & Services,OtherSS,17/04/2020,V745437,49.5,Nottingham Energy Assessors,1584
Broxtowe Borough Council,http://statistics.data.gov.uk/id/local-authority/37UD,Housing,HOUSING,Repairs,REPS,Chief Executive  / Housing repairs,Sub Contractors [day to day repairs],3107,Other Supplies & Services,OtherSS,17/04/2020,V745437,49.5,Nottingham Energy Assessors,1584
Broxtowe Borough Council,http://statistics.data.gov.uk/id/local-authority/37UD,Housing,HOUSING,Repairs,REPS,Chief Executive  / Housing repairs,Sub Contractors [day to day repairs],3107,Other Supplies & Services,OtherSS,17/04/2020,V745437,49.5,Nottingham Energy Assessors,1584
Broxtowe Borough Council,http://statistics.data.gov.uk/id/local-authority/37UD,Housing,HOUSING,Repairs,REPS,Chief Executive  / Housing repairs,Sub Contractors [day to day repairs],3107,Other Supplies & Services,OtherSS,17/04/2020,V745437,49.5,Nottingham Energy Assessors,1584
Broxtowe Borough Council,http://statistics.data.gov.uk/id/local-authority/37UD,Housing,HOUSING,Repairs,REPS,Chief Executive  / Housing repairs,Sub Contractors [day to day repairs],3107,Other Supplies & Services,OtherSS,17/04/2020,V745437,49.5,Nottingham Energy Assessors,1584
Broxtowe Borough Council,http://statistics.data.gov.uk/id/local-authority/37UD,Housing,HOUSING,Repairs,REPS,Chief Executive  / Housing repairs,Sub Contractors [day to day repairs],3107,Other Supplies & Services,OtherSS,17/04/2020,V745437,49.5,Nottingham Energy Assessors,1584
Broxtowe Borough Council,http://statistics.data.gov.uk/id/local-authority/37UD,Housing,HOUSING,Repairs,REPS,Chief Executive  / Housing repairs,Sub Contractors [day to day repairs],3107,Other Supplies & Services,OtherSS,17/04/2020,V745437,49.5,Nottingham Energy Assessors,1584
Broxtowe Borough Council,http://statistics.data.gov.uk/id/local-authority/37UD,Housing,HOUSING,Repairs,REPS,Chief Executive  / Housing repairs,Sub Contractors [day to day repairs],3107,Other Supplies & Services,OtherSS,17/04/2020,V745437,49.5,Nottingham Energy Assessors,1584
Broxtowe Borough Council,http://statistics.data.gov.uk/id/local-authority/37UD,Housing,HOUSING,Repairs,REPS,Chief Executive  / Housing repairs,Sub Contractors [day to day repairs],3107,Other Supplies & Services,OtherSS,17/04/2020,V745437,49.5,Nottingham Energy Assessors,1584
Broxtowe Borough Council,http://statistics.data.gov.uk/id/local-authority/37UD,General,GEN,General,GEN,Chief Executive  / Housing repairs,Sales of Council Houses,9682,Assets,Assets,17/04/2020,V745437,49.5,Nottingham Energy Assessors,1584
Broxtowe Borough Council,http://statistics.data.gov.uk/id/local-authority/37UD,Technical,TECHNICA,Parks & Recreation Grounds,RECGRD,Strategic Director / Enviromental Services,Premises Costs,1017,Other Maintenance,Maint,17/04/2020,V745905,1600,Nova Sport Limited,3420
Broxtowe Borough Council,http://statistics.data.gov.uk/id/local-authority/37UD,Technical,TECHNICA,Parks & Recreation Grounds,RECGRD,Strategic Director / Enviromental Services,Grounds Maintenance - External,1205,Other Prem,OthPrem,17/04/2020,V745905,1250,Nova Sport Limited,3420
Broxtowe Borough Council,http://statistics.data.gov.uk/id/local-authority/37UD,Housing,HOUS,Homelessness,HOME,Chief Executive  / Housing Operations,B&B Invoices,3818,Other Supplies & Services,OtherSS,17/04/2020,V744925,3456.67,Novotel Hotels,4148
Broxtowe Borough Council,http://statistics.data.gov.uk/id/local-authority/37UD,Works,WORKS,Repairs & Maintenance,REPMAIN,Strategic Director / Enviromental Services,Repairs / Servicing  - Materials,5520,Transport Account,TRANACC,17/04/2020,V745415,687.23,P S Marsden (Lawnmower Services) Limited,2013.7
Broxtowe Borough Council,http://statistics.data.gov.uk/id/local-authority/37UD,Works,WORKS,Repairs & Maintenance,REPMAIN,Strategic Director / Enviromental Services,Repairs / Servicing  - Materials,5520,Transport Account,TRANACC,17/04/2020,V745414,237.41,P S Marsden (Lawnmower Services) Limited,2013.7
Broxtowe Borough Council,http://statistics.data.gov.uk/id/local-authority/37UD,Works,WORKS,Repairs & Maintenance,REPMAIN,Strategic Director / Enviromental Services,Repairs / Servicing  - Materials,5520,Transport Account,TRANACC,17/04/2020,V745413,753.45,P S Marsden (Lawnmower Services) Limited,2013.7
Broxtowe Borough Council,http://statistics.data.gov.uk/id/local-authority/37UD,Housing,HOUS,Homelessness,HOME,Chief Executive  / Housing Operations,B&B Invoices,3818,Other Supplies & Services,OtherSS,17/04/2020,V745858,875,P&J Hotel + Serviced Apartments,1050
Broxtowe Borough Council,http://statistics.data.gov.uk/id/local-authority/37UD,Housing,HOUS,Homelessness,HOME,Chief Executive  / Housing Operations,B&B Invoices,3818,Other Supplies & Services,OtherSS,17/04/2020,V745860,910,Paramount Hotel & Restaurant,2660
Broxtowe Borough Council,http://statistics.data.gov.uk/id/local-authority/37UD,Housing,HOUS,Homelessness,HOME,Chief Executive  / Housing Operations,B&B Invoices,3818,Other Supplies & Services,OtherSS,17/04/2020,V745859,910,Paramount Hotel & Restaurant,2660
Broxtowe Borough Council,http://statistics.data.gov.uk/id/local-authority/37UD,Housing,HOUS,Homelessness,HOME,Chief Executive  / Housing Operations,B&B Invoices,3818,Other Supplies & Services,OtherSS,17/04/2020,V745722,840,Paramount Hotel & Restaurant,2660
Broxtowe Borough Council,http://statistics.data.gov.uk/id/local-authority/37UD,Works,WORKS,Waste Management,WASTMAN,Strategic Director / Enviromental Services,Repairs / Servicing  - Materials,5520,Transport Account,TRANACC,17/04/2020,V746187,270,Partic Motor Spares Ltd,342.6
Broxtowe Borough Council,http://statistics.data.gov.uk/id/local-authority/37UD,Works,WORKS,Waste Management,WASTMAN,Strategic Director / Enviromental Services,Repairs / Servicing  - Materials,5520,Transport Account,TRANACC,17/04/2020,V746187,2,Partic Motor Spares Ltd,342.6
Broxtowe Borough Council,http://statistics.data.gov.uk/id/local-authority/37UD,Works,WORKS,Waste Management,WASTMAN,Strategic Director / Enviromental Services,Repairs / Servicing  - Materials,5520,Transport Account,TRANACC,17/04/2020,V745429,13.5,Partic Motor Spares Ltd,342.6
Broxtowe Borough Council,http://statistics.data.gov.uk/id/local-authority/37UD,Housing,HOUSING,Repairs,REPS,Chief Executive  / Housing repairs,Sub Contractors [day to day repairs],3107,Other Supplies & Services,OtherSS,17/04/2020,V745885,2270,Pete Burton Building Contractors Ltd,3438.9
Broxtowe Borough Council,http://statistics.data.gov.uk/id/local-authority/37UD,Housing,HOUSING,Repairs,REPS,Chief Executive  / Housing repairs,Sub Contractors [day to day repairs],3107,Other Supplies & Services,OtherSS,17/04/2020,V745882,35,Pete Burton Building Contractors Ltd,3438.9
Broxtowe Borough Council,http://statistics.data.gov.uk/id/local-authority/37UD,Housing,HOUSING,Repairs,REPS,Chief Executive  / Housing repairs,Sub Contractors [day to day repairs],3107,Other Supplies & Services,OtherSS,17/04/2020,V745450,560.75,Pete Burton Building Contractors Ltd,3438.9
Broxtowe Borough Council,http://statistics.data.gov.uk/id/local-authority/37UD,Works,WORKS,Repairs & Maintenance,REPMAIN,Strategic Director / Enviromental Services,Sub Contractors [day to day repairs],3107,Other Supplies & Services,OtherSS,17/04/2020,V745942,1242,Play Ground Supplies Limited,1490.4
Broxtowe Borough Council,http://statistics.data.gov.uk/id/local-authority/37UD,General,GEN,General,GEN,Strategic Director / Enviromental Services,Stores Purchased - April,9360,Stores,Stores,17/04/2020,V745949,435.08,Rexel UK Ltd,652.62
Broxtowe Borough Council,http://statistics.data.gov.uk/id/local-authority/37UD,General,GEN,General,GEN,Strategic Director / Enviromental Services,Stores Purchased - April,9360,Stores,Stores,17/04/2020,V745950,108.77,Rexel UK Ltd,652.62
Broxtowe Borough Council,http://statistics.data.gov.uk/id/local-authority/37UD,Housing,HOUS,Hostels,HOSTL,Chief Executive  / Housing Operations,Water Charges,1410,Utilities,Utility,17/04/2020,V744924,202.83,Severn Trent Water Ltd,296.8
Broxtowe Borough Council,http://statistics.data.gov.uk/id/local-authority/37UD,Housing,HOUS,Hostels,HOSTL,Chief Executive  / Housing Operations,Water Charges,1410,Utilities,Utility,17/04/2020,V744937,93.97,Severn Trent Water Ltd,296.8
Broxtowe Borough Council,http://statistics.data.gov.uk/id/local-authority/37UD,Finance,FINANCE,Finance Services,FINANCE,Deputy Chief Executive / Finance Services,Grants,3700,Other Supplies & Services,OtherSS,17/04/2020,V746208,2000,Stapleford & Surrounding Areas Mutual Aid Group,2000
Broxtowe Borough Council,http://statistics.data.gov.uk/id/local-authority/37UD,Housing,HOUSING,Repairs,REPS,Chief Executive  / Housing repairs,Sub Contractors [day to day repairs],3107,Other Supplies & Services,OtherSS,17/04/2020,V745673,52.8,T & S Heating Limited,536.88
Broxtowe Borough Council,http://statistics.data.gov.uk/id/local-authority/37UD,Housing,HOUSING,Repairs,REPS,Chief Executive  / Housing repairs,Sub Contractors [day to day repairs],3107,Other Supplies & Services,OtherSS,17/04/2020,V745674,77.8,T & S Heating Limited,536.88
Broxtowe Borough Council,http://statistics.data.gov.uk/id/local-authority/37UD,Housing,HOUSING,Repairs,REPS,Chief Executive  / Housing repairs,Sub Contractors [day to day repairs],3107,Other Supplies & Services,OtherSS,17/04/2020,V745658,52.8,T & S Heating Limited,536.88
Broxtowe Borough Council,http://statistics.data.gov.uk/id/local-authority/37UD,Housing,HOUSING,Repairs,REPS,Chief Executive  / Housing repairs,Sub Contractors [day to day repairs],3107,Other Supplies & Services,OtherSS,17/04/2020,V745654,52.8,T & S Heating Limited,536.88
Broxtowe Borough Council,http://statistics.data.gov.uk/id/local-authority/37UD,Housing,HOUSING,Repairs,REPS,Chief Executive  / Housing repairs,Sub Contractors [day to day repairs],3107,Other Supplies & Services,OtherSS,17/04/2020,V745659,52.8,T & S Heating Limited,536.88
Broxtowe Borough Council,http://statistics.data.gov.uk/id/local-authority/37UD,Housing,HOUSING,Repairs,REPS,Chief Executive  / Housing repairs,Sub Contractors [day to day repairs],3107,Other Supplies & Services,OtherSS,17/04/2020,V745672,52.8,T & S Heating Limited,536.88
Broxtowe Borough Council,http://statistics.data.gov.uk/id/local-authority/37UD,Housing,HOUSING,Repairs,REPS,Chief Executive  / Housing repairs,Sub Contractors [day to day repairs],3107,Other Supplies & Services,OtherSS,17/04/2020,V745667,105.6,T & S Heating Limited,536.88
Broxtowe Borough Council,http://statistics.data.gov.uk/id/local-authority/37UD,Works,WORKS,Repairs & Maintenance,REPMAIN,Strategic Director / Enviromental Services,Sub Contractors [day to day repairs],3107,Other Supplies & Services,OtherSS,17/04/2020,V746206,1055.9,Teleshore (UK) Ltd,1267.08
Broxtowe Borough Council,http://statistics.data.gov.uk/id/local-authority/37UD,General,GEN,General,GEN,Strategic Director / Enviromental Services,Stores Purchased - April,9360,Stores,Stores,17/04/2020,V745419,1008.84,The Beck Company,1210.61
Broxtowe Borough Council,http://statistics.data.gov.uk/id/local-authority/37UD,Housing,HOUS,Homelessness,HOME,Chief Executive  / Housing Operations,B&B Invoices,3818,Other Supplies & Services,OtherSS,17/04/2020,V746211,700,The Clarence Hotel,1400
Broxtowe Borough Council,http://statistics.data.gov.uk/id/local-authority/37UD,Housing,HOUS,Homelessness,HOME,Chief Executive  / Housing Operations,B&B Invoices,3818,Other Supplies & Services,OtherSS,17/04/2020,V746210,700,The Clarence Hotel,1400
Broxtowe Borough Council,http://statistics.data.gov.uk/id/local-authority/37UD,Works,WORKS,Waste Management,WASTMAN,Strategic Director / Enviromental Services,Repairs / Servicing  - Materials,5520,Transport Account,TRANACC,17/04/2020,V745206,156.64,Total Vehicle Solutions,680.91
Broxtowe Borough Council,http://statistics.data.gov.uk/id/local-authority/37UD,Works,WORKS,Waste Management,WASTMAN,Strategic Director / Enviromental Services,Repairs / Servicing  - Materials,5520,Transport Account,TRANACC,17/04/2020,V746186,410.78,Total Vehicle Solutions,680.91
Broxtowe Borough Council,http://statistics.data.gov.uk/id/local-authority/37UD,Leisure,LEISURE,Bramcote Leisure Centre,BLC,Deputy Chief Executive / Liberty Leisure,Water Charges,1410,Utilities,Utility,17/04/2020,V744833,5574.37,Water Plus Group Ltd,5574.37
Broxtowe Borough Council,http://statistics.data.gov.uk/id/local-authority/37UD,Technical,TECHNICA,Parks & Recreation Grounds,RECGRD,Deputy Chief Executive / CCTV and Car Parks,Grounds Maintenance - External,1205,Other Prem,OthPrem,17/04/2020,V745940,2200,Wireless CCTV,5280
Broxtowe Borough Council,http://statistics.data.gov.uk/id/local-authority/37UD,Technical,TECHNICA,Parks & Recreation Grounds,RECGRD,Deputy Chief Executive / CCTV and Car Parks,Premises Costs,1017,Other Maintenance,Maint,17/04/2020,V745940,2200,Wireless CCTV,5280
Broxtowe Borough Council,http://statistics.data.gov.uk/id/local-authority/37UD,Works,WORKS,Waste Management,WASTMAN,Strategic Director / Enviromental Services,Repairs / Servicing  - Materials,5520,Transport Account,TRANACC,17/04/2020,V746188,90,Woodside Autocentre Ltd,378
Broxtowe Borough Council,http://statistics.data.gov.uk/id/local-authority/37UD,Works,WORKS,Waste Management,WASTMAN,Strategic Director / Enviromental Services,Repairs / Servicing  - Materials,5520,Transport Account,TRANACC,17/04/2020,V745411,225,Woodside Autocentre Ltd,378
Broxtowe Borough Council,http://statistics.data.gov.uk/id/local-authority/37UD,Housing,HOUSING,Repairs,REPS,Chief Executive  / Housing repairs,Compensation,3642,Other Supplies & Services,OtherSS,07/05/2020,V748448,400,Antony Hodari Solicitors,580
Broxtowe Borough Council,http://statistics.data.gov.uk/id/local-authority/37UD,Housing,HOUSING,Repairs,REPS,Chief Executive  / Housing repairs,Compensation,3642,Other Supplies & Services,OtherSS,07/05/2020,V748448,100,Antony Hodari Solicitors,580
Broxtowe Borough Council,http://statistics.data.gov.uk/id/local-authority/37UD,Resources,RES,Resources,RES,Deputy Chief Executive / Property Services,Other Capital Expenditure,9007,Capital Expenditure,CapExp,07/05/2020,V748510,11331.4,Atkins Limited,13597.68
Broxtowe Borough Council,http://statistics.data.gov.uk/id/local-authority/37UD,Works,WORKS,Waste Management,WASTMAN,Strategic Director / Enviromental Services,Repairs / Servicing  - Materials,5520,Transport Account,TRANACC,07/05/2020,V748728,179,BOC Gases Limited,1929.21
Broxtowe Borough Council,http://statistics.data.gov.uk/id/local-authority/37UD,Works,WORKS,Waste Management,WASTMAN,Strategic Director / Enviromental Services,Repairs / Servicing  - Materials,5520,Transport Account,TRANACC,07/05/2020,V748728,11.5,BOC Gases Limited,1929.21
Broxtowe Borough Council,http://statistics.data.gov.uk/id/local-authority/37UD,Works,WORKS,Waste Management,WASTMAN,Strategic Director / Enviromental Services,Repairs / Servicing  - Materials,5520,Transport Account,TRANACC,07/05/2020,V748728,3,BOC Gases Limited,1929.21
Broxtowe Borough Council,http://statistics.data.gov.uk/id/local-authority/37UD,Works,WORKS,Waste Management,WASTMAN,Strategic Director / Enviromental Services,Repairs / Servicing  - Materials,5520,Transport Account,TRANACC,07/05/2020,V748728,420.1,BOC Gases Limited,1929.21
Broxtowe Borough Council,http://statistics.data.gov.uk/id/local-authority/37UD,Works,WORKS,Waste Management,WASTMAN,Strategic Director / Enviromental Services,Repairs / Servicing  - Materials,5520,Transport Account,TRANACC,07/05/2020,V748728,733.07,BOC Gases Limited,1929.21
Broxtowe Borough Council,http://statistics.data.gov.uk/id/local-authority/37UD,Works,WORKS,Waste Management,WASTMAN,Strategic Director / Enviromental Services,Repairs / Servicing  - Materials,5520,Transport Account,TRANACC,07/05/2020,V748728,261,BOC Gases Limited,1929.21
Broxtowe Borough Council,http://statistics.data.gov.uk/id/local-authority/37UD,Resources,RES,Resources,RES,Deputy Chief Executive / Property Services,New construction,9002,Capital Expenditure,CapExp,07/05/2020,V748638,137821.25,Bowmer & Kirkland Limited,165385.5
Broxtowe Borough Council,http://statistics.data.gov.uk/id/local-authority/37UD,Finance,FINANCE,Admin Buildings,ADBLDG,Strategic Director / Administrative Services,Cleaning Materials,1510,Other Prem,OthPrem,07/05/2020,V748597,25,Bunzl Cleaning and Hygiene,261.98
Broxtowe Borough Council,http://statistics.data.gov.uk/id/local-authority/37UD,Finance,FINANCE,Admin Buildings,ADBLDG,Strategic Director / Administrative Services,Cleaning Materials,1510,Other Prem,OthPrem,07/05/2020,V748598,193.32,Bunzl Cleaning and Hygiene,261.98
Broxtowe Borough Council,http://statistics.data.gov.uk/id/local-authority/37UD,GF Housing,GFHSG,GF Housing,GFHSG,Chief Executive  / Enviromental Health,Grants,9006,Capital Expenditure,CapExp,07/05/2020,V744799,986,Carlton Design and Fabrication Ltd,1844
Broxtowe Borough Council,http://statistics.data.gov.uk/id/local-authority/37UD,GF Housing,GFHSG,GF Housing,GFHSG,Chief Executive  / Enviromental Health,Grants,9006,Capital Expenditure,CapExp,07/05/2020,V748640,858,Carlton Design and Fabrication Ltd,1844
Broxtowe Borough Council,http://statistics.data.gov.uk/id/local-authority/37UD,General,GEN,General,GEN,Strategic Director / Enviromental Services,Stores Purchased - April,9360,Stores,Stores,07/05/2020,V748821,12341.32,Certas Energy,14809.58
Broxtowe Borough Council,http://statistics.data.gov.uk/id/local-authority/37UD,Finance,FINANCE,Regulatory Services,REG,Chief Executive  / Enviromental Health,Equipment Calibration,3019,Other Supplies & Services,OtherSS,07/05/2020,V748815,550,Cirrus Research Plc,1092
Broxtowe Borough Council,http://statistics.data.gov.uk/id/local-authority/37UD,Finance,FINANCE,Regulatory Services,REG,Chief Executive  / Enviromental Health,Equipment Calibration,3019,Other Supplies & Services,OtherSS,07/05/2020,V748815,48,Cirrus Research Plc,1092
Broxtowe Borough Council,http://statistics.data.gov.uk/id/local-authority/37UD,Finance,FINANCE,Regulatory Services,REG,Chief Executive  / Enviromental Health,Equipment Calibration,3019,Other Supplies & Services,OtherSS,07/05/2020,V748815,252,Cirrus Research Plc,1092
Broxtowe Borough Council,http://statistics.data.gov.uk/id/local-authority/37UD,Finance,FINANCE,Regulatory Services,REG,Chief Executive  / Enviromental Health,Equipment Calibration,3019,Other Supplies & Services,OtherSS,07/05/2020,V748815,60,Cirrus Research Plc,1092
Broxtowe Borough Council,http://statistics.data.gov.uk/id/local-authority/37UD,Community Development,COMDEV,Other Community Development,COMOTHER,Chief Executive  / Public Protection,Health Promotion,750,Indirect Employee Exp Oncosts,Oncosts,07/05/2020,V748736,35640,Citizens Advice Broxtowe,35640
Broxtowe Borough Council,http://statistics.data.gov.uk/id/local-authority/37UD,Resources,RES,Resources,RES,Deputy Chief Executive / Revenues and Benefits,Intangible Fixed Assets,9005,Capital Expenditure,CapExp,07/05/2020,V748636,21715,Civica UK Ltd,26058
Broxtowe Borough Council,http://statistics.data.gov.uk/id/local-authority/37UD,Leisure,LEIS,Leisure,LEIS,Finance / IBS,Other Capital Expenditure,9007,Capital Expenditure,CapExp,07/05/2020,V748469,7238.4,Continuum Sport & Leisure Ltd,8686.08
Broxtowe Borough Council,http://statistics.data.gov.uk/id/local-authority/37UD,General,GEN,General,GEN,Strategic Director / Enviromental Services,Stores Purchased - May,9361,Stores,Stores,07/05/2020,V748623,951.84,Cromwell Polythene Ltd,1142.21
Broxtowe Borough Council,http://statistics.data.gov.uk/id/local-authority/37UD,Chief Executive,CE,Human Resources,HR,Chief Executive  / Human Res,Employee Occupational Health,740,Indirect Employee Exp Oncosts,Oncosts,07/05/2020,V748658,470,David Barber (OH) Ltd,470
Broxtowe Borough Council,http://statistics.data.gov.uk/id/local-authority/37UD,Works,WORKS,Waste Management,WASTMAN,Strategic Director / Enviromental Services,Repairs / Servicing  - Materials,5520,Transport Account,TRANACC,07/05/2020,V748817,226.63,Dennis Eagle,554.5
Broxtowe Borough Council,http://statistics.data.gov.uk/id/local-authority/37UD,Works,WORKS,Waste Management,WASTMAN,Strategic Director / Enviromental Services,Repairs / Servicing  - Materials,5520,Transport Account,TRANACC,07/05/2020,V748730,48.17,Dennis Eagle,554.5
Broxtowe Borough Council,http://statistics.data.gov.uk/id/local-authority/37UD,Works,WORKS,Waste Management,WASTMAN,Strategic Director / Enviromental Services,Repairs / Servicing  - Materials,5520,Transport Account,TRANACC,07/05/2020,V748730,71.46,Dennis Eagle,554.5
Broxtowe Borough Council,http://statistics.data.gov.uk/id/local-authority/37UD,Works,WORKS,Waste Management,WASTMAN,Strategic Director / Enviromental Services,Repairs / Servicing  - Materials,5520,Transport Account,TRANACC,07/05/2020,V748730,115.82,Dennis Eagle,554.5
Broxtowe Borough Council,http://statistics.data.gov.uk/id/local-authority/37UD,Technical Works,TW,Technical Works,TW,Strategic Director / Enviromental Services,New construction,9002,Capital Expenditure,CapExp,07/05/2020,V748757,1415,Easy-Gate,1875.6
Broxtowe Borough Council,http://statistics.data.gov.uk/id/local-authority/37UD,Technical,TECHNICA,Parks & Recreation Grounds,RECGRD,Strategic Director / Enviromental Services,Premises Costs,1017,Other Maintenance,Maint,07/05/2020,V747476,148,Easy-Gate,1875.6
Broxtowe Borough Council,http://statistics.data.gov.uk/id/local-authority/37UD,Housing,HOUSING,Repairs,REPS,Strategic Director / Enviromental Services,Waste Disposal,3208,Equipment,Equip,07/05/2020,V747980,21.16,ENVA,308.78
Broxtowe Borough Council,http://statistics.data.gov.uk/id/local-authority/37UD,Housing,HOUSING,Repairs,REPS,Strategic Director / Enviromental Services,Waste Disposal,3208,Equipment,Equip,07/05/2020,V748686,65,ENVA,308.78
Broxtowe Borough Council,http://statistics.data.gov.uk/id/local-authority/37UD,Housing,HOUSING,Tenancy Services,TENSER,Strategic Director / Enviromental Services,Estate Management - North,1254,Other Prem,OthPrem,07/05/2020,V747980,171.16,ENVA,308.78
Broxtowe Borough Council,http://statistics.data.gov.uk/id/local-authority/37UD,Works,WORKS,Repairs & Maintenance,REPMAIN,Strategic Director / Enviromental Services,Sub Contractors [day to day repairs],3107,Other Supplies & Services,OtherSS,07/05/2020,V747459,40,Farm & Garden Services (Steve Walters),348
Broxtowe Borough Council,http://statistics.data.gov.uk/id/local-authority/37UD,Works,WORKS,Other Works,WKSOTHER,Strategic Director / Enviromental Services,Premises Costs,1017,Other Maintenance,Maint,07/05/2020,V747459,250,Farm & Garden Services (Steve Walters),348
Broxtowe Borough Council,http://statistics.data.gov.uk/id/local-authority/37UD,Chief Executive,CE,Human Resources,HR,Chief Executive  / Human Res,Employee Occupational Health,740,Indirect Employee Exp Oncosts,Oncosts,07/05/2020,V748734,280,Forces in the Community,280
Broxtowe Borough Council,http://statistics.data.gov.uk/id/local-authority/37UD,Housing Revenue Account,HRA,Housing Revenue Account,HRA,Chief Executive  / Legal Services,Acquisition of land/buildings,9001,Capital Expenditure,CapExp,07/05/2020,V748652,904.15,Freeths LLP,1084.98
Broxtowe Borough Council,http://statistics.data.gov.uk/id/local-authority/37UD,General,GEN,General,GEN,Strategic Director / Enviromental Services,Stores Purchased - April,9360,Stores,Stores,07/05/2020,V748818,655.2,Gibbs & Dandy,1187.64
Broxtowe Borough Council,http://statistics.data.gov.uk/id/local-authority/37UD,General,GEN,General,GEN,Strategic Director / Enviromental Services,Stores Purchased - April,9360,Stores,Stores,07/05/2020,V748818,152.1,Gibbs & Dandy,1187.64
Broxtowe Borough Council,http://statistics.data.gov.uk/id/local-authority/37UD,General,GEN,General,GEN,Strategic Director / Enviromental Services,Stores Purchased - April,9360,Stores,Stores,07/05/2020,V748819,182.4,Gibbs & Dandy,1187.64
Broxtowe Borough Council,http://statistics.data.gov.uk/id/local-authority/37UD,Works,WORKS,Repairs & Maintenance,REPMAIN,Strategic Director / Enviromental Operations,Premises Costs,1017,Other Maintenance,Maint,07/05/2020,V748687,3.33,Giltbrook Cleaners,261.98
Broxtowe Borough Council,http://statistics.data.gov.uk/id/local-authority/37UD,Works,WORKS,Repairs & Maintenance,REPMAIN,Strategic Director / Enviromental Services,Premises Costs,1017,Other Maintenance,Maint,07/05/2020,V748508,144.77,Giltbrook Cleaners,261.98
Broxtowe Borough Council,http://statistics.data.gov.uk/id/local-authority/37UD,Works,WORKS,Repairs & Maintenance,REPMAIN,Strategic Director / Enviromental Services,Premises Costs,1017,Other Maintenance,Maint,07/05/2020,V748511,70.22,Giltbrook Cleaners,261.98
Broxtowe Borough Council,http://statistics.data.gov.uk/id/local-authority/37UD,Chief Executive,CE,ICT & Customer Services,ICT,Strategic Director / IT Services,Software Maintenance,3436,Other Supplies & Services,OtherSS,07/05/2020,V748438,299,Graitec Limited,8512.8
Broxtowe Borough Council,http://statistics.data.gov.uk/id/local-authority/37UD,Chief Executive,CE,ICT & Customer Services,ICT,Strategic Director / IT Services,Software Maintenance,3436,Other Supplies & Services,OtherSS,07/05/2020,V748438,3075,Graitec Limited,8512.8
Broxtowe Borough Council,http://statistics.data.gov.uk/id/local-authority/37UD,Chief Executive,CE,ICT & Customer Services,ICT,Strategic Director / IT Services,Software Maintenance,3436,Other Supplies & Services,OtherSS,07/05/2020,V748438,1500,Graitec Limited,8512.8
Broxtowe Borough Council,http://statistics.data.gov.uk/id/local-authority/37UD,Chief Executive,CE,ICT & Customer Services,ICT,Strategic Director / IT Services,Software Maintenance,3436,Other Supplies & Services,OtherSS,07/05/2020,V748438,455,Graitec Limited,8512.8
Broxtowe Borough Council,http://statistics.data.gov.uk/id/local-authority/37UD,Chief Executive,CE,ICT & Customer Services,ICT,Strategic Director / IT Services,Software Maintenance,3436,Other Supplies & Services,OtherSS,07/05/2020,V748438,355,Graitec Limited,8512.8
Broxtowe Borough Council,http://statistics.data.gov.uk/id/local-authority/37UD,Chief Executive,CE,ICT & Customer Services,ICT,Strategic Director / IT Services,Software Maintenance,3436,Other Supplies & Services,OtherSS,07/05/2020,V748438,1410,Graitec Limited,8512.8
Broxtowe Borough Council,http://statistics.data.gov.uk/id/local-authority/37UD,Housing,HOUSING,Repairs,REPS,Chief Executive  / Housing repairs,Sub Contractors [day to day repairs],3107,Other Supplies & Services,OtherSS,07/05/2020,V747201,160.42,Halls Master Locksmiths Limited,721.24
Broxtowe Borough Council,http://statistics.data.gov.uk/id/local-authority/37UD,Housing,HOUSING,Repairs,REPS,Chief Executive  / Housing repairs,Sub Contractors [day to day repairs],3107,Other Supplies & Services,OtherSS,07/05/2020,V747170,158.12,Halls Master Locksmiths Limited,721.24
Broxtowe Borough Council,http://statistics.data.gov.uk/id/local-authority/37UD,Housing,HOUSING,Repairs,REPS,Chief Executive  / Housing repairs,Sub Contractors [day to day repairs],3107,Other Supplies & Services,OtherSS,07/05/2020,V747171,124.17,Halls Master Locksmiths Limited,721.24
Broxtowe Borough Council,http://statistics.data.gov.uk/id/local-authority/37UD,Housing,HOUSING,Repairs,REPS,Chief Executive  / Housing repairs,Sub Contractors [day to day repairs],3107,Other Supplies & Services,OtherSS,07/05/2020,V747200,158.33,Halls Master Locksmiths Limited,721.24
Broxtowe Borough Council,http://statistics.data.gov.uk/id/local-authority/37UD,Works,WORKS,Repairs & Maintenance,REPMAIN,Strategic Director / Enviromental Services,Agency Staff,500,Employee Direct Costs,Direct,07/05/2020,V748637,518,Inplace Personnel Services Ltd,621.6
Broxtowe Borough Council,http://statistics.data.gov.uk/id/local-authority/37UD,General,GEN,General,GEN,Deputy Chief Executive / Finance Services,Premiums Paid,9140,Control,Crtl,07/05/2020,V748480,18331.85,JLT Specialty Ltd,18331.85
Broxtowe Borough Council,http://statistics.data.gov.uk/id/local-authority/37UD,General,GEN,General,GEN,Strategic Director / Enviromental Services,Stores Purchased - April,9360,Stores,Stores,07/05/2020,V748595,77,JML Hardware Ltd,391.2
Broxtowe Borough Council,http://statistics.data.gov.uk/id/local-authority/37UD,General,GEN,General,GEN,Strategic Director / Enviromental Services,Stores Purchased - April,9360,Stores,Stores,07/05/2020,V748595,249,JML Hardware Ltd,391.2
Broxtowe Borough Council,http://statistics.data.gov.uk/id/local-authority/37UD,Technical,TECHNICA,Highways,HIGHWYS,Strategic Director / Enviromental Services,Repairs / Servicing  - Materials,5520,Transport Account,TRANACC,07/05/2020,V748729,303.04,Johnston Sweepers Ltd,363.65
Broxtowe Borough Council,http://statistics.data.gov.uk/id/local-authority/37UD,Housing,HOUSING,Repairs,REPS,Chief Executive  / Housing repairs,Sub Contractors [day to day repairs],3107,Other Supplies & Services,OtherSS,07/05/2020,V748561,150,K W T Glass & Glazing Ltd,396
Broxtowe Borough Council,http://statistics.data.gov.uk/id/local-authority/37UD,Housing,HOUSING,Repairs,REPS,Chief Executive  / Housing repairs,Sub Contractors [day to day repairs],3107,Other Supplies & Services,OtherSS,07/05/2020,V748561,15,K W T Glass & Glazing Ltd,396
Broxtowe Borough Council,http://statistics.data.gov.uk/id/local-authority/37UD,Housing,HOUSING,Repairs,REPS,Chief Executive  / Housing repairs,Sub Contractors [day to day repairs],3107,Other Supplies & Services,OtherSS,07/05/2020,V748585,15,K W T Glass & Glazing Ltd,396
Broxtowe Borough Council,http://statistics.data.gov.uk/id/local-authority/37UD,Housing,HOUSING,Repairs,REPS,Chief Executive  / Housing repairs,Sub Contractors [day to day repairs],3107,Other Supplies & Services,OtherSS,07/05/2020,V748585,210,K W T Glass & Glazing Ltd,396
Broxtowe Borough Council,http://statistics.data.gov.uk/id/local-authority/37UD,Chief Executive,CE,ICT & Customer Services,ICT,Strategic Director / IT Services,Hardware Maintenance,3434,Other Supplies & Services,OtherSS,07/05/2020,V748593,471.73,Konica Minolta Business Solutions East Limited,6787.73
Broxtowe Borough Council,http://statistics.data.gov.uk/id/local-authority/37UD,Chief Executive,CE,ICT & Customer Services,ICT,Strategic Director / IT Services,Hardware Maintenance,3434,Other Supplies & Services,OtherSS,07/05/2020,V748594,5009.71,Konica Minolta Business Solutions East Limited,6787.73
Broxtowe Borough Council,http://statistics.data.gov.uk/id/local-authority/37UD,Chief Executive,CE,ICT & Customer Services,ICT,Strategic Director / IT Services,Hardware Maintenance,3434,Other Supplies & Services,OtherSS,07/05/2020,V748564,175,Konica Minolta Business Solutions East Limited,6787.73
Broxtowe Borough Council,http://statistics.data.gov.uk/id/local-authority/37UD,Technical,TECHNICA,Highways,HIGHWYS,Strategic Director / Enviromental Services,Sub Contractors [day to day repairs],3107,Other Supplies & Services,OtherSS,07/05/2020,V748514,600,M Flinders Wrought Iron and Steel Fabrications,600
Broxtowe Borough Council,http://statistics.data.gov.uk/id/local-authority/37UD,Finance,FINANCE,Finance Services,FINANCE,Deputy Chief Executive / Finance Services,Agency Staff,500,Employee Direct Costs,Direct,07/05/2020,V748477,1618.75,Macildowie Associates,3851.7
Broxtowe Borough Council,http://statistics.data.gov.uk/id/local-authority/37UD,Finance,FINANCE,Finance Services,FINANCE,Deputy Chief Executive / Finance Services,Agency Staff,500,Employee Direct Costs,Direct,07/05/2020,V748478,1591,Macildowie Associates,3851.7
Broxtowe Borough Council,http://statistics.data.gov.uk/id/local-authority/37UD,Works,WORKS,Repairs & Maintenance,REPMAIN,Strategic Director / Enviromental Services,Miscellaneous Costs,5580,Transport Account,TRANACC,07/05/2020,V748682,1071,Masternaut Uk Ltd,3549.6
Broxtowe Borough Council,http://statistics.data.gov.uk/id/local-authority/37UD,Works,WORKS,Waste Management,WASTMAN,Strategic Director / Enviromental Services,Miscellaneous Costs,5580,Transport Account,TRANACC,07/05/2020,V748681,153,Masternaut Uk Ltd,3549.6
Broxtowe Borough Council,http://statistics.data.gov.uk/id/local-authority/37UD,Works,WORKS,Waste Management,WASTMAN,Strategic Director / Enviromental Services,Miscellaneous Costs,5580,Transport Account,TRANACC,07/05/2020,V748682,1734,Masternaut Uk Ltd,3549.6
Broxtowe Borough Council,http://statistics.data.gov.uk/id/local-authority/37UD,Works,WORKS,Repairs & Maintenance,REPMAIN,Chief Executive  / Human Res,Agency Staff,500,Employee Direct Costs,Direct,07/05/2020,V748515,1437.55,Matrix,31753.86
Broxtowe Borough Council,http://statistics.data.gov.uk/id/local-authority/37UD,Housing Revenue Account,HRA,Housing Revenue Account,HRA,Chief Executive  / Human Res,Capital Salaries,9010,Capital Expenditure,CapExp,07/05/2020,V748515,1788.9,Matrix,31753.86
Broxtowe Borough Council,http://statistics.data.gov.uk/id/local-authority/37UD,Works,WORKS,Waste Management,WASTMAN,Chief Executive  / Human Res,Agency Staff,500,Employee Direct Costs,Direct,07/05/2020,V748515,10304.59,Matrix,31753.86
Broxtowe Borough Council,http://statistics.data.gov.uk/id/local-authority/37UD,Finance,FINANCE,Admin Services,ADMIN,Chief Executive  / Human Res,Agency Staff,500,Employee Direct Costs,Direct,07/05/2020,V748515,421.85,Matrix,31753.86
Broxtowe Borough Council,http://statistics.data.gov.uk/id/local-authority/37UD,Finance,FINANCE,Finance Services,FINANCE,Chief Executive  / Human Res,Agency Staff,500,Employee Direct Costs,Direct,07/05/2020,V748515,1540.28,Matrix,31753.86
Broxtowe Borough Council,http://statistics.data.gov.uk/id/local-authority/37UD,Housing,HOUSING,Repairs,REPS,Chief Executive  / Human Res,Agency Staff,500,Employee Direct Costs,Direct,07/05/2020,V748515,1043.05,Matrix,31753.86
Broxtowe Borough Council,http://statistics.data.gov.uk/id/local-authority/37UD,Finance,FINANCE,Legal Services,LEGAL,Chief Executive  / Human Res,Agency Staff,500,Employee Direct Costs,Direct,07/05/2020,V748515,3706.44,Matrix,31753.86
Broxtowe Borough Council,http://statistics.data.gov.uk/id/local-authority/37UD,Housing,HOUS,Homelessness,HOME,Chief Executive  / Human Res,Agency Staff,500,Employee Direct Costs,Direct,07/05/2020,V748515,6218.89,Matrix,31753.86
Broxtowe Borough Council,http://statistics.data.gov.uk/id/local-authority/37UD,Finance,FINANCE,Admin Buildings,ADBLDG,Strategic Director / Administrative Services,Cleaning Materials,1510,Other Prem,OthPrem,07/05/2020,V748527,20.76,Mayflower Washroom Solutions,398.33
Broxtowe Borough Council,http://statistics.data.gov.uk/id/local-authority/37UD,Finance,FINANCE,Admin Buildings,ADBLDG,Strategic Director / Administrative Services,Cleaning Materials,1510,Other Prem,OthPrem,07/05/2020,V748527,38,Mayflower Washroom Solutions,398.33
Broxtowe Borough Council,http://statistics.data.gov.uk/id/local-authority/37UD,Finance,FINANCE,Admin Buildings,ADBLDG,Strategic Director / Administrative Services,Cleaning Materials,1510,Other Prem,OthPrem,07/05/2020,V748527,15.8,Mayflower Washroom Solutions,398.33
Broxtowe Borough Council,http://statistics.data.gov.uk/id/local-authority/37UD,Finance,FINANCE,Admin Buildings,ADBLDG,Strategic Director / Administrative Services,Cleaning Materials,1510,Other Prem,OthPrem,07/05/2020,V748527,28.8,Mayflower Washroom Solutions,398.33
Broxtowe Borough Council,http://statistics.data.gov.uk/id/local-authority/37UD,Finance,FINANCE,Admin Buildings,ADBLDG,Strategic Director / Administrative Services,Cleaning Materials,1510,Other Prem,OthPrem,07/05/2020,V748527,2.5,Mayflower Washroom Solutions,398.33
Broxtowe Borough Council,http://statistics.data.gov.uk/id/local-authority/37UD,Finance,FINANCE,Admin Buildings,ADBLDG,Strategic Director / Administrative Services,Cleaning Materials,1510,Other Prem,OthPrem,07/05/2020,V748527,5.69,Mayflower Washroom Solutions,398.33
Broxtowe Borough Council,http://statistics.data.gov.uk/id/local-authority/37UD,Finance,FINANCE,Admin Buildings,ADBLDG,Strategic Director / Administrative Services,Cleaning Materials,1510,Other Prem,OthPrem,07/05/2020,V748527,25,Mayflower Washroom Solutions,398.33
Broxtowe Borough Council,http://statistics.data.gov.uk/id/local-authority/37UD,Finance,FINANCE,Admin Buildings,ADBLDG,Strategic Director / Administrative Services,Cleaning Materials,1510,Other Prem,OthPrem,07/05/2020,V748527,2.4,Mayflower Washroom Solutions,398.33
Broxtowe Borough Council,http://statistics.data.gov.uk/id/local-authority/37UD,Finance,FINANCE,Admin Buildings,ADBLDG,Strategic Director / Administrative Services,Cleaning Materials,1510,Other Prem,OthPrem,07/05/2020,V748527,2.5,Mayflower Washroom Solutions,398.33
Broxtowe Borough Council,http://statistics.data.gov.uk/id/local-authority/37UD,Finance,FINANCE,Admin Buildings,ADBLDG,Strategic Director / Administrative Services,Cleaning Materials,1510,Other Prem,OthPrem,07/05/2020,V748527,65.7,Mayflower Washroom Solutions,398.33
Broxtowe Borough Council,http://statistics.data.gov.uk/id/local-authority/37UD,Finance,FINANCE,Admin Buildings,ADBLDG,Strategic Director / Administrative Services,Cleaning Materials,1510,Other Prem,OthPrem,07/05/2020,V748527,18.96,Mayflower Washroom Solutions,398.33
Broxtowe Borough Council,http://statistics.data.gov.uk/id/local-authority/37UD,Finance,FINANCE,Admin Buildings,ADBLDG,Strategic Director / Administrative Services,Cleaning Materials,1510,Other Prem,OthPrem,07/05/2020,V748527,22.2,Mayflower Washroom Solutions,398.33
Broxtowe Borough Council,http://statistics.data.gov.uk/id/local-authority/37UD,Finance,FINANCE,Admin Buildings,ADBLDG,Strategic Director / Administrative Services,Towel Supply,1520,Other Prem,OthPrem,07/05/2020,V748527,69.84,Mayflower Washroom Solutions,398.33
Broxtowe Borough Council,http://statistics.data.gov.uk/id/local-authority/37UD,Finance,FINANCE,Admin Buildings,ADBLDG,Strategic Director / Administrative Services,Cleaning Materials,1510,Other Prem,OthPrem,07/05/2020,V748527,2.6,Mayflower Washroom Solutions,398.33
Broxtowe Borough Council,http://statistics.data.gov.uk/id/local-authority/37UD,Finance,FINANCE,Admin Buildings,ADBLDG,Strategic Director / Administrative Services,Cleaning Materials,1510,Other Prem,OthPrem,07/05/2020,V748527,5.5,Mayflower Washroom Solutions,398.33
Broxtowe Borough Council,http://statistics.data.gov.uk/id/local-authority/37UD,Finance,FINANCE,Admin Buildings,ADBLDG,Strategic Director / Administrative Services,Cleaning Materials,1510,Other Prem,OthPrem,07/05/2020,V748527,5.69,Mayflower Washroom Solutions,398.33
Broxtowe Borough Council,http://statistics.data.gov.uk/id/local-authority/37UD,Works,WORKS,Other Works,WKSOTHER,Strategic Director / Enviromental Services,Premises Costs,1017,Other Maintenance,Maint,07/05/2020,V748507,260,Meadow Lane UK Ltd,312
Broxtowe Borough Council,http://statistics.data.gov.uk/id/local-authority/37UD,Works Directorate,DIRWORKS,Works Directorate,DIRWORKS,Strategic Director / Enviromental Services,Subscriptions,3730,Other Supplies & Services,OtherSS,07/05/2020,V748766,255,Midlands Parks Forum,255
Broxtowe Borough Council,http://statistics.data.gov.uk/id/local-authority/37UD,Works,WORKS,Repairs & Maintenance,REPMAIN,Strategic Director / Enviromental Services,Security - Public Buildings,3626,Security Costs,Secure,07/05/2020,V748661,304,Night Guard Security,384
Broxtowe Borough Council,http://statistics.data.gov.uk/id/local-authority/37UD,Works,WORKS,Repairs & Maintenance,REPMAIN,Strategic Director / Enviromental Services,Security - Public Buildings,3626,Security Costs,Secure,07/05/2020,V748661,16,Night Guard Security,384
Broxtowe Borough Council,http://statistics.data.gov.uk/id/local-authority/37UD,Works,WORKS,Repairs & Maintenance,REPMAIN,Strategic Director / Enviromental Services,Materials  - Direct,3202,Equipment,Equip,07/05/2020,V748631,212,Nomix Enviro Limited,254.4
Broxtowe Borough Council,http://statistics.data.gov.uk/id/local-authority/37UD,Chief Executive,CE,ICT & Customer Services,ICT,Strategic Director / IT Services,Software Maintenance,3436,Other Supplies & Services,OtherSS,07/05/2020,V748600,18586,Northgate Public Services(UK)Ltd,22303.2
Broxtowe Borough Council,http://statistics.data.gov.uk/id/local-authority/37UD,Control Accounts,CONTROL,Payroll,PAY,Strategic Director / Payovers,Superannuation - Employees,9154,Control,Crtl,07/05/2020,V748660,53642.52,Nottinghamshire County Council,205626.67
Broxtowe Borough Council,http://statistics.data.gov.uk/id/local-authority/37UD,Control Accounts,CONTROL,Payroll,PAY,Strategic Director / Payovers,Superannuation - Employers,9155,Control,Crtl,07/05/2020,V748660,151984.15,Nottinghamshire County Council,205626.67
Broxtowe Borough Council,http://statistics.data.gov.uk/id/local-authority/37UD,Finance,FINANCE,Admin Services,ADMIN,Strategic Director / Administrative Services,Miscellaneous Expenses,3800,Miscellaneous,Msc,07/05/2020,V748697,1599,Nottinghamshire County Council,2662.8
Broxtowe Borough Council,http://statistics.data.gov.uk/id/local-authority/37UD,Finance,FINANCE,Admin Services,ADMIN,Strategic Director / Administrative Services,Miscellaneous Expenses,3800,Miscellaneous,Msc,07/05/2020,V748698,620,Nottinghamshire County Council,2662.8
Broxtowe Borough Council,http://statistics.data.gov.uk/id/local-authority/37UD,Housing,HOUS,Homelessness,HOME,Chief Executive  / Housing Operations,B&B Invoices,3818,Other Supplies & Services,OtherSS,07/05/2020,V748645,700,Novotel Hotels,4158
Broxtowe Borough Council,http://statistics.data.gov.uk/id/local-authority/37UD,Housing,HOUS,Homelessness,HOME,Chief Executive  / Housing Operations,B&B Invoices,3818,Other Supplies & Services,OtherSS,07/05/2020,V748644,688.37,Novotel Hotels,4158
Broxtowe Borough Council,http://statistics.data.gov.uk/id/local-authority/37UD,Housing,HOUS,Homelessness,HOME,Chief Executive  / Housing Operations,B&B Invoices,3818,Other Supplies & Services,OtherSS,07/05/2020,V748643,700,Novotel Hotels,4158
Broxtowe Borough Council,http://statistics.data.gov.uk/id/local-authority/37UD,Housing,HOUS,Homelessness,HOME,Chief Executive  / Housing Operations,B&B Invoices,3818,Other Supplies & Services,OtherSS,07/05/2020,V748646,688.37,Novotel Hotels,4158
Broxtowe Borough Council,http://statistics.data.gov.uk/id/local-authority/37UD,Housing,HOUS,Homelessness,HOME,Chief Executive  / Housing Operations,B&B Invoices,3818,Other Supplies & Services,OtherSS,07/05/2020,V748641,688.37,Novotel Hotels,4158
Broxtowe Borough Council,http://statistics.data.gov.uk/id/local-authority/37UD,Finance,FINANCE,Finance Services,FINANCE,Deputy Chief Executive / Finance Services,Grants,3700,Other Supplies & Services,OtherSS,07/05/2020,V748816,2000,Nuthall Parish Council,2000
Broxtowe Borough Council,http://statistics.data.gov.uk/id/local-authority/37UD,General,GEN,General,GEN,Strategic Director / Enviromental Services,Stores Purchased - April,9360,Stores,Stores,07/05/2020,V747473,70.5,Powred Heating Components Ltd,5635.49
Broxtowe Borough Council,http://statistics.data.gov.uk/id/local-authority/37UD,General,GEN,General,GEN,Strategic Director / Enviromental Services,Stores Purchased - April,9360,Stores,Stores,07/05/2020,V747474,779.25,Powred Heating Components Ltd,5635.49
Broxtowe Borough Council,http://statistics.data.gov.uk/id/local-authority/37UD,General,GEN,General,GEN,Strategic Director / Enviromental Services,Stores Purchased - April,9360,Stores,Stores,07/05/2020,V747467,15.4,Powred Heating Components Ltd,5635.49
Broxtowe Borough Council,http://statistics.data.gov.uk/id/local-authority/37UD,General,GEN,General,GEN,Strategic Director / Enviromental Services,Stores Purchased - April,9360,Stores,Stores,07/05/2020,V747467,11.8,Powred Heating Components Ltd,5635.49
Broxtowe Borough Council,http://statistics.data.gov.uk/id/local-authority/37UD,General,GEN,General,GEN,Strategic Director / Enviromental Services,Stores Purchased - April,9360,Stores,Stores,07/05/2020,V747467,12.5,Powred Heating Components Ltd,5635.49
Broxtowe Borough Council,http://statistics.data.gov.uk/id/local-authority/37UD,General,GEN,General,GEN,Strategic Director / Enviromental Services,Stores Purchased - April,9360,Stores,Stores,07/05/2020,V747468,499.29,Powred Heating Components Ltd,5635.49
Broxtowe Borough Council,http://statistics.data.gov.uk/id/local-authority/37UD,General,GEN,General,GEN,Strategic Director / Enviromental Services,Stores Purchased - April,9360,Stores,Stores,07/05/2020,V747467,15.4,Powred Heating Components Ltd,5635.49
Broxtowe Borough Council,http://statistics.data.gov.uk/id/local-authority/37UD,General,GEN,General,GEN,Strategic Director / Enviromental Services,Stores Purchased - May,9361,Stores,Stores,07/05/2020,V748624,177.75,Powred Heating Components Ltd,5635.49
Broxtowe Borough Council,http://statistics.data.gov.uk/id/local-authority/37UD,General,GEN,General,GEN,Strategic Director / Enviromental Services,Stores Purchased - May,9361,Stores,Stores,07/05/2020,V748624,47.98,Powred Heating Components Ltd,5635.49
Broxtowe Borough Council,http://statistics.data.gov.uk/id/local-authority/37UD,General,GEN,General,GEN,Strategic Director / Enviromental Services,Stores Purchased - March,9371,Stores,Stores,07/05/2020,V747472,94.77,Powred Heating Components Ltd,5635.49
Broxtowe Borough Council,http://statistics.data.gov.uk/id/local-authority/37UD,General,GEN,General,GEN,Strategic Director / Enviromental Services,Stores Purchased - March,9371,Stores,Stores,07/05/2020,V747472,169.95,Powred Heating Components Ltd,5635.49
Broxtowe Borough Council,http://statistics.data.gov.uk/id/local-authority/37UD,General,GEN,General,GEN,Strategic Director / Enviromental Services,Stores Purchased - March,9371,Stores,Stores,07/05/2020,V747464,20.61,Powred Heating Components Ltd,5635.49
Broxtowe Borough Council,http://statistics.data.gov.uk/id/local-authority/37UD,General,GEN,General,GEN,Strategic Director / Enviromental Services,Stores Purchased - March,9371,Stores,Stores,07/05/2020,V747472,61.97,Powred Heating Components Ltd,5635.49
Broxtowe Borough Council,http://statistics.data.gov.uk/id/local-authority/37UD,General,GEN,General,GEN,Strategic Director / Enviromental Services,Stores Purchased - April,9360,Stores,Stores,07/05/2020,V747473,273.5,Powred Heating Components Ltd,5635.49
Broxtowe Borough Council,http://statistics.data.gov.uk/id/local-authority/37UD,General,GEN,General,GEN,Strategic Director / Enviromental Services,Stores Purchased - April,9360,Stores,Stores,07/05/2020,V747473,49.96,Powred Heating Components Ltd,5635.49
Broxtowe Borough Council,http://statistics.data.gov.uk/id/local-authority/37UD,General,GEN,General,GEN,Strategic Director / Enviromental Services,Stores Purchased - March,9371,Stores,Stores,07/05/2020,V747463,221.33,Powred Heating Components Ltd,5635.49
Broxtowe Borough Council,http://statistics.data.gov.uk/id/local-authority/37UD,General,GEN,General,GEN,Strategic Director / Enviromental Services,Stores Purchased - March,9371,Stores,Stores,07/05/2020,V747463,48.09,Powred Heating Components Ltd,5635.49
Broxtowe Borough Council,http://statistics.data.gov.uk/id/local-authority/37UD,General,GEN,General,GEN,Strategic Director / Enviromental Services,Stores Purchased - April,9360,Stores,Stores,07/05/2020,V747473,15.72,Powred Heating Components Ltd,5635.49
Broxtowe Borough Council,http://statistics.data.gov.uk/id/local-authority/37UD,General,GEN,General,GEN,Strategic Director / Enviromental Services,Stores Purchased - April,9360,Stores,Stores,07/05/2020,V747473,59.68,Powred Heating Components Ltd,5635.49
Broxtowe Borough Council,http://statistics.data.gov.uk/id/local-authority/37UD,General,GEN,General,GEN,Strategic Director / Enviromental Services,Stores Purchased - April,9360,Stores,Stores,07/05/2020,V747467,15.4,Powred Heating Components Ltd,5635.49
Broxtowe Borough Council,http://statistics.data.gov.uk/id/local-authority/37UD,General,GEN,General,GEN,Strategic Director / Enviromental Services,Stores Purchased - April,9360,Stores,Stores,07/05/2020,V747473,103.55,Powred Heating Components Ltd,5635.49
Broxtowe Borough Council,http://statistics.data.gov.uk/id/local-authority/37UD,General,GEN,General,GEN,Strategic Director / Enviromental Services,Stores Purchased - April,9360,Stores,Stores,07/05/2020,V747473,260.76,Powred Heating Components Ltd,5635.49
Broxtowe Borough Council,http://statistics.data.gov.uk/id/local-authority/37UD,General,GEN,General,GEN,Strategic Director / Enviromental Services,Stores Purchased - April,9360,Stores,Stores,07/05/2020,V747460,98.45,Powred Heating Components Ltd,5635.49
Broxtowe Borough Council,http://statistics.data.gov.uk/id/local-authority/37UD,General,GEN,General,GEN,Strategic Director / Enviromental Services,Stores Purchased - April,9360,Stores,Stores,07/05/2020,V747462,180.75,Powred Heating Components Ltd,5635.49
Broxtowe Borough Council,http://statistics.data.gov.uk/id/local-authority/37UD,General,GEN,General,GEN,Strategic Director / Enviromental Services,Stores Purchased - April,9360,Stores,Stores,07/05/2020,V747461,92.36,Powred Heating Components Ltd,5635.49
Broxtowe Borough Council,http://statistics.data.gov.uk/id/local-authority/37UD,General,GEN,General,GEN,Strategic Director / Enviromental Services,Stores Purchased - April,9360,Stores,Stores,07/05/2020,V747467,217.08,Powred Heating Components Ltd,5635.49
Broxtowe Borough Council,http://statistics.data.gov.uk/id/local-authority/37UD,General,GEN,General,GEN,Strategic Director / Enviromental Services,Stores Purchased - April,9360,Stores,Stores,07/05/2020,V747473,108.54,Powred Heating Components Ltd,5635.49
Broxtowe Borough Council,http://statistics.data.gov.uk/id/local-authority/37UD,General,GEN,General,GEN,Strategic Director / Enviromental Services,Stores Purchased - April,9360,Stores,Stores,07/05/2020,V748765,325.62,Powred Heating Components Ltd,5635.49
Broxtowe Borough Council,http://statistics.data.gov.uk/id/local-authority/37UD,General,GEN,General,GEN,Strategic Director / Enviromental Services,Stores Purchased - April,9360,Stores,Stores,07/05/2020,V747460,90.83,Powred Heating Components Ltd,5635.49
Broxtowe Borough Council,http://statistics.data.gov.uk/id/local-authority/37UD,General,GEN,General,GEN,Strategic Director / Enviromental Services,Stores Purchased - February,9370,Stores,Stores,07/05/2020,V747470,331.25,Powred Heating Components Ltd,5635.49
Broxtowe Borough Council,http://statistics.data.gov.uk/id/local-authority/37UD,General,GEN,General,GEN,Strategic Director / Enviromental Services,Stores Purchased - March,9371,Stores,Stores,07/05/2020,V747472,226.2,Powred Heating Components Ltd,5635.49
Broxtowe Borough Council,http://statistics.data.gov.uk/id/local-authority/37UD,Community Development,COMDEV,Community Facilities,COMFAC,Deputy Chief Executive / Property Services,Miscellaneous Expenses,3800,Miscellaneous,Msc,07/05/2020,V748560,530,REDACTED,530
Broxtowe Borough Council,http://statistics.data.gov.uk/id/local-authority/37UD,General,GEN,General,GEN,Strategic Director / Enviromental Services,Stores Purchased - April,9360,Stores,Stores,07/05/2020,V747482,25.36,Rexel UK Ltd,2785.21
Broxtowe Borough Council,http://statistics.data.gov.uk/id/local-authority/37UD,General,GEN,General,GEN,Strategic Director / Enviromental Services,Stores Purchased - April,9360,Stores,Stores,07/05/2020,V747481,71.39,Rexel UK Ltd,2785.21
Broxtowe Borough Council,http://statistics.data.gov.uk/id/local-authority/37UD,General,GEN,General,GEN,Strategic Director / Enviromental Services,Stores Purchased - April,9360,Stores,Stores,07/05/2020,V747480,104.37,Rexel UK Ltd,2785.21
Broxtowe Borough Council,http://statistics.data.gov.uk/id/local-authority/37UD,General,GEN,General,GEN,Strategic Director / Enviromental Services,Stores Purchased - April,9360,Stores,Stores,07/05/2020,V747485,34.79,Rexel UK Ltd,2785.21
Broxtowe Borough Council,http://statistics.data.gov.uk/id/local-authority/37UD,General,GEN,General,GEN,Strategic Director / Enviromental Services,Stores Purchased - April,9360,Stores,Stores,07/05/2020,V747478,475.98,Rexel UK Ltd,2785.21
Broxtowe Borough Council,http://statistics.data.gov.uk/id/local-authority/37UD,General,GEN,General,GEN,Strategic Director / Enviromental Services,Stores Purchased - April,9360,Stores,Stores,07/05/2020,V747479,90.52,Rexel UK Ltd,2785.21
Broxtowe Borough Council,http://statistics.data.gov.uk/id/local-authority/37UD,General,GEN,General,GEN,Strategic Director / Enviromental Services,Stores Purchased - April,9360,Stores,Stores,07/05/2020,V747483,370,Rexel UK Ltd,2785.21
Broxtowe Borough Council,http://statistics.data.gov.uk/id/local-authority/37UD,General,GEN,General,GEN,Strategic Director / Enviromental Services,Stores Purchased - April,9360,Stores,Stores,07/05/2020,V747477,104.38,Rexel UK Ltd,2785.21
Broxtowe Borough Council,http://statistics.data.gov.uk/id/local-authority/37UD,General,GEN,General,GEN,Strategic Director / Enviromental Services,Stores Purchased - April,9360,Stores,Stores,07/05/2020,V747483,42.6,Rexel UK Ltd,2785.21
Broxtowe Borough Council,http://statistics.data.gov.uk/id/local-authority/37UD,General,GEN,General,GEN,Strategic Director / Enviromental Services,Stores Purchased - April,9360,Stores,Stores,07/05/2020,V747486,266,Rexel UK Ltd,2785.21
Broxtowe Borough Council,http://statistics.data.gov.uk/id/local-authority/37UD,General,GEN,General,GEN,Strategic Director / Enviromental Services,Stores Purchased - April,9360,Stores,Stores,07/05/2020,V747484,136.96,Rexel UK Ltd,2785.21
Broxtowe Borough Council,http://statistics.data.gov.uk/id/local-authority/37UD,General,GEN,General,GEN,Strategic Director / Enviromental Services,Stores Purchased - April,9360,Stores,Stores,07/05/2020,V747487,54.8,Rexel UK Ltd,2785.21
Broxtowe Borough Council,http://statistics.data.gov.uk/id/local-authority/37UD,General,GEN,General,GEN,Strategic Director / Enviromental Services,Stores Purchased - April,9360,Stores,Stores,07/05/2020,V747478,543.85,Rexel UK Ltd,2785.21
Broxtowe Borough Council,http://statistics.data.gov.uk/id/local-authority/37UD,Technical,TECHNICA,Parks & Recreation Grounds,RECGRD,Strategic Director / Enviromental Services,Grounds Maintenance - External,1205,Other Prem,OthPrem,07/05/2020,V748685,780,Rigby Taylor Ltd,936
Broxtowe Borough Council,http://statistics.data.gov.uk/id/local-authority/37UD,General,GEN,General,GEN,Strategic Director / Enviromental Services,Stores Purchased - April,9360,Stores,Stores,07/05/2020,V748627,298,S V Timber Ltd,848.43
Broxtowe Borough Council,http://statistics.data.gov.uk/id/local-authority/37UD,General,GEN,General,GEN,Strategic Director / Enviromental Services,Stores Purchased - April,9360,Stores,Stores,07/05/2020,V748629,209.04,S V Timber Ltd,848.43
Broxtowe Borough Council,http://statistics.data.gov.uk/id/local-authority/37UD,General,GEN,General,GEN,Strategic Director / Enviromental Services,Stores Purchased - April,9360,Stores,Stores,07/05/2020,V748629,145.8,S V Timber Ltd,848.43
Broxtowe Borough Council,http://statistics.data.gov.uk/id/local-authority/37UD,General,GEN,General,GEN,Strategic Director / Enviromental Services,Stores Purchased - April,9360,Stores,Stores,07/05/2020,V748627,15.4,S V Timber Ltd,848.43
Broxtowe Borough Council,http://statistics.data.gov.uk/id/local-authority/37UD,General,GEN,General,GEN,Strategic Director / Enviromental Services,Stores Purchased - April,9360,Stores,Stores,07/05/2020,V748630,38.78,S V Timber Ltd,848.43
Broxtowe Borough Council,http://statistics.data.gov.uk/id/local-authority/37UD,Housing,HOUSING,Repairs,REPS,Strategic Director / Enviromental Services,Waste Disposal,3208,Equipment,Equip,07/05/2020,V748683,340,Slicker Recycling Ltd,408
Broxtowe Borough Council,http://statistics.data.gov.uk/id/local-authority/37UD,Control Accounts,CONTROL,Payroll,PAY,Chief Executive  / Human Res,Childcare Vouchers,9181,Control,Crtl,07/05/2020,V748693,2113,Sodexo Motivation Solutions (Child Care Vouchers),2189.07
Broxtowe Borough Council,http://statistics.data.gov.uk/id/local-authority/37UD,Control Accounts,CONTROL,Payroll,PAY,Chief Executive  / Human Res,Childcare Vouchers,9181,Control,Crtl,07/05/2020,V748693,63.39,Sodexo Motivation Solutions (Child Care Vouchers),2189.07
Broxtowe Borough Council,http://statistics.data.gov.uk/id/local-authority/37UD,General,GEN,General,GEN,Strategic Director / Enviromental Services,Stores Purchased - April,9360,Stores,Stores,07/05/2020,V748596,9150,SSI Schaefer,16074.72
Broxtowe Borough Council,http://statistics.data.gov.uk/id/local-authority/37UD,General,GEN,General,GEN,Strategic Director / Enviromental Services,Stores Purchased - April,9360,Stores,Stores,07/05/2020,V748596,4245.6,SSI Schaefer,16074.72
Broxtowe Borough Council,http://statistics.data.gov.uk/id/local-authority/37UD,Housing Revenue Account,HRA,Housing Revenue Account,HRA,Deputy Chief Executive / Capital Works,New construction,9002,Capital Expenditure,CapExp,07/05/2020,V748639,29277.45,Sustainable Building Services UK Ltd,35683.62
Broxtowe Borough Council,http://statistics.data.gov.uk/id/local-authority/37UD,Housing Revenue Account,HRA,Housing Revenue Account,HRA,Deputy Chief Executive / Capital Works,New construction,9002,Capital Expenditure,CapExp,07/05/2020,V748639,4118.58,Sustainable Building Services UK Ltd,35683.62
Broxtowe Borough Council,http://statistics.data.gov.uk/id/local-authority/37UD,Housing,HOUSING,Repairs,REPS,Chief Executive  / Housing repairs,Sub Contractors [day to day repairs],3107,Other Supplies & Services,OtherSS,07/05/2020,V747163,52.8,T & S Heating Limited,1679.84
Broxtowe Borough Council,http://statistics.data.gov.uk/id/local-authority/37UD,Housing,HOUSING,Repairs,REPS,Chief Executive  / Housing repairs,Sub Contractors [day to day repairs],3107,Other Supplies & Services,OtherSS,07/05/2020,V747162,52.8,T & S Heating Limited,1679.84
Broxtowe Borough Council,http://statistics.data.gov.uk/id/local-authority/37UD,Housing,HOUSING,Repairs,REPS,Chief Executive  / Housing repairs,Sub Contractors [day to day repairs],3107,Other Supplies & Services,OtherSS,07/05/2020,V747169,52.8,T & S Heating Limited,1679.84
Broxtowe Borough Council,http://statistics.data.gov.uk/id/local-authority/37UD,Housing,HOUSING,Repairs,REPS,Chief Executive  / Housing repairs,Sub Contractors [day to day repairs],3107,Other Supplies & Services,OtherSS,07/05/2020,V747161,52.8,T & S Heating Limited,1679.84
Broxtowe Borough Council,http://statistics.data.gov.uk/id/local-authority/37UD,Housing,HOUSING,Repairs,REPS,Chief Executive  / Housing repairs,Sub Contractors [day to day repairs],3107,Other Supplies & Services,OtherSS,07/05/2020,V747168,52.8,T & S Heating Limited,1679.84
Broxtowe Borough Council,http://statistics.data.gov.uk/id/local-authority/37UD,Housing,HOUSING,Repairs,REPS,Chief Executive  / Housing repairs,Sub Contractors [day to day repairs],3107,Other Supplies & Services,OtherSS,07/05/2020,V747167,52.8,T & S Heating Limited,1679.84
Broxtowe Borough Council,http://statistics.data.gov.uk/id/local-authority/37UD,Housing,HOUSING,Repairs,REPS,Chief Executive  / Housing repairs,Sub Contractors [day to day repairs],3107,Other Supplies & Services,OtherSS,07/05/2020,V748482,52.8,T & S Heating Limited,1679.84
Broxtowe Borough Council,http://statistics.data.gov.uk/id/local-authority/37UD,Bramcote Crematorium,BCREM,Bramcote Crematorium,BCREM,Deputy Chief Executive / Capital Works,Serenity Chapel Refurbishment,9533,Bramcote Crem Expenditure,BCExp,07/05/2020,V748684,819.07,T & S Heating Limited,1679.84
Broxtowe Borough Council,http://statistics.data.gov.uk/id/local-authority/37UD,Housing,HOUSING,Repairs,REPS,Chief Executive  / Housing repairs,Sub Contractors [day to day repairs],3107,Other Supplies & Services,OtherSS,07/05/2020,V747164,52.8,T & S Heating Limited,1679.84
Broxtowe Borough Council,http://statistics.data.gov.uk/id/local-authority/37UD,Housing,HOUSING,Repairs,REPS,Chief Executive  / Housing repairs,Sub Contractors [day to day repairs],3107,Other Supplies & Services,OtherSS,07/05/2020,V747160,52.8,T & S Heating Limited,1679.84
Broxtowe Borough Council,http://statistics.data.gov.uk/id/local-authority/37UD,Housing,HOUSING,Repairs,REPS,Chief Executive  / Housing repairs,Sub Contractors [day to day repairs],3107,Other Supplies & Services,OtherSS,07/05/2020,V747165,52.8,T & S Heating Limited,1679.84
Broxtowe Borough Council,http://statistics.data.gov.uk/id/local-authority/37UD,Housing,HOUSING,Repairs,REPS,Chief Executive  / Housing repairs,Sub Contractors [day to day repairs],3107,Other Supplies & Services,OtherSS,07/05/2020,V747166,52.8,T & S Heating Limited,1679.84
Broxtowe Borough Council,http://statistics.data.gov.uk/id/local-authority/37UD,General,GEN,General,GEN,Strategic Director / Enviromental Services,Stores Purchased - March,9371,Stores,Stores,07/05/2020,V745189,56.5,The Beck Company,485.02
Broxtowe Borough Council,http://statistics.data.gov.uk/id/local-authority/37UD,General,GEN,General,GEN,Strategic Director / Enviromental Services,Stores Purchased - March,9371,Stores,Stores,07/05/2020,V745189,86.5,The Beck Company,485.02
Broxtowe Borough Council,http://statistics.data.gov.uk/id/local-authority/37UD,General,GEN,General,GEN,Strategic Director / Enviromental Services,Stores Purchased - March,9371,Stores,Stores,07/05/2020,V745189,44.1,The Beck Company,485.02
Broxtowe Borough Council,http://statistics.data.gov.uk/id/local-authority/37UD,General,GEN,General,GEN,Strategic Director / Enviromental Operations,Stores Purchased - April,9360,Stores,Stores,07/05/2020,V748633,11.05,The Beck Company,485.02
Broxtowe Borough Council,http://statistics.data.gov.uk/id/local-authority/37UD,General,GEN,General,GEN,Strategic Director / Enviromental Services,Stores Purchased - March,9371,Stores,Stores,07/05/2020,V745189,34.6,The Beck Company,485.02
Broxtowe Borough Council,http://statistics.data.gov.uk/id/local-authority/37UD,General,GEN,General,GEN,Strategic Director / Enviromental Services,Stores Purchased - March,9371,Stores,Stores,07/05/2020,V745189,155,The Beck Company,485.02
Broxtowe Borough Council,http://statistics.data.gov.uk/id/local-authority/37UD,General,GEN,General,GEN,Strategic Director / Enviromental Services,Stores Purchased - March,9371,Stores,Stores,07/05/2020,V745189,6.96,The Beck Company,485.02
Broxtowe Borough Council,http://statistics.data.gov.uk/id/local-authority/37UD,General,GEN,General,GEN,Strategic Director / Enviromental Services,Stores Purchased - March,9371,Stores,Stores,07/05/2020,V745189,9.47,The Beck Company,485.02
Broxtowe Borough Council,http://statistics.data.gov.uk/id/local-authority/37UD,Housing,HOUSING,Other HRA,HRAOTHER,Chief Executive  / Ground rent,Subscriptions,3730,Other Supplies & Services,OtherSS,07/05/2020,V747469,625,The East Midlands Tenant Participation Forum,625
Broxtowe Borough Council,http://statistics.data.gov.uk/id/local-authority/37UD,Works,WORKS,Other Works,WKSOTHER,Strategic Director / Enviromental Services,Electricity,1310,Utilities,Utility,07/05/2020,V748499,55.06,Total Gas & Power Ltd,25422.59
Broxtowe Borough Council,http://statistics.data.gov.uk/id/local-authority/37UD,Works,WORKS,Other Works,WKSOTHER,Strategic Director / Enviromental Services,Electricity,1310,Utilities,Utility,07/05/2020,V748724,20.59,Total Gas & Power Ltd,25422.59
Broxtowe Borough Council,http://statistics.data.gov.uk/id/local-authority/37UD,Works,WORKS,Other Works,WKSOTHER,Strategic Director / Enviromental Services,Electricity,1310,Utilities,Utility,07/05/2020,V748495,70.87,Total Gas & Power Ltd,25422.59
Broxtowe Borough Council,http://statistics.data.gov.uk/id/local-authority/37UD,Works,WORKS,Other Works,WKSOTHER,Strategic Director / Enviromental Services,Electricity,1310,Utilities,Utility,07/05/2020,V748498,18.8,Total Gas & Power Ltd,25422.59
Broxtowe Borough Council,http://statistics.data.gov.uk/id/local-authority/37UD,Works,WORKS,Other Works,WKSOTHER,Strategic Director / Enviromental Services,Electricity,1310,Utilities,Utility,07/05/2020,V748500,14.48,Total Gas & Power Ltd,25422.59
Broxtowe Borough Council,http://statistics.data.gov.uk/id/local-authority/37UD,Technical,TECHNICA,Parks & Recreation Grounds,RECGRD,Strategic Director / Enviromental Services,Electricity,1310,Utilities,Utility,07/05/2020,V748723,23.59,Total Gas & Power Ltd,25422.59
Broxtowe Borough Council,http://statistics.data.gov.uk/id/local-authority/37UD,Technical,TECHNICA,Parks & Recreation Grounds,RECGRD,Strategic Director / Enviromental Services,Gas,1320,Utilities,Utility,07/05/2020,V748504,189.49,Total Gas & Power Ltd,25422.59
Broxtowe Borough Council,http://statistics.data.gov.uk/id/local-authority/37UD,Community Development,COMDEV,Industrial Development,INDDEV,Deputy Chief Executive / Industrial rents,Electricity,1310,Utilities,Utility,07/05/2020,V748580,24.89,Total Gas & Power Ltd,25422.59
Broxtowe Borough Council,http://statistics.data.gov.uk/id/local-authority/37UD,Works,WORKS,Repairs & Maintenance,REPMAIN,Strategic Director / Enviromental Services,Electricity,1310,Utilities,Utility,07/05/2020,V748502,535.8,Total Gas & Power Ltd,25422.59
Broxtowe Borough Council,http://statistics.data.gov.uk/id/local-authority/37UD,Technical,TECHNICA,Parks & Recreation Grounds,RECGRD,Strategic Director / Enviromental Services,Electricity,1310,Utilities,Utility,07/05/2020,V748487,209.43,Total Gas & Power Ltd,25422.59
Broxtowe Borough Council,http://statistics.data.gov.uk/id/local-authority/37UD,Technical,TECHNICA,Parks & Recreation Grounds,RECGRD,Strategic Director / Enviromental Services,Electricity,1310,Utilities,Utility,07/05/2020,V748494,214.75,Total Gas & Power Ltd,25422.59
Broxtowe Borough Council,http://statistics.data.gov.uk/id/local-authority/37UD,Technical,TECHNICA,Parks & Recreation Grounds,RECGRD,Strategic Director / Enviromental Services,Electricity,1310,Utilities,Utility,07/05/2020,V748486,14.09,Total Gas & Power Ltd,25422.59
Broxtowe Borough Council,http://statistics.data.gov.uk/id/local-authority/37UD,Technical,TECHNICA,Parks & Recreation Grounds,RECGRD,Strategic Director / Enviromental Services,Water Charges,1410,Utilities,Utility,07/05/2020,V748642,259.22,Total Gas & Power Ltd,25422.59
Broxtowe Borough Council,http://statistics.data.gov.uk/id/local-authority/37UD,Finance,FINANCE,Finance Services,FINANCE,Deputy Chief Executive / Finance Services,Electricity,1310,Utilities,Utility,07/05/2020,V748581,0.41,Total Gas & Power Ltd,25422.59
Broxtowe Borough Council,http://statistics.data.gov.uk/id/local-authority/37UD,Housing,HOUSING,Warden Schemes,WARD,Chief Executive  / Income Management,Electricity,1310,Utilities,Utility,07/05/2020,V748458,91.1,Total Gas & Power Ltd,25422.59
Broxtowe Borough Council,http://statistics.data.gov.uk/id/local-authority/37UD,Housing,HOUSING,Warden Schemes,WARD,Chief Executive  / Income Management,Electricity,1310,Utilities,Utility,07/05/2020,V748558,18.5,Total Gas & Power Ltd,25422.59
Broxtowe Borough Council,http://statistics.data.gov.uk/id/local-authority/37UD,Housing,HOUSING,Warden Schemes,WARD,Chief Executive  / Income Management,Electricity,1310,Utilities,Utility,07/05/2020,V748557,278.39,Total Gas & Power Ltd,25422.59
Broxtowe Borough Council,http://statistics.data.gov.uk/id/local-authority/37UD,Housing,HOUSING,Warden Schemes,WARD,Chief Executive  / Income Management,Electricity,1310,Utilities,Utility,07/05/2020,V748451,641.96,Total Gas & Power Ltd,25422.59
Broxtowe Borough Council,http://statistics.data.gov.uk/id/local-authority/37UD,Housing,HOUSING,Warden Schemes,WARD,Chief Executive  / Income Management,Electricity,1310,Utilities,Utility,07/05/2020,V748449,116.01,Total Gas & Power Ltd,25422.59
Broxtowe Borough Council,http://statistics.data.gov.uk/id/local-authority/37UD,Housing,HOUSING,Warden Schemes,WARD,Chief Executive  / Income Management,Electricity,1310,Utilities,Utility,07/05/2020,V748450,29.34,Total Gas & Power Ltd,25422.59
Broxtowe Borough Council,http://statistics.data.gov.uk/id/local-authority/37UD,Housing,HOUSING,Warden Schemes,WARD,Chief Executive  / Income Management,Electricity,1310,Utilities,Utility,07/05/2020,V748455,13.7,Total Gas & Power Ltd,25422.59
Broxtowe Borough Council,http://statistics.data.gov.uk/id/local-authority/37UD,Works,WORKS,Other Works,WKSOTHER,Strategic Director / Enviromental Services,Electricity,1310,Utilities,Utility,07/05/2020,V748496,15.36,Total Gas & Power Ltd,25422.59
Broxtowe Borough Council,http://statistics.data.gov.uk/id/local-authority/37UD,Works,WORKS,Other Works,WKSOTHER,Strategic Director / Enviromental Services,Electricity,1310,Utilities,Utility,07/05/2020,V748722,18.24,Total Gas & Power Ltd,25422.59
Broxtowe Borough Council,http://statistics.data.gov.uk/id/local-authority/37UD,Technical,TECHNICA,Parks & Recreation Grounds,RECGRD,Strategic Director / Enviromental Services,Electricity,1310,Utilities,Utility,07/05/2020,V748492,52.31,Total Gas & Power Ltd,25422.59
Broxtowe Borough Council,http://statistics.data.gov.uk/id/local-authority/37UD,Technical,TECHNICA,Parks & Recreation Grounds,RECGRD,Strategic Director / Enviromental Services,Electricity,1310,Utilities,Utility,07/05/2020,V748725,18.88,Total Gas & Power Ltd,25422.59
Broxtowe Borough Council,http://statistics.data.gov.uk/id/local-authority/37UD,Technical,TECHNICA,Parks & Recreation Grounds,RECGRD,Strategic Director / Enviromental Services,Electricity,1310,Utilities,Utility,07/05/2020,V748726,51.09,Total Gas & Power Ltd,25422.59
Broxtowe Borough Council,http://statistics.data.gov.uk/id/local-authority/37UD,Works,WORKS,Other Works,WKSOTHER,Strategic Director / Enviromental Services,Electricity,1310,Utilities,Utility,07/05/2020,V748502,2143.19,Total Gas & Power Ltd,25422.59
Broxtowe Borough Council,http://statistics.data.gov.uk/id/local-authority/37UD,Works,WORKS,Repairs & Maintenance,REPMAIN,Strategic Director / Enviromental Services,Gas,1320,Utilities,Utility,07/05/2020,V748505,2234.75,Total Gas & Power Ltd,25422.59
Broxtowe Borough Council,http://statistics.data.gov.uk/id/local-authority/37UD,Works,WORKS,Repairs & Maintenance,REPMAIN,Strategic Director / Enviromental Services,Gas,1320,Utilities,Utility,07/05/2020,V748503,181.46,Total Gas & Power Ltd,25422.59
Broxtowe Borough Council,http://statistics.data.gov.uk/id/local-authority/37UD,Works,WORKS,Other Works,WKSOTHER,Strategic Director / Enviromental Services,Gas,1320,Utilities,Utility,07/05/2020,V748506,261.26,Total Gas & Power Ltd,25422.59
Broxtowe Borough Council,http://statistics.data.gov.uk/id/local-authority/37UD,Works,WORKS,Other Works,WKSOTHER,Strategic Director / Enviromental Services,Electricity,1310,Utilities,Utility,07/05/2020,V748497,48.51,Total Gas & Power Ltd,25422.59
Broxtowe Borough Council,http://statistics.data.gov.uk/id/local-authority/37UD,Technical,TECHNICA,Parks & Recreation Grounds,RECGRD,Strategic Director / Enviromental Services,Electricity,1310,Utilities,Utility,07/05/2020,V748491,277.61,Total Gas & Power Ltd,25422.59
Broxtowe Borough Council,http://statistics.data.gov.uk/id/local-authority/37UD,Technical,TECHNICA,Parks & Recreation Grounds,RECGRD,Strategic Director / Enviromental Services,Electricity,1310,Utilities,Utility,07/05/2020,V748501,70.45,Total Gas & Power Ltd,25422.59
Broxtowe Borough Council,http://statistics.data.gov.uk/id/local-authority/37UD,Technical,TECHNICA,Parks & Recreation Grounds,RECGRD,Strategic Director / Enviromental Services,Electricity,1310,Utilities,Utility,07/05/2020,V748493,231.03,Total Gas & Power Ltd,25422.59
Broxtowe Borough Council,http://statistics.data.gov.uk/id/local-authority/37UD,Finance,FINANCE,Finance Services,FINANCE,Deputy Chief Executive / Finance Services,Electricity,1310,Utilities,Utility,07/05/2020,V748579,38.56,Total Gas & Power Ltd,25422.59
Broxtowe Borough Council,http://statistics.data.gov.uk/id/local-authority/37UD,Housing,HOUSING,Warden Schemes,WARD,Chief Executive  / Income Management,Electricity,1310,Utilities,Utility,07/05/2020,V748461,151.6,Total Gas & Power Ltd,25422.59
Broxtowe Borough Council,http://statistics.data.gov.uk/id/local-authority/37UD,Housing,HOUSING,Warden Schemes,WARD,Chief Executive  / Income Management,Electricity,1310,Utilities,Utility,07/05/2020,V748447,875.63,Total Gas & Power Ltd,25422.59
Broxtowe Borough Council,http://statistics.data.gov.uk/id/local-authority/37UD,Housing,HOUSING,Warden Schemes,WARD,Chief Executive  / Income Management,Electricity,1310,Utilities,Utility,07/05/2020,V748464,843.05,Total Gas & Power Ltd,25422.59
Broxtowe Borough Council,http://statistics.data.gov.uk/id/local-authority/37UD,Housing,HOUSING,Warden Schemes,WARD,Chief Executive  / Income Management,Gas,1320,Utilities,Utility,07/05/2020,V748575,26.27,Total Gas & Power Ltd,25422.59
Broxtowe Borough Council,http://statistics.data.gov.uk/id/local-authority/37UD,Housing,HOUSING,Warden Schemes,WARD,Chief Executive  / Income Management,Gas,1320,Utilities,Utility,07/05/2020,V748609,481.74,Total Gas & Power Ltd,25422.59
Broxtowe Borough Council,http://statistics.data.gov.uk/id/local-authority/37UD,Technical,TECHNICA,Parks & Recreation Grounds,RECGRD,Strategic Director / Enviromental Services,Electricity,1310,Utilities,Utility,07/05/2020,V748490,72.79,Total Gas & Power Ltd,25422.59
Broxtowe Borough Council,http://statistics.data.gov.uk/id/local-authority/37UD,Finance,FINANCE,Finance Services,FINANCE,Deputy Chief Executive / Finance Services,Electricity,1310,Utilities,Utility,07/05/2020,V748581,54.73,Total Gas & Power Ltd,25422.59
Broxtowe Borough Council,http://statistics.data.gov.uk/id/local-authority/37UD,Housing,HOUSING,Warden Schemes,WARD,Chief Executive  / Income Management,Electricity,1310,Utilities,Utility,07/05/2020,V748463,178.52,Total Gas & Power Ltd,25422.59
Broxtowe Borough Council,http://statistics.data.gov.uk/id/local-authority/37UD,Housing,HOUSING,Warden Schemes,WARD,Chief Executive  / Income Management,Electricity,1310,Utilities,Utility,07/05/2020,V748454,44.52,Total Gas & Power Ltd,25422.59
Broxtowe Borough Council,http://statistics.data.gov.uk/id/local-authority/37UD,Housing,HOUSING,Warden Schemes,WARD,Chief Executive  / Income Management,Electricity,1310,Utilities,Utility,07/05/2020,V748462,510.16,Total Gas & Power Ltd,25422.59
Broxtowe Borough Council,http://statistics.data.gov.uk/id/local-authority/37UD,Housing,HOUSING,Warden Schemes,WARD,Chief Executive  / Income Management,Gas,1320,Utilities,Utility,07/05/2020,V748605,42.57,Total Gas & Power Ltd,25422.59
Broxtowe Borough Council,http://statistics.data.gov.uk/id/local-authority/37UD,Housing,HOUSING,Warden Schemes,WARD,Chief Executive  / Income Management,Gas,1320,Utilities,Utility,07/05/2020,V748574,78.96,Total Gas & Power Ltd,25422.59
Broxtowe Borough Council,http://statistics.data.gov.uk/id/local-authority/37UD,Housing,HOUSING,Warden Schemes,WARD,Chief Executive  / Income Management,Gas,1320,Utilities,Utility,07/05/2020,V748577,7.13,Total Gas & Power Ltd,25422.59
Broxtowe Borough Council,http://statistics.data.gov.uk/id/local-authority/37UD,Housing,HOUSING,Warden Schemes,WARD,Chief Executive  / Income Management,Gas,1320,Utilities,Utility,07/05/2020,V748607,380.49,Total Gas & Power Ltd,25422.59
Broxtowe Borough Council,http://statistics.data.gov.uk/id/local-authority/37UD,Housing,HOUSING,Warden Schemes,WARD,Chief Executive  / Income Management,Gas,1320,Utilities,Utility,07/05/2020,V748603,472.44,Total Gas & Power Ltd,25422.59
Broxtowe Borough Council,http://statistics.data.gov.uk/id/local-authority/37UD,Housing,HOUSING,Warden Schemes,WARD,Chief Executive  / Income Management,Gas,1320,Utilities,Utility,07/05/2020,V748576,83.35,Total Gas & Power Ltd,25422.59
Broxtowe Borough Council,http://statistics.data.gov.uk/id/local-authority/37UD,Housing,HOUSING,Warden Schemes,WARD,Chief Executive  / Income Management,Gas,1320,Utilities,Utility,07/05/2020,V748608,600.84,Total Gas & Power Ltd,25422.59
Broxtowe Borough Council,http://statistics.data.gov.uk/id/local-authority/37UD,Housing,HOUSING,Warden Schemes,WARD,Chief Executive  / Income Management,Gas,1320,Utilities,Utility,07/05/2020,V748573,40.91,Total Gas & Power Ltd,25422.59
Broxtowe Borough Council,http://statistics.data.gov.uk/id/local-authority/37UD,Housing,HOUSING,Warden Schemes,WARD,Chief Executive  / Income Management,Gas,1320,Utilities,Utility,07/05/2020,V748584,346.39,Total Gas & Power Ltd,25422.59
Broxtowe Borough Council,http://statistics.data.gov.uk/id/local-authority/37UD,Housing,HOUSING,Warden Schemes,WARD,Chief Executive  / Income Management,Gas,1320,Utilities,Utility,07/05/2020,V748572,90.57,Total Gas & Power Ltd,25422.59
Broxtowe Borough Council,http://statistics.data.gov.uk/id/local-authority/37UD,Housing,HOUSING,Warden Schemes,WARD,Chief Executive  / Income Management,Gas,1320,Utilities,Utility,07/05/2020,V748602,424.79,Total Gas & Power Ltd,25422.59
Broxtowe Borough Council,http://statistics.data.gov.uk/id/local-authority/37UD,Housing,HOUSING,Warden Schemes,WARD,Chief Executive  / Income Management,Gas,1320,Utilities,Utility,07/05/2020,V748583,392.23,Total Gas & Power Ltd,25422.59
Broxtowe Borough Council,http://statistics.data.gov.uk/id/local-authority/37UD,Housing,HOUSING,Warden Schemes,WARD,Chief Executive  / Income Management,Access Lighting to Flats,1352,Utilities,Utility,07/05/2020,V747465,5143.69,Total Gas & Power Ltd,25422.59
Broxtowe Borough Council,http://statistics.data.gov.uk/id/local-authority/37UD,Housing,HOUS,Hostels,HOSTL,Chief Executive  / Housing Operations,Gas,1320,Utilities,Utility,07/05/2020,V748563,7.13,Total Gas & Power Ltd,25422.59
Broxtowe Borough Council,http://statistics.data.gov.uk/id/local-authority/37UD,Housing,HOUS,Hostels,HOSTL,Chief Executive  / Housing Operations,Gas,1320,Utilities,Utility,07/05/2020,V748569,386.23,Total Gas & Power Ltd,25422.59
Broxtowe Borough Council,http://statistics.data.gov.uk/id/local-authority/37UD,Housing,HOUS,Hostels,HOSTL,Chief Executive  / Housing Operations,Gas,1320,Utilities,Utility,07/05/2020,V748567,105.03,Total Gas & Power Ltd,25422.59
Broxtowe Borough Council,http://statistics.data.gov.uk/id/local-authority/37UD,Finance,FINANCE,Finance Services,FINANCE,Deputy Chief Executive / Finance Services,Electricity,1310,Utilities,Utility,07/05/2020,V748555,9.18,Total Gas & Power Ltd,25422.59
Broxtowe Borough Council,http://statistics.data.gov.uk/id/local-authority/37UD,Housing,HOUSING,Warden Schemes,WARD,Chief Executive  / Income Management,Electricity,1310,Utilities,Utility,07/05/2020,V748559,30.23,Total Gas & Power Ltd,25422.59
Broxtowe Borough Council,http://statistics.data.gov.uk/id/local-authority/37UD,Housing,HOUSING,Warden Schemes,WARD,Chief Executive  / Income Management,Electricity,1310,Utilities,Utility,07/05/2020,V748556,377.54,Total Gas & Power Ltd,25422.59
Broxtowe Borough Council,http://statistics.data.gov.uk/id/local-authority/37UD,Housing,HOUSING,Warden Schemes,WARD,Chief Executive  / Income Management,Electricity,1310,Utilities,Utility,07/05/2020,V748457,79.59,Total Gas & Power Ltd,25422.59
Broxtowe Borough Council,http://statistics.data.gov.uk/id/local-authority/37UD,Housing,HOUSING,Warden Schemes,WARD,Chief Executive  / Income Management,Electricity,1310,Utilities,Utility,07/05/2020,V748460,30.24,Total Gas & Power Ltd,25422.59
Broxtowe Borough Council,http://statistics.data.gov.uk/id/local-authority/37UD,Housing,HOUSING,Warden Schemes,WARD,Chief Executive  / Income Management,Electricity,1310,Utilities,Utility,07/05/2020,V748453,48.04,Total Gas & Power Ltd,25422.59
Broxtowe Borough Council,http://statistics.data.gov.uk/id/local-authority/37UD,Housing,HOUSING,Warden Schemes,WARD,Chief Executive  / Income Management,Electricity,1310,Utilities,Utility,07/05/2020,V748452,404.7,Total Gas & Power Ltd,25422.59
Broxtowe Borough Council,http://statistics.data.gov.uk/id/local-authority/37UD,Housing,HOUSING,Warden Schemes,WARD,Chief Executive  / Income Management,Electricity,1310,Utilities,Utility,07/05/2020,V748459,279.56,Total Gas & Power Ltd,25422.59
Broxtowe Borough Council,http://statistics.data.gov.uk/id/local-authority/37UD,Housing,HOUSING,Warden Schemes,WARD,Chief Executive  / Income Management,Gas,1320,Utilities,Utility,07/05/2020,V748606,503.05,Total Gas & Power Ltd,25422.59
Broxtowe Borough Council,http://statistics.data.gov.uk/id/local-authority/37UD,Housing,HOUSING,Warden Schemes,WARD,Chief Executive  / Income Management,Gas,1320,Utilities,Utility,07/05/2020,V748582,213.96,Total Gas & Power Ltd,25422.59
Broxtowe Borough Council,http://statistics.data.gov.uk/id/local-authority/37UD,Housing,HOUSING,Warden Schemes,WARD,Chief Executive  / Income Management,Gas,1320,Utilities,Utility,07/05/2020,V748604,73.77,Total Gas & Power Ltd,25422.59
Broxtowe Borough Council,http://statistics.data.gov.uk/id/local-authority/37UD,Housing,HOUS,Hostels,HOSTL,Chief Executive  / Housing Operations,Electricity,1310,Utilities,Utility,07/05/2020,V748446,96.31,Total Gas & Power Ltd,25422.59
Broxtowe Borough Council,http://statistics.data.gov.uk/id/local-authority/37UD,Housing,HOUS,Hostels,HOSTL,Chief Executive  / Housing Operations,Electricity,1310,Utilities,Utility,07/05/2020,V748456,38.66,Total Gas & Power Ltd,25422.59
Broxtowe Borough Council,http://statistics.data.gov.uk/id/local-authority/37UD,Housing,HOUS,Hostels,HOSTL,Chief Executive  / Housing Operations,Gas,1320,Utilities,Utility,07/05/2020,V748562,152.18,Total Gas & Power Ltd,25422.59
Broxtowe Borough Council,http://statistics.data.gov.uk/id/local-authority/37UD,Housing,HOUSING,Warden Schemes,WARD,Chief Executive  / Income Management,Gas,1320,Utilities,Utility,07/05/2020,V748578,278.76,Total Gas & Power Ltd,25422.59
Broxtowe Borough Council,http://statistics.data.gov.uk/id/local-authority/37UD,Housing,HOUSING,Warden Schemes,WARD,Chief Executive  / Income Management,Gas,1320,Utilities,Utility,07/05/2020,V748601,163.55,Total Gas & Power Ltd,25422.59
Broxtowe Borough Council,http://statistics.data.gov.uk/id/local-authority/37UD,Housing,HOUSING,Warden Schemes,WARD,Chief Executive  / Income Management,Access Lighting to Flats,1352,Utilities,Utility,07/05/2020,V747465,11.35,Total Gas & Power Ltd,25422.59
Broxtowe Borough Council,http://statistics.data.gov.uk/id/local-authority/37UD,Housing,HOUSING,Warden Schemes,WARD,Chief Executive  / Income Management,Access Lighting to Flats,1352,Utilities,Utility,07/05/2020,V747465,-11.35,Total Gas & Power Ltd,25422.59
Broxtowe Borough Council,http://statistics.data.gov.uk/id/local-authority/37UD,Housing,HOUS,Hostels,HOSTL,Chief Executive  / Housing Operations,Gas,1320,Utilities,Utility,07/05/2020,V748565,49.14,Total Gas & Power Ltd,25422.59
Broxtowe Borough Council,http://statistics.data.gov.uk/id/local-authority/37UD,Housing,HOUS,Hostels,HOSTL,Chief Executive  / Housing Operations,Gas,1320,Utilities,Utility,07/05/2020,V748568,36.09,Total Gas & Power Ltd,25422.59
Broxtowe Borough Council,http://statistics.data.gov.uk/id/local-authority/37UD,Housing,HOUS,Hostels,HOSTL,Chief Executive  / Housing Operations,Gas,1320,Utilities,Utility,07/05/2020,V748570,7.13,Total Gas & Power Ltd,25422.59
Broxtowe Borough Council,http://statistics.data.gov.uk/id/local-authority/37UD,Housing,HOUS,Hostels,HOSTL,Chief Executive  / Housing Operations,Gas,1320,Utilities,Utility,07/05/2020,V748566,7.13,Total Gas & Power Ltd,25422.59
Broxtowe Borough Council,http://statistics.data.gov.uk/id/local-authority/37UD,Housing,HOUSING,Warden Schemes,WARD,Chief Executive  / Income Management,Monitoring Contract,3837,Other Supplies & Services,OtherSS,07/05/2020,V748472,11756.16,Tunstall Response Ltd,14107.39
Broxtowe Borough Council,http://statistics.data.gov.uk/id/local-authority/37UD,Housing,HOUSING,Warden Schemes,WARD,Chief Executive  / Income Management,Repairs & Maintenance,1000,Central Pot,Central,07/05/2020,V748474,276.13,Tunstall Telecom Ltd,331.36
Broxtowe Borough Council,http://statistics.data.gov.uk/id/local-authority/37UD,Works,WORKS,Repairs & Maintenance,REPMAIN,Strategic Director / Enviromental Services,Sub Contractors [day to day repairs],3107,Other Supplies & Services,OtherSS,07/05/2020,V748720,390,UK Tool Hire Ltd,612
Broxtowe Borough Council,http://statistics.data.gov.uk/id/local-authority/37UD,Works,WORKS,Repairs & Maintenance,REPMAIN,Strategic Director / Enviromental Services,Sub Contractors [day to day repairs],3107,Other Supplies & Services,OtherSS,07/05/2020,V748721,120,UK Tool Hire Ltd,612
Broxtowe Borough Council,http://statistics.data.gov.uk/id/local-authority/37UD,Works,WORKS,Other Works,WKSOTHER,Strategic Director / Enviromental Services,Water Charges,1410,Utilities,Utility,07/05/2020,V748694,40,Water Plus Group Ltd,298.9
Broxtowe Borough Council,http://statistics.data.gov.uk/id/local-authority/37UD,Works,WORKS,Other Works,WKSOTHER,Strategic Director / Enviromental Services,Water Charges,1410,Utilities,Utility,07/05/2020,V748694,39.74,Water Plus Group Ltd,298.9
Broxtowe Borough Council,http://statistics.data.gov.uk/id/local-authority/37UD,Works,WORKS,Other Works,WKSOTHER,Strategic Director / Enviromental Services,Sewerage Charges,1420,Utilities,Utility,07/05/2020,V748695,40,Water Plus Group Ltd,298.9
Broxtowe Borough Council,http://statistics.data.gov.uk/id/local-authority/37UD,Technical,TECHNICA,Allotments,ALLOT,Strategic Director / Enviromental Services,Water Charges,1410,Utilities,Utility,07/05/2020,V748653,65.39,Water Plus Group Ltd,298.9
Broxtowe Borough Council,http://statistics.data.gov.uk/id/local-authority/37UD,Works,WORKS,Other Works,WKSOTHER,Strategic Director / Enviromental Services,Sewerage Charges,1420,Utilities,Utility,07/05/2020,V748694,0.42,Water Plus Group Ltd,298.9
Broxtowe Borough Council,http://statistics.data.gov.uk/id/local-authority/37UD,Works,WORKS,Other Works,WKSOTHER,Strategic Director / Enviromental Services,Sewerage Charges,1420,Utilities,Utility,07/05/2020,V748694,25.14,Water Plus Group Ltd,298.9
Broxtowe Borough Council,http://statistics.data.gov.uk/id/local-authority/37UD,Works,WORKS,Other Works,WKSOTHER,Strategic Director / Enviromental Services,Water Charges,1410,Utilities,Utility,07/05/2020,V748695,66.95,Water Plus Group Ltd,298.9
Broxtowe Borough Council,http://statistics.data.gov.uk/id/local-authority/37UD,Technical,TECHNICA,Allotments,ALLOT,Strategic Director / Enviromental Services,Water Charges,1410,Utilities,Utility,07/05/2020,V748654,21.26,Water Plus Group Ltd,298.9
Broxtowe Borough Council,http://statistics.data.gov.uk/id/local-authority/37UD,Bramcote Crematorium,BCREM,Bramcote Crematorium,BCREM,Deputy Chief Executive / Bramcote Crematorium,Repairs & Maintenance,1000,Central Pot,Central,07/05/2020,V747466,680,WB Power Services Limited,816
Broxtowe Borough Council,http://statistics.data.gov.uk/id/local-authority/37UD,Housing Revenue Account,HRA,Housing Revenue Account,HRA,Deputy Chief Executive / Capital Works,New construction,9002,Capital Expenditure,CapExp,07/05/2020,V747471,228.13,Western Power Distribution (East Midlands) plc,273.76
Broxtowe Borough Council,http://statistics.data.gov.uk/id/local-authority/37UD,Works,WORKS,Waste Management,WASTMAN,Strategic Director / Enviromental Services,Repairs / Servicing  - Materials,5520,Transport Account,TRANACC,07/05/2020,V748733,135,Woodside Autocentre Ltd,278.4
Broxtowe Borough Council,http://statistics.data.gov.uk/id/local-authority/37UD,Works,WORKS,Waste Management,WASTMAN,Strategic Director / Enviromental Services,Repairs / Servicing  - Materials,5520,Transport Account,TRANACC,07/05/2020,V748467,97,Woodside Autocentre Ltd,278.4
Broxtowe Borough Council,http://statistics.data.gov.uk/id/local-authority/37UD,Bramcote Crematorium,BCREM,Bramcote Crematorium,BCREM,Deputy Chief Executive / Bramcote Crematorium,Repairs & Maintenance,1000,Central Pot,Central,07/05/2020,V748696,350,WRK  Gardening and Handyman Services,350
Broxtowe Borough Council,http://statistics.data.gov.uk/id/local-authority/37UD,Works Directorate,DIRWORKS,Works Directorate,DIRWORKS,Strategic Director / Enviromental Services,Materials  - Direct,3202,Equipment,Equip,15/05/2020,V749199,296, Agrovista UK Ltd T/A Sherriff Amenity,4293.75
Broxtowe Borough Council,http://statistics.data.gov.uk/id/local-authority/37UD,Works,WORKS,Repairs & Maintenance,REPMAIN,Strategic Director / Enviromental Services,Materials  - Direct,3202,Equipment,Equip,15/05/2020,V744110,2801.68, Agrovista UK Ltd T/A Sherriff Amenity,4293.75
